Local authority department which incurred the expenditure,Service Division,Cost Centre,Summary of the Purpose of Expenditure,Expense Type,Expense Code,Detailed Expense Type,Date of Transaction,Transaction Number,Beneficiary,Merchant Category Number,Merchant Category,Gross Amount,VAT,Net Amount
Children and Young Peoples Services,Childrens Services,85957,Secure Management,Supplies and Services,324117,Provisions,01-Oct-16,5328295041,TESCO STORES 6329,5411,Catering costs - provisions,116.18,0,116.18
Regeneration and Local Services,Culture & Sport,54233,Bp Auckland Town Hall Library,Supplies and Services,312011,Newspapers Books and Periodicals,01-Oct-16,5328295349,Amazon UK Marketplace,5942,Books-school library,2.49,0,2.49
Regeneration and Local Services,Culture & Sport,54233,Bp Auckland Town Hall Library,Supplies and Services,324117,Provisions,01-Oct-16,5328295353,WM MORRISON 040,5411,Catering costs - provisions,34.21,0,34.21
Regeneration and Local Services,Culture & Sport,11060,Hardwick Park Catering,Supplies and Services,324117,Provisions,01-Oct-16,5328295961,BRAKE BROS LTD,5811,Catering costs - provisions,26.4,4.4,22
Regeneration and Local Services,Culture & Sport,11060,Hardwick Park Catering,Supplies and Services,324117,Provisions,01-Oct-16,5328295961 - 1,BRAKE BROS LTD,5811,Catering costs - provisions,8.4,,8.4
Regeneration and Local Services,Culture & Sport,11204,Events,Supplies and Services,348037,Subsistence,01-Oct-16,5328296131,MCDONALDS,5812,Subsistence,21.54,0,21.54
Adult and Health Services,Planning & Service Strategy,52711,P and P-Learning and Dev Mgt,Supplies and Services,312009,Newspapers Books and Periodicals,01-Oct-16,5328296343,Amazon EU,5969,Newspapers books and periodicals,65,0,65
Regeneration and Local Services,Direct Services,21235,Catering - Wharton Park,Supplies and Services,324117,Provisions,01-Oct-16,5328297421,BRAKE BROS LTD,5811,Catering costs - provisions,48.04,0,48.04
Regeneration and Local Services,Direct Services,21235,Catering - Wharton Park,Supplies and Services,324117,Provisions,01-Oct-16,5328297425,BRAKE BROS LTD,5811,Catering costs - provisions,12.24,2.04,10.2
Regeneration and Local Services,Direct Services,21235,Catering - Wharton Park,Supplies and Services,324117,Provisions,01-Oct-16,5328297425 - 1,BRAKE BROS LTD,5811,Catering costs - provisions,13.78,,13.78
Regeneration and Local Services,Economic Development and Housing,30699,Business Growth and Innovation General,Supplies and Services,304403,Equipment and Materials,02-Oct-16,5328295099,ADOBE CREATIVE CLOUD,5734,Other consumables,45.73,0,45.73
Regeneration and Local Services,Economic Development and Housing,30699,Business Growth and Innovation General,Supplies and Services,312011,Newspapers Books and Periodicals,02-Oct-16,5328295103,FASTHOSTS INTERNET,4816,Books-school library,59.99,10,49.99
Adult and Health Services,Planning & Service Strategy,52986,Team 2 LBT Sedgefield Dales & Rivergreen,Supplies and Services,328041,Clothing Uniforms and Laundry,02-Oct-16,5328295257,ARGOS RETAIL GROUP,5310,Clothing uniforms and laundry,129.92,0,129.92
Children and Young Peoples Services,Education,71732,Dean Bank Childcare,Supplies and Services,324117,Provisions,02-Oct-16,5328295607,ASDA HOME SHOPPING,5411,Catering costs - provisions,5,0,5
Children and Young Peoples Services,Childrens Services,85341,High Etherley Satelite Home,Supplies and Services,324117,Provisions,02-Oct-16,5328295625,TESCO STORES 6329,5411,Catering costs - provisions,120.73,0,120.73
Children and Young Peoples Services,Childrens Services,85341,High Etherley Satelite Home,Supplies and Services,324117,Provisions,02-Oct-16,5328295629,TESCO STORES 6329,5411,Catering costs - provisions,3.8,0,3.8
Regeneration and Local Services,Culture & Sport,54399,Local Delivery-Libraries,Supplies and Services,304403,Equipment and Materials,02-Oct-16,5335480947,AMAZON UK RETAIL AMAZO,5999,Other consumables,23.96,0,23.96
Children and Young Peoples Services,Education,71733,Shildon Childcare,Supplies and Services,324117,Provisions,03-Oct-16,5335480563,ASDA HOME SHOPPING,5411,Catering costs - provisions,46.43,0,46.43
Children and Young Peoples Services,Education,71733,Shildon Childcare,Supplies and Services,312011,Newspapers Books and Periodicals,03-Oct-16,5335480565,HOME BARGAINS,5251,Books-school library,1.98,0,1.98
Children and Young Peoples Services,Childrens Services,88096,Newton Aycliffe Teenage Parent Programme,Supplies and Services,324117,Provisions,03-Oct-16,5335480569,ASDA HOME SHOPPING,5411,Catering costs - provisions,33.98,0,33.98
Children and Young Peoples Services,Childrens Services,85957,Secure Management,Supplies and Services,384999,Miscellaneous Expenses,03-Oct-16,5335480601,VIRTUAL TERMINAL,5699,Other expenses,15.99,2.67,13.32
Resources,Financial Services,65180,Collections,Income,720130,Fees and Charges,03-Oct-16,5335480613,HMCOURT-SERVICES.G,9222,Fees-legal,110,0,110
Regeneration and Local Services,Direct Services,21242,Catering - County Hall,Supplies and Services,324117,Provisions,03-Oct-16,5335480643,JR HOLLAND FOODSERVICE,5422,Catering costs - provisions,91.52,0,91.52
Regeneration and Local Services,Direct Services,21242,Catering - County Hall,Supplies and Services,324117,Provisions,03-Oct-16,5335480645,JR HOLLAND FOODSERVICE,5422,Catering costs - provisions,22.15,0,22.15
Regeneration and Local Services,Direct Services,21242,Catering - County Hall,Supplies and Services,324117,Provisions,03-Oct-16,5335480649,JR HOLLAND FOODSERVICE,5422,Catering costs - provisions,13.52,0,13.52
Regeneration and Local Services,Direct Services,21242,Catering - County Hall,Supplies and Services,324117,Provisions,03-Oct-16,5335480653,BRAKE BROS LTD,5811,Catering costs - provisions,432.84,72.14,360.7
Regeneration and Local Services,Direct Services,21242,Catering - County Hall,Supplies and Services,324117,Provisions,03-Oct-16,5335480653 - 1,BRAKE BROS LTD,5811,Catering costs - provisions,481.49,,481.49
Regeneration and Local Services,Culture & Sport,54233,Bp Auckland Town Hall Library,Supplies and Services,312011,Newspapers Books and Periodicals,03-Oct-16,5335480669,Amazon UK Marketplace,5942,Books-school library,11.94,0,11.94
Regeneration and Local Services,Culture & Sport,11219,Office Services,Supplies and Services,304999,Equipment and Materials,03-Oct-16,5335480691,GOOGLE ADWS2420292471,5968,Misc equipment tools and materials,15.7,0,15.7
Children and Young Peoples Services,Childrens Services,85361,LAC & Permanence Team 1,Supplies and Services,304259,Equipment and Materials,03-Oct-16,5335480705,DURHAM COUNTY COUNCIL,9399,Equipment-purchase and rental,20,0,20
Regeneration and Local Services,Economic Development and Housing,30749,Employability - Youth Contract,Transport,235057,Public Transport,03-Oct-16,5335480733,WWW.SIMPLYGO.COM,4131,Staff travelling,18.4,0,18.4
Children and Young Peoples Services,Education,71732,Dean Bank Childcare,Supplies and Services,312011,Newspapers Books and Periodicals,03-Oct-16,5335480745,Amazon UK Marketplace,5942,Books-school library,25.9,0,25.9
Children and Young Peoples Services,Childrens Services,85952,Secure Education,Supplies and Services,384999,Miscellaneous Expenses,03-Oct-16,5335480761,WWW.THETORTOISESHOP.CO,5995,Other expenses,45.95,0,45.95
Children and Young Peoples Services,Childrens Services,85952,Secure Education,Supplies and Services,304259,Equipment and Materials,03-Oct-16,5335480763,Amazon EU,5969,Equipment-purchase and rental,53.89,0,53.89
Children and Young Peoples Services,Childrens Services,85952,Secure Education,Supplies and Services,384999,Miscellaneous Expenses,03-Oct-16,5335480765,Amazon EU,5969,Other expenses,68.97,0,68.97
Children and Young Peoples Services,Childrens Services,85957,Secure Management,Supplies and Services,328041,Clothing Uniforms and Laundry,03-Oct-16,5335480769,WWW.FOOTLOCKER.EU,5661,Clothing uniforms and laundry,104.96,0,104.96
Children and Young Peoples Services,Childrens Services,85955,Auckland,Supplies and Services,384999,Miscellaneous Expenses,03-Oct-16,5335480771,ARGOS RETAIL GROUP,5310,Other expenses,19.99,0,19.99
Children and Young Peoples Services,Childrens Services,85957,Secure Management,Supplies and Services,328041,Clothing Uniforms and Laundry,03-Oct-16,5335480775,HOUSE OF FRASER,5311,Clothing uniforms and laundry,91,0,91
Regeneration and Local Services,Culture & Sport,11060,Hardwick Park Catering,Supplies and Services,324117,Provisions,03-Oct-16,5335480795,JR HOLLAND FOODSERVICE,5422,Catering costs - provisions,43.68,0,43.68
Resources,I.C.T. Services,65335,Operations - System & Repairs Trading,Supplies and Services,304639,Equipment and Materials,03-Oct-16,5335480801,THE REPLACE BASE LTD,5999,Technicians-supplies,115.61,19.27,96.34
Regeneration and Local Services,Economic Development and Housing,30762,Organisational Training & Development,Employees,40149,Recruitment Instruction and Training,03-Oct-16,5335480815,NCS VUE CITB HS&E REV,8299,Training-all costs,487.5,0,487.5
Regeneration and Local Services,Direct Services,10525,Catering - Green Lane,Supplies and Services,324117,Provisions,03-Oct-16,5335480845,BRAKE BROS LTD,5811,Catering costs - provisions,23.69,0,23.69
Regeneration and Local Services,Transport and Contracted Services,31701,Care Connect All Localities,Supplies and Services,384999,Miscellaneous Expenses,03-Oct-16,5335480863,FAST KEY SERVICES LIMI,7399,Other expenses,6.76,0,6.76
Children and Young Peoples Services,Childrens Services,85352,Tow Law CU,Supplies and Services,324117,Provisions,03-Oct-16,5335480867,TESCO STORES 2371,5411,Catering costs - provisions,239.86,0,239.86
Children and Young Peoples Services,Childrens Services,88063,Bishop Auckland 0 - 5,Supplies and Services,324117,Provisions,03-Oct-16,5335480895,WM MORRISON 040,5411,Catering costs - provisions,20.86,0,20.86
Resources,Resources Management,69000,Resources Management,Supplies and Services,324117,Provisions,03-Oct-16,5335480931,SAINSBURYS LOC4937,5411,Catering costs - provisions,3.95,0,3.95
Resources,I.C.T. Services,69010,Administration,Supplies and Services,304259,Equipment and Materials,03-Oct-16,5335480935,DURHAM COUNTY COUNCIL,9399,Equipment-purchase and rental,20,0,20
Regeneration and Local Services,Culture & Sport,54399,Local Delivery-Libraries,Supplies and Services,312011,Newspapers Books and Periodicals,03-Oct-16,5335480945,Amazon EU,5969,Books-school library,7.99,0,7.99
Resources,Financial Services,52865,SF-Financial Services Team,Supplies and Services,338048,Services,03-Oct-16,5335481013,HMCOURTS-SERVICE.G,9222,Court Costs,"5,382.00",0,5382
Regeneration and Local Services,Culture & Sport,54235,Bp Auckland Town Hall Cafe,Supplies and Services,324117,Provisions,03-Oct-16,5335481021,JR HOLLAND FOODSERVICE,5422,Catering costs - provisions,11.28,0,11.28
Regeneration and Local Services,Economic Development and Housing,30737,Durham Works Flexible Fund,Transport,235057,Public Transport,03-Oct-16,5335481075,BISHOP AUCKLAND STN TO,4112,Staff travelling,71.1,0,71.1
Regeneration and Local Services,Economic Development and Housing,30737,Durham Works Flexible Fund,Supplies and Services,328041,Clothing Uniforms and Laundry,03-Oct-16,5335481079,FLORENCE ROBY LTD,5137,Clothing uniforms and laundry,5,0,5
Regeneration and Local Services,Economic Development and Housing,30737,Durham Works Flexible Fund,Transport,235057,Public Transport,03-Oct-16,5335481083,WWW.SIMPLYGO.COM,4131,Staff travelling,105.84,0,105.84
Children and Young Peoples Services,Childrens Services,88083,Ferryhill 0 - 5,Supplies and Services,324117,Provisions,03-Oct-16,5335481089,ASDA HOME SHOPPING,5411,Catering costs - provisions,34.05,0,34.05
Regeneration and Local Services,Direct Services,21235,Catering - Wharton Park,Supplies and Services,324117,Provisions,03-Oct-16,5335481127,JR HOLLAND FOODSERVICE,5422,Catering costs - provisions,13.53,0,13.53
Regeneration and Local Services,Direct Services,21235,Catering - Wharton Park,Supplies and Services,324117,Provisions,03-Oct-16,5335481131,JR HOLLAND FOODSERVICE,5422,Catering costs - provisions,5.3,0,5.3
Regeneration and Local Services,Culture & Sport,10605,Woodhouse Close Leisure Complex,Supplies and Services,324117,Provisions,03-Oct-16,5335481149,JR HOLLAND FOODSERVICE,5422,Catering costs - provisions,32.32,0,32.32
Regeneration and Local Services,Culture & Sport,10605,Woodhouse Close Leisure Complex,Supplies and Services,324117,Provisions,03-Oct-16,5335481161,BRAKE BROS LTD,5811,Catering costs - provisions,87.93,0,87.93
Regeneration and Local Services,Economic Development and Housing,30705,Visit County Durham,Supplies and Services,304403,Equipment and Materials,03-Oct-16,5335481165,SIMONEY BADGES LTD,5947,Other consumables,22.8,0,22.8
Children and Young Peoples Services,Education,76004,Music - Parents Fund,Supplies and Services,384999,Miscellaneous Expenses,03-Oct-16,5335481185,Amazon EU,5969,Other expenses,10,0,10
Children and Young Peoples Services,Education,76004,Music - Parents Fund,Supplies and Services,384999,Miscellaneous Expenses,03-Oct-16,5335481189,Amazon EU,5969,Other expenses,10,0,10
Children and Young Peoples Services,Education,76004,Music - Parents Fund,Supplies and Services,384999,Miscellaneous Expenses,03-Oct-16,5335481193,AMAZON UK RETAIL AMAZO,5999,Other expenses,10,0,10
Regeneration and Local Services,Culture & Sport,11060,Hardwick Park Catering,Supplies and Services,324117,Provisions,03-Oct-16,5338964675,BRAKE BROS LTD,5811,Catering costs - provisions,44.82,7.47,37.35
Regeneration and Local Services,Culture & Sport,11060,Hardwick Park Catering,Supplies and Services,324117,Provisions,03-Oct-16,5338964675 - 1,BRAKE BROS LTD,5811,Catering costs - provisions,253.88,,253.88
Regeneration and Local Services,Culture & Sport,11060,Hardwick Park Catering,Supplies and Services,324117,Provisions,03-Oct-16,5338964683,BRAKE BROS LTD,5811,Catering costs - provisions,43.86,0,43.86
Children and Young Peoples Services,Childrens Services,71746,Newton Aycliffe Childrens Centre,Supplies and Services,340001,Postages,03-Oct-16,5343064683,POST OFFICE SHOP,9402,Postages,29.39,0,29.39
Adult and Health Services,AWH Redundant Cost Centres,52974,Stanley Education Centre,Supplies and Services,340001,Postages,03-Oct-16,5343064685,POST OFFICE SHOP,9402,Postages,112.99,0,112.99
Regeneration and Local Services,Economic Development and Housing,31500,Housing Solutions - Core Team,Supplies and Services,312009,Newspapers Books and Periodicals,04-Oct-16,5338964421,DURHAM COUNTY COUNCIL,9399,Newspapers books and periodicals,12,0,12
Children and Young Peoples Services,Childrens Services,85957,Secure Management,Supplies and Services,304403,Equipment and Materials,04-Oct-16,5338964439,Amazon UK Marketplace,5942,Other consumables,29.34,0,29.34
Children and Young Peoples Services,Childrens Services,85957,Secure Management,Supplies and Services,328041,Clothing Uniforms and Laundry,04-Oct-16,5338964441,MATALAN.CO.UK,5691,Clothing uniforms and laundry,-14.95,0,-14.95
Regeneration and Local Services,Economic Development and Housing,30699,Business Growth and Innovation General,Supplies and Services,304403,Equipment and Materials,04-Oct-16,5338964449,MEETEDGAR.COM STARTER,5734,Other consumables,38.31,0,38.31
Regeneration and Local Services,Economic Development and Housing,30674,Business Services General,Transport,235057,Public Transport,04-Oct-16,5338964459,INTERNATIONAL CENT,7523,Staff travelling,4.5,0,4.5
Regeneration and Local Services,Economic Development and Housing,30737,Durham Works Flexible Fund,Supplies and Services,304259,Equipment and Materials,04-Oct-16,5338964483,GRO HM PASSPORT OFFICE,9399,Equipment-purchase and rental,32.65,0,32.65
Regeneration and Local Services,Direct Services,21242,Catering - County Hall,Supplies and Services,324117,Provisions,04-Oct-16,5338964485,JR HOLLAND FOODSERVICE,5422,Catering costs - provisions,40.68,0,40.68
Regeneration and Local Services,Direct Services,21242,Catering - County Hall,Supplies and Services,324117,Provisions,04-Oct-16,5338964489,JR HOLLAND FOODSERVICE,5422,Catering costs - provisions,6.58,0,6.58
Regeneration and Local Services,Direct Services,21242,Catering - County Hall,Supplies and Services,324117,Provisions,04-Oct-16,5338964493,BRAKE BROS LTD,5811,Catering costs - provisions,404.86,0,404.86
Regeneration and Local Services,Economic Development and Housing,30554,International Relations,Transport,235057,Public Transport,04-Oct-16,5338964499,PRINCE BISHOP SHOPPING,7523,Staff travelling,3.3,0,3.3
Regeneration and Local Services,Culture & Sport,54812,Gala Theatre - Catering etc,Supplies and Services,324117,Provisions,04-Oct-16,5338964503,JR HOLLAND FOODSERVICE,5422,Catering costs - provisions,19.88,0,19.88
Regeneration and Local Services,Culture & Sport,54812,Gala Theatre - Catering etc,Supplies and Services,324117,Provisions,04-Oct-16,5338964505,BRAKE BROS LTD,5811,Catering costs - provisions,102.18,17.03,85.15
Regeneration and Local Services,Culture & Sport,54812,Gala Theatre - Catering etc,Supplies and Services,324117,Provisions,04-Oct-16,5338964505 - 1,BRAKE BROS LTD,5811,Catering costs - provisions,74.3,,74.3
Regeneration and Local Services,Culture & Sport,54812,Gala Theatre - Catering etc,Supplies and Services,324117,Provisions,04-Oct-16,5338964513,BRAKE BROS LTD,5811,Catering costs - provisions,27.92,0,27.92
Children and Young Peoples Services,Childrens Services,85351,Framwellgate Moor CU,Supplies and Services,304259,Equipment and Materials,04-Oct-16,5338964523,CURRYS ONLINE,5732,Equipment-purchase and rental,459.98,0,459.98
Children and Young Peoples Services,Education,71732,Dean Bank Childcare,Supplies and Services,312011,Newspapers Books and Periodicals,04-Oct-16,5338964563,Amazon UK Marketplace,5942,Books-school library,3.85,0,3.85
Children and Young Peoples Services,Education,71732,Dean Bank Childcare,Supplies and Services,312011,Newspapers Books and Periodicals,04-Oct-16,5338964567,Amazon UK Marketplace,5942,Books-school library,9.78,0,9.78
Children and Young Peoples Services,Education,71732,Dean Bank Childcare,Supplies and Services,312011,Newspapers Books and Periodicals,04-Oct-16,5338964569,Amazon UK Marketplace,5942,Books-school library,3.86,0,3.86
Children and Young Peoples Services,Childrens Services,85957,Secure Management,Supplies and Services,384999,Miscellaneous Expenses,04-Oct-16,5338964611,Amazon UK Marketplace,5942,Other expenses,8.98,0,8.98
Children and Young Peoples Services,Childrens Services,85957,Secure Management,Supplies and Services,328041,Clothing Uniforms and Laundry,04-Oct-16,5338964615,WWW.PREMIERSPORT.CO.UK,5941,Clothing uniforms and laundry,39.94,6.66,33.28
Children and Young Peoples Services,Childrens Services,85957,Secure Management,Supplies and Services,384999,Miscellaneous Expenses,04-Oct-16,5338964617,Amazon UK Marketplace,5942,Other expenses,4.99,0,4.99
Children and Young Peoples Services,Childrens Services,85954,Walworth,Supplies and Services,384999,Miscellaneous Expenses,04-Oct-16,5338964619,Amazon UK Marketplace,5942,Other expenses,89.03,0,89.03
Children and Young Peoples Services,Childrens Services,85957,Secure Management,Supplies and Services,328041,Clothing Uniforms and Laundry,04-Oct-16,5338964621,WWW.FOOTLOCKER.EU,5661,Clothing uniforms and laundry,39.98,6.66,33.32
Children and Young Peoples Services,Childrens Services,85957,Secure Management,Supplies and Services,384999,Miscellaneous Expenses,04-Oct-16,5338964625,VERY.CO.UK,5964,Other expenses,7.99,0,7.99
Children and Young Peoples Services,Childrens Services,85957,Secure Management,Supplies and Services,384999,Miscellaneous Expenses,04-Oct-16,5338964627,VERY.CO.UK,5964,Other expenses,6.99,0,6.99
Children and Young Peoples Services,Childrens Services,85957,Secure Management,Supplies and Services,384999,Miscellaneous Expenses,04-Oct-16,5338964631,VERY.CO.UK,5964,Other expenses,3.99,0,3.99
Children and Young Peoples Services,Childrens Services,85957,Secure Management,Supplies and Services,312009,Newspapers Books and Periodicals,04-Oct-16,5338964635,AMAZON UK RETAIL AMAZO,5999,Newspapers books and periodicals,21.77,0,21.77
Children and Young Peoples Services,Childrens Services,85957,Secure Management,Supplies and Services,328041,Clothing Uniforms and Laundry,04-Oct-16,5338964637,SP EADE SONS LTD,5691,Clothing uniforms and laundry,79.99,0,79.99
Regeneration and Local Services,Culture & Sport,11060,Hardwick Park Catering,Supplies and Services,324117,Provisions,04-Oct-16,5338964655,JR HOLLAND FOODSERVICE,5422,Catering costs - provisions,76.92,0,76.92
Regeneration and Local Services,Culture & Sport,11060,Hardwick Park Catering,Supplies and Services,324117,Provisions,04-Oct-16,5338964659,JR HOLLAND FOODSERVICE,5422,Catering costs - provisions,34.48,0,34.48
Regeneration and Local Services,Culture & Sport,11060,Hardwick Park Catering,Supplies and Services,324117,Provisions,04-Oct-16,5338964665,JR HOLLAND FOODSERVICE,5422,Catering costs - provisions,4.16,0,4.16
Regeneration and Local Services,Culture & Sport,11060,Hardwick Park Catering,Supplies and Services,324117,Provisions,04-Oct-16,5338964685,BRAKE BROS LTD,5811,Catering costs - provisions,-45.61,-4.4,-41.21
Resources,I.C.T. Services,70205,ICT School Services - Health and Safety Services,Supplies and Services,304639,Equipment and Materials,04-Oct-16,5338964691,Amazon UK Marketplace,5942,Technicians-supplies,19.9,0,19.9
Regeneration and Local Services,Economic Development and Housing,30762,Organisational Training & Development,Employees,40149,Recruitment Instruction and Training,04-Oct-16,5338964697,CITB,8220,Training-all costs,30,5,25
Regeneration and Local Services,Economic Development and Housing,31576,B& B - Temp Accom,Supplies and Services,364320,Grants to Voluntary Organisations,04-Oct-16,5338964701,AYCLIFFE BIZ,7011,Accommodation assistance,245,0,245
Regeneration and Local Services,Economic Development and Housing,31576,B& B - Temp Accom,Supplies and Services,364320,Grants to Voluntary Organisations,04-Oct-16,5338964703,AYCLIFFE BIZ,7011,Accommodation assistance,245,0,245
Regeneration and Local Services,Economic Development and Housing,31576,B& B - Temp Accom,Supplies and Services,364320,Grants to Voluntary Organisations,04-Oct-16,5338964705,AYCLIFFE BIZ,7011,Accommodation assistance,210,0,210
Regeneration and Local Services,Economic Development and Housing,31576,B& B - Temp Accom,Supplies and Services,364320,Grants to Voluntary Organisations,04-Oct-16,5338964707,AYCLIFFE BIZ,7011,Accommodation assistance,245,0,245
Regeneration and Local Services,Economic Development and Housing,31576,B& B - Temp Accom,Supplies and Services,364320,Grants to Voluntary Organisations,04-Oct-16,5338964715,AYCLIFFE BIZ,7011,Accommodation assistance,245,0,245
Regeneration and Local Services,Economic Development and Housing,31576,B& B - Temp Accom,Supplies and Services,364320,Grants to Voluntary Organisations,04-Oct-16,5338964721,AYCLIFFE BIZ,7011,Accommodation assistance,35,0,35
Regeneration and Local Services,Direct Services,10525,Catering - Green Lane,Supplies and Services,324117,Provisions,04-Oct-16,5338964745,BRAKE BROS LTD,5811,Catering costs - provisions,10.8,1.8,9
Regeneration and Local Services,Direct Services,10525,Catering - Green Lane,Supplies and Services,324117,Provisions,04-Oct-16,5338964745 - 1,BRAKE BROS LTD,5811,Catering costs - provisions,72.64,,72.64
Children and Young Peoples Services,Education,78100,Curric and Professional Development,Supplies and Services,304403,Equipment and Materials,04-Oct-16,5338964769,AMAZON UK RETAIL AMAZO,5999,Other consumables,23.68,0,23.68
Children and Young Peoples Services,Childrens Services,88063,Bishop Auckland 0 - 5,Supplies and Services,324117,Provisions,04-Oct-16,5338964777,TESCO STORES 6329,5411,Catering costs - provisions,24.68,0,24.68
Regeneration and Local Services,Direct Services,10367,C&G - South Grounds Maintenance,Supplies and Services,304999,Equipment and Materials,04-Oct-16,5338964805,NEW ROW FARM NURSERIES,5193,Misc equipment tools and materials,33.36,5.56,27.8
Regeneration and Local Services,Direct Services,10367,C&G - South Grounds Maintenance,Supplies and Services,324117,Provisions,04-Oct-16,5338964807,J M RAINE,5399,Catering costs - provisions,56,9.33,46.67
Regeneration and Local Services,Direct Services,10367,C&G - South Grounds Maintenance,Supplies and Services,308011,Furniture,04-Oct-16,5338964819,POUNDSTRETCHER 692,5714,Furniture repair and replacement,4.99,0,4.99
Resources,I.C.T. Services,69010,Administration,Supplies and Services,312011,Newspapers Books and Periodicals,04-Oct-16,5338964831,"Amazon Svcs Europe,SAR",5942,Books-school library,14.96,0,14.96
Resources,I.C.T. Services,69010,Administration,Supplies and Services,304259,Equipment and Materials,04-Oct-16,5338964835,DURHAM COUNTY COUNCIL,9399,Equipment-purchase and rental,-20,0,-20
Regeneration and Local Services,Culture & Sport,54399,Local Delivery-Libraries,Supplies and Services,312011,Newspapers Books and Periodicals,04-Oct-16,5338964847,Amazon EU,5969,Books-school library,9.99,0,9.99
Regeneration and Local Services,Direct Services,10301,C&G - North Grounds Maintenance,Supplies and Services,304999,Equipment and Materials,04-Oct-16,5338964893,NEW ROW FARM NURSERIES,5193,Misc equipment tools and materials,499,83.17,415.83
Regeneration and Local Services,Direct Services,10301,C&G - North Grounds Maintenance,Supplies and Services,304999,Equipment and Materials,04-Oct-16,5338964897,NEW ROW FARM NURSERIES,5193,Misc equipment tools and materials,415.8,69.3,346.5
Regeneration and Local Services,Direct Services,10301,C&G - North Grounds Maintenance,Supplies and Services,304403,Equipment and Materials,04-Oct-16,5338964899,BESCOL,5231,Other consumables,27.89,4.65,23.24
Regeneration and Local Services,Direct Services,10301,C&G - North Grounds Maintenance,Supplies and Services,304259,Equipment and Materials,04-Oct-16,5338964901,HARELAW SAWMILL,5211,Equipment-purchase and rental,23.69,3.95,19.74
Regeneration and Local Services,Direct Services,21324,Catering - Meadowfield,Supplies and Services,324117,Provisions,04-Oct-16,5338964925,BRAKE BROS LTD,5811,Catering costs - provisions,56.88,0,56.88
Adult and Health Services,Head of Adults,51603,OP/PD Durham & CLS,Supplies and Services,340001,Postages,04-Oct-16,5338964963,ROYAL MAIL ONLINE SHOP,9402,Postages,119,0,119
Adult and Health Services,Head of Adults,51603,OP/PD Durham & CLS,Supplies and Services,340001,Postages,04-Oct-16,5338964967,ROYAL MAIL ONLINE SHOP,9402,Postages,-32.17,0,-32.17
Regeneration and Local Services,Economic Development and Housing,30554,International Relations,Supplies and Services,324117,Provisions,04-Oct-16,5338964999,TESCO STORES 2371,5411,Catering costs - provisions,8.94,0,8.94
Children and Young Peoples Services,Childrens Services,88011,Seaham Locality,Supplies and Services,304259,Equipment and Materials,04-Oct-16,5338965003,CURRYS ONLINE,5732,Equipment-purchase and rental,101.94,0,101.94
Children and Young Peoples Services,Childrens Services,88011,Seaham Locality,Supplies and Services,304259,Equipment and Materials,04-Oct-16,5338965007,PC WORLD ONLINE,5732,Equipment-purchase and rental,152.91,0,152.91
Regeneration and Local Services,Economic Development and Housing,31500,Housing Solutions - Core Team,Supplies and Services,304403,Equipment and Materials,04-Oct-16,5343064699,WWW.VOUCHEREXPRESS.CO.,5947,Other consumables,70,0,70
Children and Young Peoples Services,Childrens Services,85331,New Lea Childrens Home,Supplies and Services,324117,Provisions,04-Oct-16,5343064897,ASDA HOME SHOPPING,5411,Catering costs - provisions,184.19,0,184.19
Regeneration and Local Services,Economic Development and Housing,30737,Durham Works Flexible Fund,Supplies and Services,304259,Equipment and Materials,04-Oct-16,5407492807,GRO HM PASSPORT OFFICE,9399,Equipment-purchase and rental,-9.25,0,-9.25
Regeneration and Local Services,Economic Development and Housing,30699,Business Growth and Innovation General,Supplies and Services,304403,Equipment and Materials,05-Oct-16,5338964453,MEETEDGAR.COM STARTER,5734,Other consumables,1.05,0,1.05
Children and Young Peoples Services,Education,71801,Selby Cottage Childcare Centre,Supplies and Services,304259,Equipment and Materials,05-Oct-16,5343064443,WILKO RETAIL LIMIT,5722,Equipment-purchase and rental,91.15,0,91.15
Children and Young Peoples Services,Education,71801,Selby Cottage Childcare Centre,Supplies and Services,324117,Provisions,05-Oct-16,5343064445,TESCO STORES 2278,5411,Catering costs - provisions,44.77,0,44.77
Regeneration and Local Services,Direct Services,21242,Catering - County Hall,Supplies and Services,324117,Provisions,05-Oct-16,5343064515,JR HOLLAND FOODSERVICE,5422,Catering costs - provisions,117.74,0,117.74
Regeneration and Local Services,Direct Services,21242,Catering - County Hall,Supplies and Services,324117,Provisions,05-Oct-16,5343064519,JR HOLLAND FOODSERVICE,5422,Catering costs - provisions,31.35,0,31.35
Children and Young Peoples Services,Childrens Services,85351,Framwellgate Moor CU,Supplies and Services,324117,Provisions,05-Oct-16,5343064535,ASDA HOME SHOPPING,5411,Catering costs - provisions,170.42,0,170.42
Children and Young Peoples Services,Childrens Services,85351,Framwellgate Moor CU,Supplies and Services,324117,Provisions,05-Oct-16,5343064539,ASDA HOME SHOPPING,5411,Catering costs - provisions,-0.55,0,-0.55
Regeneration and Local Services,Direct Services,10301,C&G - North Grounds Maintenance,Supplies and Services,304221,Equipment and Materials,05-Oct-16,5343064571,ARCO LTD,5085,Direct materials,92.74,15.46,77.28
Children and Young Peoples Services,Childrens Services,88037,One Point YEI,Supplies and Services,304403,Equipment and Materials,05-Oct-16,5343064577,GRO HM PASSPORT OFFICE,9399,Other consumables,9.25,0,9.25
Children and Young Peoples Services,Childrens Services,85954,Walworth,Supplies and Services,384999,Miscellaneous Expenses,05-Oct-16,5343064589,Amazon UK Marketplace,5942,Other expenses,28.98,0,28.98
Children and Young Peoples Services,Childrens Services,85957,Secure Management,Supplies and Services,384999,Miscellaneous Expenses,05-Oct-16,5343064591,WWW.ALIEXPRESS.COM,5964,Other expenses,89.71,0,89.71
Children and Young Peoples Services,Childrens Services,85957,Secure Management,Supplies and Services,328041,Clothing Uniforms and Laundry,05-Oct-16,5343064593,HOUSE OF FRASER,5311,Clothing uniforms and laundry,85,0,85
Children and Young Peoples Services,Childrens Services,85957,Secure Management,Supplies and Services,384999,Miscellaneous Expenses,05-Oct-16,5343064595,VERY.CO.UK,5964,Other expenses,7.99,0,7.99
Children and Young Peoples Services,Childrens Services,85957,Secure Management,Supplies and Services,324117,Provisions,05-Oct-16,5343064599,TESCO STORES 6329,5411,Catering costs - provisions,48.68,0,48.68
Regeneration and Local Services,Direct Services,10301,C&G - North Grounds Maintenance,Supplies and Services,304259,Equipment and Materials,05-Oct-16,5343064613,HARELAW SAWMILL,5211,Equipment-purchase and rental,32.78,5.46,27.32
Regeneration and Local Services,Culture & Sport,11060,Hardwick Park Catering,Supplies and Services,324117,Provisions,05-Oct-16,5343064617,JR HOLLAND FOODSERVICE,5422,Catering costs - provisions,34.07,0,34.07
Regeneration and Local Services,Culture & Sport,11060,Hardwick Park Catering,Supplies and Services,324117,Provisions,05-Oct-16,5343064621,JR HOLLAND FOODSERVICE,5422,Catering costs - provisions,18.68,0,18.68
Regeneration and Local Services,Culture & Sport,11060,Hardwick Park Catering,Supplies and Services,324117,Provisions,05-Oct-16,5343064625,BRAKE BROS LTD,5811,Catering costs - provisions,26.4,4.4,22
Regeneration and Local Services,Culture & Sport,11060,Hardwick Park Catering,Supplies and Services,324117,Provisions,05-Oct-16,5343064625 - 1,BRAKE BROS LTD,5811,Catering costs - provisions,72.41,,72.41
Regeneration and Local Services,Economic Development and Housing,30762,Organisational Training & Development,Employees,40149,Recruitment Instruction and Training,05-Oct-16,5343064643,CITB,8220,Training-all costs,30,5,25
Regeneration and Local Services,Economic Development and Housing,30762,Organisational Training & Development,Employees,40149,Recruitment Instruction and Training,05-Oct-16,5343064645,CITB,8220,Training-all costs,30,5,25
Resources,I.C.T. Services,70204,Operations - System & Repairs Team,Transport,215013,Running Costs of Vehicles,05-Oct-16,5343064661,DVLA VEHICLE TAX,9399,Vehicle Excise Duty (VED),142.5,0,142.5
Children and Young Peoples Services,Education,70264,EDC Premises,Supplies and Services,324117,Provisions,05-Oct-16,5343064669,ASDA SUPERSTORE 4987,5411,Catering costs - provisions,20.43,3.41,17.02
Regeneration and Local Services,Direct Services,10525,Catering - Green Lane,Supplies and Services,324117,Provisions,05-Oct-16,5343064673,JR HOLLAND FOODSERVICE,5422,Catering costs - provisions,31.32,0,31.32
Children and Young Peoples Services,Childrens Services,85332,Middlestone Moor CU,Transport,235057,Public Transport,05-Oct-16,5343064725,DPRC ECOMMERCE,4789,Staff travelling,20,0,20
Children and Young Peoples Services,Childrens Services,85332,Middlestone Moor CU,Transport,235057,Public Transport,05-Oct-16,5343064727,VIRGINTRAINSEC SERVCS,4112,Staff travelling,102.7,0,102.7
Regeneration and Local Services,Economic Development and Housing,30749,Employability - Youth Contract,Supplies and Services,304403,Equipment and Materials,05-Oct-16,5343064751,DRI Microsoft H,5734,Other consumables,9.95,1.66,8.29
Children and Young Peoples Services,Childrens Services,88053,Stanley 0 - 5,Supplies and Services,304403,Equipment and Materials,05-Oct-16,5343064755,TESCO - Safetots Limit,5999,Other consumables,26.82,0,26.82
Children and Young Peoples Services,Childrens Services,88053,Stanley 0 - 5,Supplies and Services,304403,Equipment and Materials,05-Oct-16,5343064757,TESCO - Safetots Limit,5999,Other consumables,26.82,0,26.82
Children and Young Peoples Services,Childrens Services,88053,Stanley 0 - 5,Supplies and Services,304403,Equipment and Materials,05-Oct-16,5343064761,TESCO - SDY LTD,5999,Other consumables,89.99,0,89.99
Children and Young Peoples Services,Childrens Services,88053,Stanley 0 - 5,Supplies and Services,304403,Equipment and Materials,05-Oct-16,5343064763,TESCO - SDY LTD,5999,Other consumables,89.99,0,89.99
Children and Young Peoples Services,Childrens Services,88053,Stanley 0 - 5,Supplies and Services,304403,Equipment and Materials,05-Oct-16,5343064765,TESCO DIRECT,5999,Other consumables,-116.81,0,-116.81
Resources,I.C.T. Services,69010,Administration,Supplies and Services,312011,Newspapers Books and Periodicals,05-Oct-16,5343064779,Amazon UK Marketplace,5942,Books-school library,238.4,0,238.4
Resources,I.C.T. Services,69010,Administration,Third Party Payments,430100,Rendered by Private Contractors,05-Oct-16,5343064781,WP-WWW.OYEZFORMSLINK.C,7399,Payments to sub-contractors,14.8,0,14.8
Resources,I.C.T. Services,69010,Administration,Supplies and Services,312011,Newspapers Books and Periodicals,05-Oct-16,5343064783,Amazon UK Marketplace,5942,Books-school library,15.95,0,15.95
Resources,I.C.T. Services,69010,Administration,Supplies and Services,352001,Conference Expenses,05-Oct-16,5343064785,HOLIDAY INN BRISTOL CI,7011,Conferencesseminars fees etc,235.92,0,235.92
Resources,I.C.T. Services,69010,Administration,Supplies and Services,352001,Conference Expenses,05-Oct-16,5343064789,HOLIDAY INN BRISTOL CI,7011,Conferencesseminars fees etc,235.92,0,235.92
Regeneration and Local Services,Culture & Sport,54399,Local Delivery-Libraries,Supplies and Services,312011,Newspapers Books and Periodicals,05-Oct-16,5343064797,Amazon UK Marketplace,5942,Books-school library,11.42,0,11.42
Regeneration and Local Services,Culture & Sport,54399,Local Delivery-Libraries,Supplies and Services,312011,Newspapers Books and Periodicals,05-Oct-16,5343064801,Amazon EU,5969,Books-school library,17.45,0,17.45
Regeneration and Local Services,Culture & Sport,54399,Local Delivery-Libraries,Supplies and Services,304403,Equipment and Materials,05-Oct-16,5343064803,AMAZON UK RETAIL AMAZO,5999,Other consumables,11.17,0,11.17
Regeneration and Local Services,Culture & Sport,54235,Bp Auckland Town Hall Cafe,Supplies and Services,324117,Provisions,05-Oct-16,5343064847,JR HOLLAND FOODSERVICE,5422,Catering costs - provisions,29.43,0,29.43
Regeneration and Local Services,Transport and Contracted Services,31701,Care Connect All Localities,Supplies and Services,344033,Telephones,05-Oct-16,5343064851,BT BILL PAYMENT 2,4812,Telephones general-all costs,29.49,4.92,24.57
Regeneration and Local Services,Direct Services,21324,Catering - Meadowfield,Supplies and Services,324117,Provisions,05-Oct-16,5343064853,JR HOLLAND FOODSERVICE,5422,Catering costs - provisions,51.34,0,51.34
Regeneration and Local Services,Direct Services,21324,Catering - Meadowfield,Supplies and Services,324117,Provisions,05-Oct-16,5343064857,JR HOLLAND FOODSERVICE,5422,Catering costs - provisions,13.45,0,13.45
Regeneration and Local Services,Direct Services,21324,Catering - Meadowfield,Supplies and Services,324117,Provisions,05-Oct-16,5343064859,BRAKE BROS LTD,5811,Catering costs - provisions,67.56,11.26,56.3
Regeneration and Local Services,Direct Services,21324,Catering - Meadowfield,Supplies and Services,324117,Provisions,05-Oct-16,5343064859 - 1,BRAKE BROS LTD,5811,Catering costs - provisions,64.77,,64.77
Regeneration and Local Services,Culture & Sport,11086,Positive Futures,Supplies and Services,324117,Provisions,05-Oct-16,5343064885,ASDA STORES,5411,Catering costs - provisions,14.2,0,14.2
Children and Young Peoples Services,Childrens Services,88083,Ferryhill 0 - 5,Supplies and Services,324117,Provisions,05-Oct-16,5343064891,ASDA SUPERSTORE 4987,5411,Catering costs - provisions,4.48,0,4.48
Children and Young Peoples Services,Childrens Services,71404,Laurel Avenue Childrens Centre,Supplies and Services,324117,Provisions,05-Oct-16,5343064911,TESCO STORES 2371,5411,Catering costs - provisions,11.88,0,11.88
Regeneration and Local Services,Culture & Sport,10605,Woodhouse Close Leisure Complex,Supplies and Services,324117,Provisions,05-Oct-16,5343064925,JR HOLLAND FOODSERVICE,5422,Catering costs - provisions,31.98,0,31.98
Regeneration and Local Services,Spatial Policy Planning Assets & Environment,31200,North Pennines Core,Supplies and Services,304403,Equipment and Materials,05-Oct-16,5343064949,W E & J ROWLE,5947,Other consumables,11.74,0,11.74
Children and Young Peoples Services,Childrens Services,85957,Secure Management,Supplies and Services,328041,Clothing Uniforms and Laundry,05-Oct-16,5347465175,NEW LOOK INTERNET,5621,Clothing uniforms and laundry,28.98,0,28.98
Regeneration and Local Services,Economic Development and Housing,31500,Housing Solutions - Core Team,Supplies and Services,304403,Equipment and Materials,05-Oct-16,5347465225,WWW.VOUCHEREXPRESS.CO.,5947,Other consumables,70,0,70
Regeneration and Local Services,Economic Development and Housing,30737,Durham Works Flexible Fund,Supplies and Services,328041,Clothing Uniforms and Laundry,05-Oct-16,5347465317,MATALAN.CO.UK,5691,Clothing uniforms and laundry,41.95,0,41.95
Children and Young Peoples Services,Childrens Services,88037,One Point YEI,Supplies and Services,304403,Equipment and Materials,05-Oct-16,5425039095,GRO HM PASSPORT OFFICE,9399,Other consumables,-9.25,0,-9.25
Children and Young Peoples Services,Childrens Services,85957,Secure Management,Supplies and Services,384999,Miscellaneous Expenses,06-Oct-16,5343064601,WWW.ALIEXPRESS.COM,5964,Other expenses,2.47,0,2.47
Resources,Financial Services,65180,Collections,Income,720130,Fees and Charges,06-Oct-16,5347465045,COUNTY COURT,9222,Fees-legal,44,0,44
Regeneration and Local Services,Economic Development and Housing,39544,Empty Homes Cluster,Income,720130,Fees and Charges,06-Oct-16,5347465047,WWW.MONEYCLAIM.GOV,9399,Fees-legal,185,0,185
Dedicated Schools Grant,Dedicated Schools Grant,79052,Part Sighted-Belmont Comp,Supplies and Services,304259,Equipment and Materials,06-Oct-16,5347465051,ITUNES.COM/BILL,5735,Equipment-purchase and rental,6.28,0,6.28
Regeneration and Local Services,Direct Services,10383,C&G - South Street Cleansing,Transport,215995,Running Costs of Vehicles,06-Oct-16,5347465055,SNOWBALLS (RAILWAY,5533,Vehicle running expenses,60.38,10.06,50.32
Children and Young Peoples Services,Childrens Services,85957,Secure Management,Supplies and Services,304403,Equipment and Materials,06-Oct-16,5347465057,Amazon UK Marketplace,5942,Other consumables,39.99,0,39.99
Children and Young Peoples Services,Childrens Services,71449,Ferryhill One Point Hub,Supplies and Services,324117,Provisions,06-Oct-16,5347465067,ASDA STORES LTD,5411,Catering costs - provisions,8,0,8
Children and Young Peoples Services,Childrens Services,71449,Ferryhill One Point Hub,Supplies and Services,324117,Provisions,06-Oct-16,5347465067b,ASDA STORES LTD,5411,Catering costs - provisions,-8,0,-8
Regeneration and Local Services,Direct Services,10367,C&G - South Grounds Maintenance,Supplies and Services,304221,Equipment and Materials,06-Oct-16,5347465069,ARCO LTD,5085,Direct materials,476.28,79.38,396.9
Regeneration and Local Services,Direct Services,21242,Catering - County Hall,Supplies and Services,324117,Provisions,06-Oct-16,5347465075,BRAMBLES FOODS LTD,5499,Catering costs - provisions,458.27,0,458.27
Regeneration and Local Services,Direct Services,21242,Catering - County Hall,Supplies and Services,324117,Provisions,06-Oct-16,5347465077,JR HOLLAND FOODSERVICE,5422,Catering costs - provisions,189.73,0,189.73
Regeneration and Local Services,Direct Services,21242,Catering - County Hall,Supplies and Services,324117,Provisions,06-Oct-16,5347465079,JR HOLLAND FOODSERVICE,5422,Catering costs - provisions,23.24,0,23.24
Regeneration and Local Services,Direct Services,21242,Catering - County Hall,Supplies and Services,324117,Provisions,06-Oct-16,5347465081,JR HOLLAND FOODSERVICE,5422,Catering costs - provisions,13.16,0,13.16
Regeneration and Local Services,Direct Services,21242,Catering - County Hall,Supplies and Services,324117,Provisions,06-Oct-16,5347465083,JR HOLLAND FOODSERVICE,5422,Catering costs - provisions,3.81,0,3.81
Regeneration and Local Services,Direct Services,21242,Catering - County Hall,Supplies and Services,324117,Provisions,06-Oct-16,5347465087,BRAKE BROS LTD,5811,Catering costs - provisions,295.06,0,295.06
Regeneration and Local Services,Culture & Sport,54812,Gala Theatre - Catering etc,Supplies and Services,324117,Provisions,06-Oct-16,5347465095,JR HOLLAND FOODSERVICE,5422,Catering costs - provisions,55.46,0,55.46
Regeneration and Local Services,Economic Development and Housing,30749,Employability - Youth Contract,Supplies and Services,304259,Equipment and Materials,06-Oct-16,5347465129,SCREWFIX DIRECT,5211,Equipment-purchase and rental,153.95,0,153.95
Children and Young Peoples Services,Education,71732,Dean Bank Childcare,Supplies and Services,340001,Postages,06-Oct-16,5347465131,POST OFFICE COUNTER,9402,Postages,7.68,0,7.68
Children and Young Peoples Services,Education,71732,Dean Bank Childcare,Supplies and Services,324117,Provisions,06-Oct-16,5347465133,ASDA SUPERSTORE 4987,5411,Catering costs - provisions,17.4,0,17.4
Regeneration and Local Services,Economic Development and Housing,30737,Durham Works Flexible Fund,Supplies and Services,384999,Miscellaneous Expenses,06-Oct-16,5347465165,GRO HM PASSPORT OFFICE,9399,Other expenses,23.4,0,23.4
Children and Young Peoples Services,Childrens Services,85957,Secure Management,Supplies and Services,384999,Miscellaneous Expenses,06-Oct-16,5347465171,WWW.KITEPACKAGING.CO.U,5085,Other expenses,76.17,0,76.17
Children and Young Peoples Services,Childrens Services,85957,Secure Management,Supplies and Services,332047,Printing Stationery and Gen Off Exps,06-Oct-16,5347465173,CARTRIDGE SAVE,5111,Stationery,27.2,0,27.2
Children and Young Peoples Services,Childrens Services,85957,Secure Management,Supplies and Services,324117,Provisions,06-Oct-16,5347465177,TESCO STORES 6329,5411,Catering costs - provisions,122.32,0,122.32
Regeneration and Local Services,Direct Services,10301,C&G - North Grounds Maintenance,Supplies and Services,304999,Equipment and Materials,06-Oct-16,5347465185,NEW ROW FARM NURSERIES,5193,Misc equipment tools and materials,92.4,0,92.4
Regeneration and Local Services,Culture & Sport,11060,Hardwick Park Catering,Supplies and Services,324117,Provisions,06-Oct-16,5347465187,JR HOLLAND FOODSERVICE,5422,Catering costs - provisions,10.9,0,10.9
Regeneration and Local Services,Strategy Programmes and Performance,30051,Strategy Policy Partnerships and Support,Supplies and Services,342033,Computers and Communications,06-Oct-16,5347465189,AMAZON UK RETAIL AMAZO,5999,Computer hardware,11.64,0,11.64
Regeneration and Local Services,Culture & Sport,54815,Gala Theatre Stage School,Supplies and Services,304259,Equipment and Materials,06-Oct-16,5347465191,WWW.THOMANN.DE,5733,Equipment-purchase and rental,293.66,0,293.66
Regeneration and Local Services,Direct Services,21234,Catering - Locomotion,Supplies and Services,324117,Provisions,06-Oct-16,5347465199,BRAMBLES FOODS LTD,5499,Catering costs - provisions,329.01,0,329.01
Regeneration and Local Services,Culture & Sport,11204,Events,Supplies and Services,348037,Subsistence,06-Oct-16,5347465201,GREGGS,5812,Subsistence,19.8,0,19.8
Children and Young Peoples Services,Childrens Services,88037,One Point YEI,Supplies and Services,384999,Miscellaneous Expenses,06-Oct-16,5347465221,DURHAM COUNTY COUNCIL,9399,Other expenses,10,0,10
Children and Young Peoples Services,Childrens Services,88063,Bishop Auckland 0 - 5,Supplies and Services,324117,Provisions,06-Oct-16,5347465223,TESCO STORES 6329,5411,Catering costs - provisions,49.94,0,49.94
Regeneration and Local Services,Direct Services,10367,C&G - South Grounds Maintenance,Supplies and Services,324117,Provisions,06-Oct-16,5347465241,CO-OP GROUP 310015,5411,Catering costs - provisions,4.63,0,4.63
Resources,I.C.T. Services,69010,Administration,Supplies and Services,304259,Equipment and Materials,06-Oct-16,5347465249,DISCLOSURE SCOT,9399,Equipment-purchase and rental,25,0,25
Resources,I.C.T. Services,69010,Administration,Supplies and Services,304259,Equipment and Materials,06-Oct-16,5347465251,DISCLOSURE SCOT,9399,Equipment-purchase and rental,25,0,25
Regeneration and Local Services,Culture & Sport,54399,Local Delivery-Libraries,Supplies and Services,312011,Newspapers Books and Periodicals,06-Oct-16,5347465255,Amazon UK Marketplace,5942,Books-school library,4.67,0,4.67
Regeneration and Local Services,Direct Services,10301,C&G - North Grounds Maintenance,Supplies and Services,324117,Provisions,06-Oct-16,5347465287,J VAN VLIET GATESHEAD,5399,Catering costs - provisions,112.08,18.68,93.4
Regeneration and Local Services,Culture & Sport,54235,Bp Auckland Town Hall Cafe,Supplies and Services,324117,Provisions,06-Oct-16,5347465295,BRAMBLES FOODS LTD,5499,Catering costs - provisions,382.3,0,382.3
Regeneration and Local Services,Culture & Sport,11086,Positive Futures,Supplies and Services,324117,Provisions,06-Oct-16,5347465313,CO-OP GROUP 010490,5411,Catering costs - provisions,0.44,0,0.44
Children and Young Peoples Services,Childrens Services,74000,TTF-Attachment and Results,Supplies and Services,308011,Furniture,06-Oct-16,5347465321,EDS BEDS LTD,5712,Furniture repair and replacement,126,0,126
Children and Young Peoples Services,Childrens Services,74000,TTF-Attachment and Results,Supplies and Services,304403,Equipment and Materials,06-Oct-16,5347465323,TESCO - Childrens Room,5999,Other consumables,10.44,0,10.44
Children and Young Peoples Services,Childrens Services,74000,TTF-Attachment and Results,Supplies and Services,304403,Equipment and Materials,06-Oct-16,5347465325,TESCO DIRECT,5999,Other consumables,4,0,4
Children and Young Peoples Services,Childrens Services,74000,TTF-Attachment and Results,Supplies and Services,304403,Equipment and Materials,06-Oct-16,5347465327,TESCO-Seller_IST_1_240,5999,Other consumables,8.49,0,8.49
Regeneration and Local Services,Culture & Sport,10605,Woodhouse Close Leisure Complex,Supplies and Services,324117,Provisions,06-Oct-16,5347465335,BRAKE BROS LTD,5811,Catering costs - provisions,56.94,9.49,47.45
Regeneration and Local Services,Culture & Sport,10605,Woodhouse Close Leisure Complex,Supplies and Services,324117,Provisions,06-Oct-16,5347465335 - 1,BRAKE BROS LTD,5811,Catering costs - provisions,65.92,,65.92
Regeneration and Local Services,Spatial Policy Planning Assets & Environment,31200,North Pennines Core,Supplies and Services,352001,Conference Expenses,06-Oct-16,5347465359,Kashing Ashberry Gues,7011,Conferencesseminars fees etc,100,0,100
Regeneration and Local Services,Economic Development and Housing,30749,Employability - Youth Contract,Supplies and Services,328041,Clothing Uniforms and Laundry,06-Oct-16,5347465361,SELECT - BISHOP AUCKLA,5691,Clothing uniforms and laundry,64.96,0,64.96
Children and Young Peoples Services,Childrens Services,88003,Peterlee 0 - 5,Supplies and Services,308011,Furniture,06-Oct-16,5347465369,J DODDS CARPETS LTD,5713,Furniture repair and replacement,150,25,125
Children and Young Peoples Services,Childrens Services,85957,Secure Management,Supplies and Services,304403,Equipment and Materials,06-Oct-16,5352737489,AMAZON UK RETAIL AMAZO,5999,Other consumables,5.9,0,5.9
Regeneration and Local Services,Culture & Sport,54399,Local Delivery-Libraries,Supplies and Services,304403,Equipment and Materials,06-Oct-16,5352737781,AMAZON UK RETAIL AMAZO,5999,Other consumables,34.88,0,34.88
Regeneration and Local Services,Economic Development and Housing,30554,International Relations,Transport,235057,Public Transport,06-Oct-16,5366418275,LUFTHANSA,3008,Staff travelling,353.51,0,353.51
Regeneration and Local Services,Economic Development and Housing,30554,International Relations,Transport,235057,Public Transport,06-Oct-16,5366418279,LUFTHANSA,3008,Staff travelling,353.51,0,353.51
Regeneration and Local Services,Culture & Sport,54815,Gala Theatre Stage School,Supplies and Services,304259,Equipment and Materials,07-Oct-16,5347465193,WWW.THOMANN.DE,5733,Equipment-purchase and rental,8.08,0,8.08
Regeneration and Local Services,Direct Services,10383,C&G - South Street Cleansing,Transport,215995,Running Costs of Vehicles,07-Oct-16,5352737183,SNOWBALLS (RAILWAY,5533,Vehicle running expenses,62.56,10.43,52.13
Dedicated Schools Grant,Dedicated Schools Grant,79075,Learning Difficulties Team,Supplies and Services,312011,Newspapers Books and Periodicals,07-Oct-16,5352737217,Amazon EU,5969,Books-school library,17.49,0,17.49
Regeneration and Local Services,Culture & Sport,11234,Operations Locality 3,Supplies and Services,304403,Equipment and Materials,07-Oct-16,5352737221,IKEA ONLINE,5719,Other consumables,107.5,17.92,89.58
Children and Young Peoples Services,Childrens Services,71449,Ferryhill One Point Hub,Supplies and Services,384237,Miscellaneous Expenses,07-Oct-16,5352737225,WWW.LQSUNDERLAND.CO.UK,7999,Recreational exps outings parties,60,0,60
Children and Young Peoples Services,Childrens Services,71449,Ferryhill One Point Hub,Supplies and Services,384237,Miscellaneous Expenses,07-Oct-16,5352737225b,WWW.LQSUNDERLAND.CO.UK,7999,Recreational exps outings parties,-60,0,-60
Children and Young Peoples Services,Childrens Services,71449,Ferryhill One Point Hub,Supplies and Services,384237,Miscellaneous Expenses,07-Oct-16,5352737227,WWW.LQSUNDERLAND.CO.UK,7999,Recreational exps outings parties,60,0,60
Children and Young Peoples Services,Childrens Services,71449,Ferryhill One Point Hub,Supplies and Services,384237,Miscellaneous Expenses,07-Oct-16,5352737227b,WWW.LQSUNDERLAND.CO.UK,7999,Recreational exps outings parties,-60,0,-60
Regeneration and Local Services,Direct Services,10367,C&G - South Grounds Maintenance,Supplies and Services,304221,Equipment and Materials,07-Oct-16,5352737239,ARCO LTD,5085,Direct materials,190.56,31.76,158.8
Regeneration and Local Services,Economic Development and Housing,30737,Durham Works Flexible Fund,Transport,235057,Public Transport,07-Oct-16,5352737275,GO NORTH EAST - V/T,4131,Staff travelling,20.15,0,20.15
Regeneration and Local Services,Direct Services,21242,Catering - County Hall,Supplies and Services,324117,Provisions,07-Oct-16,5352737279,JR HOLLAND FOODSERVICE,5422,Catering costs - provisions,137.06,0,137.06
Regeneration and Local Services,Direct Services,21242,Catering - County Hall,Supplies and Services,324117,Provisions,07-Oct-16,5352737287,JR HOLLAND FOODSERVICE,5422,Catering costs - provisions,13.16,0,13.16
Regeneration and Local Services,Direct Services,21242,Catering - County Hall,Supplies and Services,324117,Provisions,07-Oct-16,5352737291,JR HOLLAND FOODSERVICE,5422,Catering costs - provisions,3.47,0,3.47
Regeneration and Local Services,Direct Services,21242,Catering - County Hall,Supplies and Services,324117,Provisions,07-Oct-16,5352737293,BRAKE BROS LTD,5811,Catering costs - provisions,153.9,25.65,128.25
Regeneration and Local Services,Direct Services,21242,Catering - County Hall,Supplies and Services,324117,Provisions,07-Oct-16,5352737293 - 1,BRAKE BROS LTD,5811,Catering costs - provisions,271.43,,271.43
Children and Young Peoples Services,Childrens Services,88037,One Point YEI,Supplies and Services,384999,Miscellaneous Expenses,07-Oct-16,5352737315,FIFE COUNCIL INTERNET,9399,Other expenses,15,0,15
Children and Young Peoples Services,Childrens Services,88037,One Point YEI,Supplies and Services,384999,Miscellaneous Expenses,07-Oct-16,5352737319,DURHAM COUNTY COUNCIL,9399,Other expenses,12,0,12
Children and Young Peoples Services,Childrens Services,88037,One Point YEI,Supplies and Services,384999,Miscellaneous Expenses,07-Oct-16,5352737323,DURHAM COUNTY COUNCIL,9399,Other expenses,12,0,12
Children and Young Peoples Services,Childrens Services,88037,One Point YEI,Supplies and Services,384999,Miscellaneous Expenses,07-Oct-16,5352737327,DURHAM COUNTY COUNCIL,9399,Other expenses,12,0,12
Children and Young Peoples Services,Childrens Services,88003,Peterlee 0 - 5,Supplies and Services,312011,Newspapers Books and Periodicals,07-Oct-16,5352737385,Amazon UK Marketplace,5942,Books-school library,7.78,0,7.78
Regeneration and Local Services,Economic Development and Housing,30749,Employability - Youth Contract,Transport,235057,Public Transport,07-Oct-16,5352737415,WWW.SIMPLYGO.COM,4131,Staff travelling,66.24,0,66.24
Regeneration and Local Services,Economic Development and Housing,30749,Employability - Youth Contract,Transport,235005,Public Transport,07-Oct-16,5352737419,ARRIVA PASSENGER S,7538,Contract tickets,48,0,48
Regeneration and Local Services,Direct Services,10301,C&G - North Grounds Maintenance,Supplies and Services,304403,Equipment and Materials,07-Oct-16,5352737457,BESCOL,5231,Other consumables,91.9,15.32,76.58
Regeneration and Local Services,Economic Development and Housing,30737,Durham Works Flexible Fund,Supplies and Services,384999,Miscellaneous Expenses,07-Oct-16,5352737461,GRO HM PASSPORT OFFICE,9399,Other expenses,23.4,0,23.4
Regeneration and Local Services,Economic Development and Housing,30737,Durham Works Flexible Fund,Transport,230031,Contract Hire,07-Oct-16,5352737467,GO NORTH EAST - V/T,4131,Pupils-transport to play fields etc,18.4,0,18.4
Children and Young Peoples Services,Childrens Services,85957,Secure Management,Supplies and Services,324117,Provisions,07-Oct-16,5352737483,TESCO STORES 6329,5411,Catering costs - provisions,91.5,0,91.5
Children and Young Peoples Services,Childrens Services,85956,Lumley,Supplies and Services,304403,Equipment and Materials,07-Oct-16,5352737487,TESCO DIRECT,5999,Other consumables,258,0,258
Regeneration and Local Services,Culture & Sport,11060,Hardwick Park Catering,Supplies and Services,324117,Provisions,07-Oct-16,5352737501,JR HOLLAND FOODSERVICE,5422,Catering costs - provisions,14.13,0,14.13
Regeneration and Local Services,Culture & Sport,11060,Hardwick Park Catering,Supplies and Services,324117,Provisions,07-Oct-16,5352737503,BRAKE BROS LTD,5811,Catering costs - provisions,266.88,44.48,222.4
Regeneration and Local Services,Culture & Sport,11060,Hardwick Park Catering,Supplies and Services,324117,Provisions,07-Oct-16,5352737503 - 1,BRAKE BROS LTD,5811,Catering costs - provisions,101.11,,101.11
Regeneration and Local Services,Culture & Sport,11060,Hardwick Park Catering,Supplies and Services,324117,Provisions,07-Oct-16,5352737513,BRAKE BROS LTD,5811,Catering costs - provisions,115.92,19.32,96.6
Regeneration and Local Services,Culture & Sport,11060,Hardwick Park Catering,Supplies and Services,324117,Provisions,07-Oct-16,5352737513 - 1,BRAKE BROS LTD,5811,Catering costs - provisions,161.61,,161.61
Resources,I.C.T. Services,65230,IT Renewals Fund,Supplies and Services,342033,Computers and Communications,07-Oct-16,5352737529,Amazon UK Marketplace,5942,Computer hardware,19.97,0,19.97
Regeneration and Local Services,Economic Development and Housing,30762,Organisational Training & Development,Employees,40149,Recruitment Instruction and Training,07-Oct-16,5352737535,CITB,8220,Training-all costs,30,5,25
Regeneration and Local Services,Economic Development and Housing,30762,Organisational Training & Development,Employees,40149,Recruitment Instruction and Training,07-Oct-16,5352737541,CITB,8220,Training-all costs,30,5,25
Regeneration and Local Services,Economic Development and Housing,30762,Organisational Training & Development,Employees,40149,Recruitment Instruction and Training,07-Oct-16,5352737545,CITB,8220,Training-all costs,30,5,25
Regeneration and Local Services,Direct Services,21234,Catering - Locomotion,Supplies and Services,324117,Provisions,07-Oct-16,5352737549,BRAKE BROS LTD,5811,Catering costs - provisions,226.08,37.68,188.4
Regeneration and Local Services,Direct Services,21234,Catering - Locomotion,Supplies and Services,324117,Provisions,07-Oct-16,5352737549 - 1,BRAKE BROS LTD,5811,Catering costs - provisions,60.56,,60.56
Regeneration and Local Services,Direct Services,21234,Catering - Locomotion,Supplies and Services,324117,Provisions,07-Oct-16,5352737561,BRAKE BROS LTD,5811,Catering costs - provisions,49.2,8.2,41
Regeneration and Local Services,Direct Services,21234,Catering - Locomotion,Supplies and Services,324117,Provisions,07-Oct-16,5352737561 - 1,BRAKE BROS LTD,5811,Catering costs - provisions,224.83,,224.83
Regeneration and Local Services,Direct Services,10525,Catering - Green Lane,Supplies and Services,324117,Provisions,07-Oct-16,5352737587,JR HOLLAND FOODSERVICE,5422,Catering costs - provisions,38.26,0,38.26
Regeneration and Local Services,Direct Services,10367,C&G - South Grounds Maintenance,Supplies and Services,324117,Provisions,07-Oct-16,5352737737,SCOTMID CO-OP FROS,5411,Catering costs - provisions,6.29,0,6.29
Resources,I.C.T. Services,69010,Administration,Supplies and Services,312011,Newspapers Books and Periodicals,07-Oct-16,5352737753,Amazon UK Marketplace,5942,Books-school library,44.95,0,44.95
Resources,I.C.T. Services,69010,Administration,Supplies and Services,304259,Equipment and Materials,07-Oct-16,5352737757,MIDDLESBROUGH COUNCIL,9399,Equipment-purchase and rental,12,0,12
Resources,I.C.T. Services,69010,Administration,Supplies and Services,304999,Equipment and Materials,07-Oct-16,5352737759,COUNTRY BASKETS,5193,Misc equipment tools and materials,449.26,74.88,374.38
Resources,I.C.T. Services,69010,Administration,Supplies and Services,304259,Equipment and Materials,07-Oct-16,5352737765,DURHAM COUNTY COUNCIL,9399,Equipment-purchase and rental,132,0,132
Resources,I.C.T. Services,69010,Administration,Supplies and Services,304259,Equipment and Materials,07-Oct-16,5352737767,DISCLOSURE SCOT,9399,Equipment-purchase and rental,25,0,25
Regeneration and Local Services,Culture & Sport,54399,Local Delivery-Libraries,Supplies and Services,312011,Newspapers Books and Periodicals,07-Oct-16,5352737777,Amazon UK Marketplace,5942,Books-school library,8.24,0,8.24
Regeneration and Local Services,Culture & Sport,54235,Bp Auckland Town Hall Cafe,Supplies and Services,324117,Provisions,07-Oct-16,5352737965,JR HOLLAND FOODSERVICE,5422,Catering costs - provisions,17,0,17
Regeneration and Local Services,Culture & Sport,54235,Bp Auckland Town Hall Cafe,Supplies and Services,324117,Provisions,07-Oct-16,5352737969,BRAKE BROS LTD,5811,Catering costs - provisions,29.33,0,29.33
Regeneration and Local Services,Direct Services,21324,Catering - Meadowfield,Supplies and Services,324117,Provisions,07-Oct-16,5352737977,JR HOLLAND FOODSERVICE,5422,Catering costs - provisions,27.88,0,27.88
Regeneration and Local Services,Direct Services,21324,Catering - Meadowfield,Supplies and Services,324117,Provisions,07-Oct-16,5352737983,JR HOLLAND FOODSERVICE,5422,Catering costs - provisions,9.87,0,9.87
Children and Young Peoples Services,Childrens Services,85380,Operations Manager Adoption & Fostering,Employees,40149,Recruitment Instruction and Training,07-Oct-16,5352738031,PARTRIDGE & PRINT,8299,Training-all costs,27.9,4.65,23.25
Regeneration and Local Services,Economic Development and Housing,30737,Durham Works Flexible Fund,Supplies and Services,328041,Clothing Uniforms and Laundry,07-Oct-16,5352738051,INDUSTRIAL WORKWEAR LI,5137,Clothing uniforms and laundry,16.45,0,16.45
Regeneration and Local Services,Economic Development and Housing,30737,Durham Works Flexible Fund,Supplies and Services,328041,Clothing Uniforms and Laundry,07-Oct-16,5352738055,INDUSTRIAL WORKWEAR LI,5137,Clothing uniforms and laundry,73.51,0,73.51
Regeneration and Local Services,Direct Services,21235,Catering - Wharton Park,Supplies and Services,324117,Provisions,07-Oct-16,5352738089,JR HOLLAND FOODSERVICE,5422,Catering costs - provisions,8.48,0,8.48
Regeneration and Local Services,Culture & Sport,10605,Woodhouse Close Leisure Complex,Supplies and Services,324117,Provisions,07-Oct-16,5352738121,BRAKE BROS LTD,5811,Catering costs - provisions,79.82,0,79.82
Regeneration and Local Services,Spatial Policy Planning Assets & Environment,31200,North Pennines Core,Supplies and Services,304259,Equipment and Materials,07-Oct-16,5352738155,EDEN DISTRICT COUN,9399,Equipment-purchase and rental,18,0,18
Regeneration and Local Services,Direct Services,21242,Catering - County Hall,Supplies and Services,324117,Provisions,08-Oct-16,5352737301,BRAKE BROS LTD,5811,Catering costs - provisions,-55.96,0,-55.96
Children and Young Peoples Services,Childrens Services,85957,Secure Management,Supplies and Services,324117,Provisions,08-Oct-16,5352737495,TESCO STORES 6329,5411,Catering costs - provisions,105.35,0,105.35
Children and Young Peoples Services,Childrens Services,85352,Tow Law CU,Supplies and Services,324117,Provisions,08-Oct-16,5352737645,TESCO STORES 6329,5411,Catering costs - provisions,32.52,0,32.52
Resources,Resources Management,69000,Resources Management,Supplies and Services,324117,Provisions,08-Oct-16,5352737729,CO-OP GROUP 010830,5411,Catering costs - provisions,3,0,3
Regeneration and Local Services,Direct Services,21235,Catering - Wharton Park,Supplies and Services,324117,Provisions,08-Oct-16,5352738093,BRAKE BROS LTD,5811,Catering costs - provisions,32.35,0,32.35
Regeneration and Local Services,Economic Development and Housing,31576,B& B - Temp Accom,Supplies and Services,364320,Grants to Voluntary Organisations,09-Oct-16,5352737165,ROADCHEF DURHAM,7011,Accommodation assistance,39,6.5,32.5
Children and Young Peoples Services,Education,54640,Durham Learning Resources,Supplies and Services,312011,Newspapers Books and Periodicals,10-Oct-16,5358924387,Amazon UK Marketplace,5942,Books-school library,23.82,0,23.82
Children and Young Peoples Services,Education,54640,Durham Learning Resources,Supplies and Services,328041,Clothing Uniforms and Laundry,10-Oct-16,5358924391,WWW.A2Z-KIDS.CO.UK,5641,Clothing uniforms and laundry,83.8,0,83.8
Children and Young Peoples Services,Childrens Services,88033,Durham 0 - 5,Transport,235005,Public Transport,10-Oct-16,5358924405,ARRIVA PASSENGER S,7538,Contract tickets,59,0,59
Children and Young Peoples Services,Childrens Services,88096,Newton Aycliffe Teenage Parent Programme,Supplies and Services,324117,Provisions,10-Oct-16,5358924433,ASDA HOME SHOPPING,5411,Catering costs - provisions,28.65,0,28.65
Regeneration and Local Services,Economic Development and Housing,30737,Durham Works Flexible Fund,Transport,235057,Public Transport,10-Oct-16,5358924549,GO NORTH EAST - V/T,4131,Staff travelling,13.2,0,13.2
Regeneration and Local Services,Direct Services,21242,Catering - County Hall,Supplies and Services,324117,Provisions,10-Oct-16,5358924557,BRAMBLES FOODS LTD,5499,Catering costs - provisions,841.18,0,841.18
Regeneration and Local Services,Direct Services,21242,Catering - County Hall,Supplies and Services,324117,Provisions,10-Oct-16,5358924563,FREEMAN CATERING BUTCH,5422,Catering costs - provisions,300.47,0,300.47
Regeneration and Local Services,Direct Services,21242,Catering - County Hall,Supplies and Services,324117,Provisions,10-Oct-16,5358924571,JR HOLLAND FOODSERVICE,5422,Catering costs - provisions,140.3,0,140.3
Regeneration and Local Services,Direct Services,21242,Catering - County Hall,Supplies and Services,324117,Provisions,10-Oct-16,5358924577,JR HOLLAND FOODSERVICE,5422,Catering costs - provisions,13.52,0,13.52
Regeneration and Local Services,Direct Services,21242,Catering - County Hall,Supplies and Services,324117,Provisions,10-Oct-16,5358924579,BRAKE BROS LTD,5811,Catering costs - provisions,334.92,0,334.92
Resources,I.C.T. Services,70704,ICT School Services - DLG,Supplies and Services,372009,Subscriptions,10-Oct-16,5358924603,NOMINET UK,7379,Subscriptions,13.5,2.25,11.25
Resources,I.C.T. Services,65464,Domains,Supplies and Services,372009,Subscriptions,10-Oct-16,5358924607,NOMINET UK,7379,Subscriptions,31.5,5.25,26.25
Regeneration and Local Services,Culture & Sport,54812,Gala Theatre - Catering etc,Supplies and Services,324117,Provisions,10-Oct-16,5358924625,FREEMAN CATERING BUTCH,5422,Catering costs - provisions,54.83,0,54.83
Children and Young Peoples Services,Childrens Services,85361,LAC & Permanence Team 1,Supplies and Services,304259,Equipment and Materials,10-Oct-16,5358924647,SUNDERLAND CC,9399,Equipment-purchase and rental,20,0,20
Children and Young Peoples Services,Childrens Services,85361,LAC & Permanence Team 1,Supplies and Services,304259,Equipment and Materials,10-Oct-16,5358924649,DURHAM COUNTY COUNCIL,9399,Equipment-purchase and rental,24,0,24
Children and Young Peoples Services,Education,71732,Dean Bank Childcare,Supplies and Services,324117,Provisions,10-Oct-16,5358924697,ASDA HOME SHOPPING,5411,Catering costs - provisions,47.74,0,47.74
Children and Young Peoples Services,Education,71732,Dean Bank Childcare,Supplies and Services,324117,Provisions,10-Oct-16,5358924703,ASDA HOME SHOPPING,5411,Catering costs - provisions,-1.21,0,-1.21
Children and Young Peoples Services,Childrens Services,88037,One Point YEI,Supplies and Services,304403,Equipment and Materials,10-Oct-16,5358924733,GRO HM PASSPORT OFFICE,9399,Other consumables,18.5,0,18.5
Children and Young Peoples Services,Childrens Services,85955,Auckland,Supplies and Services,304649,Equipment and Materials,10-Oct-16,5358924747,Amazon UK Marketplace,5942,Toys,15.8,0,15.8
Children and Young Peoples Services,Childrens Services,85957,Secure Management,Supplies and Services,384999,Miscellaneous Expenses,10-Oct-16,5358924749,Amazon EU,5969,Other expenses,6.8,0,6.8
Children and Young Peoples Services,Childrens Services,85965,Barnard,Supplies and Services,384999,Miscellaneous Expenses,10-Oct-16,5358924753,WWW.JOHNLEWIS.COM,5311,Other expenses,51.5,0,51.5
Children and Young Peoples Services,Childrens Services,88043,Consett 0 - 5,Supplies and Services,324117,Provisions,10-Oct-16,5358924759,TESCO STORES 4358,5411,Catering costs - provisions,11,0,11
Regeneration and Local Services,Culture & Sport,11060,Hardwick Park Catering,Supplies and Services,324117,Provisions,10-Oct-16,5358924765,FREEMAN CATERING BUTCH,5422,Catering costs - provisions,43.3,0,43.3
Regeneration and Local Services,Culture & Sport,11060,Hardwick Park Catering,Supplies and Services,324117,Provisions,10-Oct-16,5358924769,FREEMAN CATERING BUTCH,5422,Catering costs - provisions,17.57,0,17.57
Regeneration and Local Services,Culture & Sport,11060,Hardwick Park Catering,Supplies and Services,324117,Provisions,10-Oct-16,5358924773,FREEMAN CATERING BUTCH,5422,Catering costs - provisions,12.38,0,12.38
Regeneration and Local Services,Culture & Sport,11060,Hardwick Park Catering,Supplies and Services,324117,Provisions,10-Oct-16,5358924775,JR HOLLAND FOODSERVICE,5422,Catering costs - provisions,29.66,0,29.66
Regeneration and Local Services,Culture & Sport,11060,Hardwick Park Catering,Supplies and Services,324117,Provisions,10-Oct-16,5358924781,BRAKE BROS LTD,5811,Catering costs - provisions,68.88,11.48,57.4
Regeneration and Local Services,Culture & Sport,11060,Hardwick Park Catering,Supplies and Services,324117,Provisions,10-Oct-16,5358924781 - 1,BRAKE BROS LTD,5811,Catering costs - provisions,127.95,,127.95
Regeneration and Local Services,Spatial Policy Planning Assets & Environment,31200,North Pennines Core,Transport,235057,Public Transport,10-Oct-16,5358924809,VIRGINTRAINSEC DAR STN,4112,Staff travelling,14,0,14
Regeneration and Local Services,Direct Services,21234,Catering - Locomotion,Supplies and Services,324117,Provisions,10-Oct-16,5358924813,BRAMBLES FOODS LTD,5499,Catering costs - provisions,162,0,162
Regeneration and Local Services,Economic Development and Housing,31576,B& B - Temp Accom,Supplies and Services,364320,Grants to Voluntary Organisations,10-Oct-16,5358924831,TRAVELODGE,3615,Accommodation assistance,61,10.17,50.83
Regeneration and Local Services,Direct Services,10525,Catering - Green Lane,Supplies and Services,324117,Provisions,10-Oct-16,5358924835,BRAMBLES FOODS LTD,5499,Catering costs - provisions,181.95,0,181.95
Regeneration and Local Services,Direct Services,10525,Catering - Green Lane,Supplies and Services,324117,Provisions,10-Oct-16,5358924837,FREEMAN CATERING BUTCH,5422,Catering costs - provisions,28.97,0,28.97
Regeneration and Local Services,Direct Services,10525,Catering - Green Lane,Supplies and Services,324117,Provisions,10-Oct-16,5358924841,BRAKE BROS LTD,5811,Catering costs - provisions,108.3,0,108.3
Regeneration and Local Services,Projects and Business services,11105,Customer Access Points,Employees,40149,Recruitment Instruction and Training,10-Oct-16,5358924861,SHELTER,8398,Training-all costs,85.98,0,85.98
Children and Young Peoples Services,Childrens Services,88063,Bishop Auckland 0 - 5,Supplies and Services,324117,Provisions,10-Oct-16,5358924881,SAINSBURYS 2199,5411,Catering costs - provisions,42.73,0,42.73
Regeneration and Local Services,Direct Services,10367,C&G - South Grounds Maintenance,Supplies and Services,304259,Equipment and Materials,10-Oct-16,5358924905,SCREWFIX,5211,Equipment-purchase and rental,17.99,3,14.99
Children and Young Peoples Services,Childrens Services,88053,Stanley 0 - 5,Supplies and Services,304403,Equipment and Materials,10-Oct-16,5358924957,TESCO - Rinkit LTD,5999,Other consumables,56.69,0,56.69
Children and Young Peoples Services,Childrens Services,88053,Stanley 0 - 5,Supplies and Services,304403,Equipment and Materials,10-Oct-16,5358924963,TESCO DIRECT,5999,Other consumables,81,0,81
Regeneration and Local Services,Direct Services,10367,C&G - South Grounds Maintenance,Supplies and Services,324117,Provisions,10-Oct-16,5358924983,ASDA STORES,5411,Catering costs - provisions,7,0,7
Regeneration and Local Services,Direct Services,10367,C&G - South Grounds Maintenance,Supplies and Services,324117,Provisions,10-Oct-16,5358924987,ASDA STORES,5411,Catering costs - provisions,2.5,0,2.5
Resources,I.C.T. Services,69010,Administration,Supplies and Services,304259,Equipment and Materials,10-Oct-16,5358925005,DISCLOSURE SCOT,9399,Equipment-purchase and rental,25,0,25
Resources,I.C.T. Services,69010,Administration,Supplies and Services,304259,Equipment and Materials,10-Oct-16,5358925009,DISCLOSURE SCOT,9399,Equipment-purchase and rental,25,0,25
Regeneration and Local Services,Culture & Sport,54399,Local Delivery-Libraries,Supplies and Services,312011,Newspapers Books and Periodicals,10-Oct-16,5358925027,Amazon EU,5969,Books-school library,23.88,0,23.88
Regeneration and Local Services,Culture & Sport,54399,Local Delivery-Libraries,Supplies and Services,304403,Equipment and Materials,10-Oct-16,5358925033,AMAZON UK RETAIL AMAZO,5999,Other consumables,41.45,0,41.45
Regeneration and Local Services,Culture & Sport,54235,Bp Auckland Town Hall Cafe,Supplies and Services,324117,Provisions,10-Oct-16,5358925091,BRAKE BROS LTD,5811,Catering costs - provisions,2.76,0.46,2.3
Regeneration and Local Services,Culture & Sport,54235,Bp Auckland Town Hall Cafe,Supplies and Services,324117,Provisions,10-Oct-16,5358925091 - 1,BRAKE BROS LTD,5811,Catering costs - provisions,152.36,,152.36
Regeneration and Local Services,Direct Services,21324,Catering - Meadowfield,Supplies and Services,324117,Provisions,10-Oct-16,5358925097,FREEMAN CATERING BUTCH,5422,Catering costs - provisions,70.62,0,70.62
Regeneration and Local Services,Direct Services,21324,Catering - Meadowfield,Supplies and Services,324117,Provisions,10-Oct-16,5358925105,FREEMAN CATERING BUTCH,5422,Catering costs - provisions,47.28,0,47.28
Children and Young Peoples Services,Childrens Services,88073,Barnard Castle 0 - 5,Supplies and Services,304403,Equipment and Materials,10-Oct-16,5358925151,KIDDICARE,5719,Other consumables,25.98,4.33,21.65
Regeneration and Local Services,Technical Services,10984,Training and Development,Supplies and Services,312011,Newspapers Books and Periodicals,10-Oct-16,5358925155,STATIONERY OFFICE BOOK,5942,Books-school library,179.16,0,179.16
Regeneration and Local Services,Direct Services,21235,Catering - Wharton Park,Supplies and Services,324117,Provisions,10-Oct-16,5358925197,BRAKE BROS LTD,5811,Catering costs - provisions,78.06,13.01,65.05
Regeneration and Local Services,Direct Services,21235,Catering - Wharton Park,Supplies and Services,324117,Provisions,10-Oct-16,5358925197 - 1,BRAKE BROS LTD,5811,Catering costs - provisions,61.66,,61.66
Regeneration and Local Services,Culture & Sport,10605,Woodhouse Close Leisure Complex,Supplies and Services,324117,Provisions,10-Oct-16,5358925215,FREEMAN CATERING BUTCH,5422,Catering costs - provisions,43.8,0,43.8
Regeneration and Local Services,Culture & Sport,10605,Woodhouse Close Leisure Complex,Supplies and Services,324117,Provisions,10-Oct-16,5358925221,JR HOLLAND FOODSERVICE,5422,Catering costs - provisions,32.43,0,32.43
Transformation and Partnerships,Partnerships & Community Engagement Div.,60472,Syrian Vulnerable Persons Scheme,Supplies and Services,308011,Furniture,10-Oct-16,5358925259,ARGOS RETAIL GROUP,5310,Furniture repair and replacement,102.84,17.14,85.7
Transformation and Partnerships,Partnerships & Community Engagement Div.,60472,Syrian Vulnerable Persons Scheme,Supplies and Services,308011,Furniture,10-Oct-16,5358925263,WILKO.COM,5722,Furniture repair and replacement,495,82.5,412.5
Transformation and Partnerships,Partnerships & Community Engagement Div.,60472,Syrian Vulnerable Persons Scheme,Supplies and Services,308011,Furniture,10-Oct-16,5358925265,ARGOS RETAIL GROUP,5310,Furniture repair and replacement,269.2,0,269.2
Children and Young Peoples Services,Childrens Services,85955,Auckland,Supplies and Services,304649,Equipment and Materials,10-Oct-16,5362373251,WWW.CHESS.CO.UK,5399,Toys,65.89,10.98,54.91
Children and Young Peoples Services,Childrens Services,85952,Secure Education,Supplies and Services,312009,Newspapers Books and Periodicals,10-Oct-16,5362373259,AMAZON UK RETAIL AMAZO,5999,Newspapers books and periodicals,123.05,0,123.05
Children and Young Peoples Services,Childrens Services,85957,Secure Management,Supplies and Services,304403,Equipment and Materials,10-Oct-16,5362373261,AMAZON UK RETAIL AMAZO,5999,Other consumables,15.55,0,15.55
Resources,I.C.T. Services,65335,Operations - System & Repairs Trading,Supplies and Services,304303,Equipment and Materials,10-Oct-16,5362373347,AMAZON UK RETAIL AMAZO,5999,Network for resale,28.49,0,28.49
Regeneration and Local Services,Culture & Sport,54399,Local Delivery-Libraries,Supplies and Services,304403,Equipment and Materials,10-Oct-16,5362373635,AMAZON UK RETAIL AMAZO,5999,Other consumables,14.88,0,14.88
Children and Young Peoples Services,Education,76004,Music - Parents Fund,Supplies and Services,312009,Newspapers Books and Periodicals,10-Oct-16,5362373811,WWW.MUSICROOM.COM,5733,Newspapers books and periodicals,13.25,0,13.25
Children and Young Peoples Services,Education,54640,Durham Learning Resources,Supplies and Services,312011,Newspapers Books and Periodicals,11-Oct-16,5362372797,Amazon UK Marketplace,5942,Books-school library,22.24,0,22.24
Children and Young Peoples Services,Education,54640,Durham Learning Resources,Supplies and Services,328041,Clothing Uniforms and Laundry,11-Oct-16,5362372801,WWW.A2Z-KIDS.CO.UK,5641,Clothing uniforms and laundry,-29.95,0,-29.95
Children and Young Peoples Services,Education,71903,EYDCP-Sustainability EDS,Supplies and Services,304649,Equipment and Materials,11-Oct-16,5362372859,Amazon UK Marketplace,5942,Toys,3.66,0,3.66
Children and Young Peoples Services,Education,71903,EYDCP-Sustainability EDS,Supplies and Services,304649,Equipment and Materials,11-Oct-16,5362372863,Amazon UK Marketplace,5942,Toys,1.49,0,1.49
Children and Young Peoples Services,Education,71903,EYDCP-Sustainability EDS,Supplies and Services,304649,Equipment and Materials,11-Oct-16,5362372865,Amazon UK Marketplace,5942,Toys,1.8,0,1.8
Children and Young Peoples Services,Childrens Services,85957,Secure Management,Supplies and Services,304221,Equipment and Materials,11-Oct-16,5362372909,F WS LTD,5200,Direct materials,99.48,0,99.48
Children and Young Peoples Services,Childrens Services,85957,Secure Management,Supplies and Services,328041,Clothing Uniforms and Laundry,11-Oct-16,5362372913,WWW.FOOTASYLUM.COM,5941,Clothing uniforms and laundry,94.99,0,94.99
Regeneration and Local Services,Direct Services,21242,Catering - County Hall,Supplies and Services,324117,Provisions,11-Oct-16,5362373005,JR HOLLAND FOODSERVICE,5422,Catering costs - provisions,197.3,0,197.3
Regeneration and Local Services,Direct Services,21242,Catering - County Hall,Supplies and Services,324117,Provisions,11-Oct-16,5362373015,BRAKE BROS LTD,5811,Catering costs - provisions,-3.95,0,-3.95
Regeneration and Local Services,Culture & Sport,54812,Gala Theatre - Catering etc,Supplies and Services,324117,Provisions,11-Oct-16,5362373023,JR HOLLAND FOODSERVICE,5422,Catering costs - provisions,42.42,0,42.42
Regeneration and Local Services,Culture & Sport,54812,Gala Theatre - Catering etc,Supplies and Services,324117,Provisions,11-Oct-16,5362373029,BRAKE BROS LTD,5811,Catering costs - provisions,94.08,15.68,78.4
Regeneration and Local Services,Culture & Sport,54812,Gala Theatre - Catering etc,Supplies and Services,324117,Provisions,11-Oct-16,5362373029 - 1,BRAKE BROS LTD,5811,Catering costs - provisions,67.71,,67.71
Children and Young Peoples Services,Childrens Services,85361,LAC & Permanence Team 1,Supplies and Services,304259,Equipment and Materials,11-Oct-16,5362373075,GATESHEAD COUNCIL MOTO,9399,Equipment-purchase and rental,25,0,25
Regeneration and Local Services,Direct Services,10561,Fleet - Morrison Busty Fleet,Transport,215013,Running Costs of Vehicles,11-Oct-16,5362373101,DVLA VEHICLE TAX,9399,Vehicle Excise Duty (VED),232.5,0,232.5
Regeneration and Local Services,Direct Services,10900,Fleet - Meadowfield Fleet,Transport,215013,Running Costs of Vehicles,11-Oct-16,5362373109,DVLA VEHICLE TAX,9399,Vehicle Excise Duty (VED),232.5,0,232.5
Regeneration and Local Services,Direct Services,10900,Fleet - Meadowfield Fleet,Transport,215013,Running Costs of Vehicles,11-Oct-16,5362373115,DVLA VEHICLE TAX,9399,Vehicle Excise Duty (VED),232.5,0,232.5
Regeneration and Local Services,Direct Services,10900,Fleet - Meadowfield Fleet,Transport,215013,Running Costs of Vehicles,11-Oct-16,5362373119,DVLA VEHICLE TAX,9399,Vehicle Excise Duty (VED),167.5,0,167.5
Regeneration and Local Services,Direct Services,10864,Fleet - Hackworth Road Fleet,Transport,215013,Running Costs of Vehicles,11-Oct-16,5362373123,DVLA VEHICLE TAX,9399,Vehicle Excise Duty (VED),232.5,0,232.5
Regeneration and Local Services,Direct Services,10551,Fleet - Chilton Fleet,Transport,215013,Running Costs of Vehicles,11-Oct-16,5362373127,DVLA VEHICLE TAX,9399,Vehicle Excise Duty (VED),232.5,0,232.5
Regeneration and Local Services,Direct Services,10900,Fleet - Meadowfield Fleet,Transport,215013,Running Costs of Vehicles,11-Oct-16,5362373131,DVLA VEHICLE TAX,9399,Vehicle Excise Duty (VED),232.5,0,232.5
Regeneration and Local Services,Direct Services,10900,Fleet - Meadowfield Fleet,Transport,215013,Running Costs of Vehicles,11-Oct-16,5362373135,DVLA VEHICLE TAX,9399,Vehicle Excise Duty (VED),232.5,0,232.5
Regeneration and Local Services,Direct Services,10900,Fleet - Meadowfield Fleet,Transport,215013,Running Costs of Vehicles,11-Oct-16,5362373139,DVLA VEHICLE TAX,9399,Vehicle Excise Duty (VED),232.5,0,232.5
Regeneration and Local Services,Direct Services,10900,Fleet - Meadowfield Fleet,Transport,215013,Running Costs of Vehicles,11-Oct-16,5362373145,DVLA VEHICLE TAX,9399,Vehicle Excise Duty (VED),232.5,0,232.5
Regeneration and Local Services,Direct Services,10561,Fleet - Morrison Busty Fleet,Transport,215013,Running Costs of Vehicles,11-Oct-16,5362373147,DVLA VEHICLE TAX,9399,Vehicle Excise Duty (VED),232.5,0,232.5
Regeneration and Local Services,Direct Services,10900,Fleet - Meadowfield Fleet,Transport,215013,Running Costs of Vehicles,11-Oct-16,5362373153,DVLA VEHICLE TAX,9399,Vehicle Excise Duty (VED),232.5,0,232.5
Regeneration and Local Services,Direct Services,10900,Fleet - Meadowfield Fleet,Transport,215013,Running Costs of Vehicles,11-Oct-16,5362373157,DVLA VEHICLE TAX,9399,Vehicle Excise Duty (VED),232.5,0,232.5
Regeneration and Local Services,Direct Services,10900,Fleet - Meadowfield Fleet,Transport,215013,Running Costs of Vehicles,11-Oct-16,5362373163,DVLA VEHICLE TAX,9399,Vehicle Excise Duty (VED),232.5,0,232.5
Regeneration and Local Services,Direct Services,10561,Fleet - Morrison Busty Fleet,Transport,215013,Running Costs of Vehicles,11-Oct-16,5362373169,DVLA VEHICLE TAX,9399,Vehicle Excise Duty (VED),202.5,0,202.5
Regeneration and Local Services,Direct Services,10900,Fleet - Meadowfield Fleet,Transport,215013,Running Costs of Vehicles,11-Oct-16,5362373173,DVLA VEHICLE TAX,9399,Vehicle Excise Duty (VED),232.5,0,232.5
Regeneration and Local Services,Direct Services,10900,Fleet - Meadowfield Fleet,Transport,215013,Running Costs of Vehicles,11-Oct-16,5362373177,DVLA VEHICLE TAX,9399,Vehicle Excise Duty (VED),232.5,0,232.5
Regeneration and Local Services,Direct Services,10900,Fleet - Meadowfield Fleet,Transport,215013,Running Costs of Vehicles,11-Oct-16,5362373181,DVLA VEHICLE TAX,9399,Vehicle Excise Duty (VED),167.5,0,167.5
Regeneration and Local Services,Direct Services,10551,Fleet - Chilton Fleet,Transport,215013,Running Costs of Vehicles,11-Oct-16,5362373185,DVLA VEHICLE TAX,9399,Vehicle Excise Duty (VED),232.5,0,232.5
Regeneration and Local Services,Direct Services,10900,Fleet - Meadowfield Fleet,Transport,215013,Running Costs of Vehicles,11-Oct-16,5362373187,DVLA VEHICLE TAX,9399,Vehicle Excise Duty (VED),232.5,0,232.5
Children and Young Peoples Services,Education,71732,Dean Bank Childcare,Supplies and Services,328041,Clothing Uniforms and Laundry,11-Oct-16,5362373211,B&M RETAIL LTD,5310,Clothing uniforms and laundry,15.56,0,15.56
Children and Young Peoples Services,Childrens Services,85955,Auckland,Supplies and Services,384999,Miscellaneous Expenses,11-Oct-16,5362373243,"Amazon Svcs Europe,SAR",5942,Other expenses,29.88,0,29.88
Children and Young Peoples Services,Childrens Services,85955,Auckland,Supplies and Services,384999,Miscellaneous Expenses,11-Oct-16,5362373249,Amazon UK Marketplace,5942,Other expenses,23.98,0,23.98
Children and Young Peoples Services,Childrens Services,85965,Barnard,Supplies and Services,384999,Miscellaneous Expenses,11-Oct-16,5362373255,Amazon UK Marketplace,5942,Other expenses,101.96,0,101.96
Regeneration and Local Services,Culture & Sport,11060,Hardwick Park Catering,Supplies and Services,324117,Provisions,11-Oct-16,5362373299,JR HOLLAND FOODSERVICE,5422,Catering costs - provisions,68.66,0,68.66
Regeneration and Local Services,Culture & Sport,11060,Hardwick Park Catering,Supplies and Services,324117,Provisions,11-Oct-16,5362373309,JR HOLLAND FOODSERVICE,5422,Catering costs - provisions,38.1,0,38.1
Resources,I.C.T. Services,70204,Operations - System & Repairs Team,Supplies and Services,304259,Equipment and Materials,11-Oct-16,5362373343,Amazon UK Marketplace,5942,Equipment-purchase and rental,39.68,0,39.68
Regeneration and Local Services,Direct Services,21234,Catering - Locomotion,Supplies and Services,324117,Provisions,11-Oct-16,5362373361,BRAKE BROS LTD,5811,Catering costs - provisions,129.78,21.63,108.15
Regeneration and Local Services,Direct Services,21234,Catering - Locomotion,Supplies and Services,324117,Provisions,11-Oct-16,5362373361 - 1,BRAKE BROS LTD,5811,Catering costs - provisions,85.77,,85.77
Regeneration and Local Services,Culture & Sport,54819,Gala Theatre - Theatre,Supplies and Services,304259,Equipment and Materials,11-Oct-16,5362373375,RCB LOGIC LIMITED,5732,Equipment-purchase and rental,16.07,0,16.07
Regeneration and Local Services,Culture & Sport,54819,Gala Theatre - Theatre,Supplies and Services,304259,Equipment and Materials,11-Oct-16,5362373379,RCB LOGIC LIMITED,5732,Equipment-purchase and rental,213.98,35.66,178.32
Regeneration and Local Services,Direct Services,10525,Catering - Green Lane,Supplies and Services,324117,Provisions,11-Oct-16,5362373403,BRAKE BROS LTD,5811,Catering costs - provisions,21.78,3.63,18.15
Regeneration and Local Services,Direct Services,10525,Catering - Green Lane,Supplies and Services,324117,Provisions,11-Oct-16,5362373403 - 1,BRAKE BROS LTD,5811,Catering costs - provisions,87.21,,87.21
Resources,Financial Services,65170,Welfare Rights,Supplies and Services,352001,Conference Expenses,11-Oct-16,5362373435,PAYPAL COMPANYSOLU,7392,Conferencesseminars fees etc,58.8,9.8,49
Children and Young Peoples Services,Childrens Services,85352,Tow Law CU,Supplies and Services,324117,Provisions,11-Oct-16,5362373445,TESCO STORES 2371,5411,Catering costs - provisions,223.99,0,223.99
Children and Young Peoples Services,Childrens Services,88063,Bishop Auckland 0 - 5,Supplies and Services,384999,Miscellaneous Expenses,11-Oct-16,5362373459,W BOYES & CO LTD BISHO,5310,Other expenses,31.11,0,31.11
Children and Young Peoples Services,Childrens Services,74000,TTF-Attachment and Results,Supplies and Services,308011,Furniture,11-Oct-16,5362373461,EDS BEDS LTD,5712,Furniture repair and replacement,163,0,163
Regeneration and Local Services,Direct Services,10367,C&G - South Grounds Maintenance,Supplies and Services,304259,Equipment and Materials,11-Oct-16,5362373473,SCREWFIX,5211,Equipment-purchase and rental,11.77,1.96,9.81
Regeneration and Local Services,Direct Services,10367,C&G - South Grounds Maintenance,Supplies and Services,304259,Equipment and Materials,11-Oct-16,5362373477,SCREWFIX,5211,Equipment-purchase and rental,23.98,4,19.98
Children and Young Peoples Services,Childrens Services,85332,Middlestone Moor CU,Supplies and Services,324117,Provisions,11-Oct-16,5362373481,TESCO STORES 6329,5411,Catering costs - provisions,8.33,0,8.33
Regeneration and Local Services,Economic Development and Housing,30749,Employability - Youth Contract,Supplies and Services,324117,Provisions,11-Oct-16,5362373519,TESCO STORES 2371,5411,Catering costs - provisions,16.99,0,16.99
Children and Young Peoples Services,Childrens Services,85334,West Rainton Satelite Home,Supplies and Services,304259,Equipment and Materials,11-Oct-16,5362373527,H TEMPEST LIMITED,7221,Equipment-purchase and rental,21.5,0,21.5
Regeneration and Local Services,Spatial Policy Planning Assets & Environment,31200,North Pennines Core,Employees,40149,Recruitment Instruction and Training,11-Oct-16,5362373533,YORKSHIRE WILDLIFE,8398,Training-all costs,390,65,325
Transformation and Partnerships,Policy & Communications Division,60270,Corporate News,Supplies and Services,372009,Subscriptions,11-Oct-16,5362373597,ADOBE CAPTIVATE SUBS,5734,Subscriptions,22.86,0,22.86
Resources,I.C.T. Services,69010,Administration,Supplies and Services,304259,Equipment and Materials,11-Oct-16,5362373603,DISCLOSURE SCOT,9399,Equipment-purchase and rental,25,0,25
Resources,I.C.T. Services,65211,Head of Service,Supplies and Services,352001,Conference Expenses,11-Oct-16,5362373605,EB DYNAMITES 16-THE N,7399,Conferencesseminars fees etc,213.6,0,213.6
Regeneration and Local Services,Economic Development and Housing,30678,Business Development - Night Time Economy Fund,Supplies and Services,332047,Printing Stationery and Gen Off Exps,11-Oct-16,5362373607,ESCAPADERS LTD,5631,Stationery,130.95,0,130.95
Resources,I.C.T. Services,69010,Administration,Supplies and Services,342053,Computers and Communications,11-Oct-16,5362373609,INDUSTRIAL IT SYSTEMS,5045,Computer software,180,30,150
Regeneration and Local Services,Culture & Sport,54235,Bp Auckland Town Hall Cafe,Supplies and Services,324117,Provisions,11-Oct-16,5362373683,JR HOLLAND FOODSERVICE,5422,Catering costs - provisions,17.88,0,17.88
Regeneration and Local Services,Direct Services,21324,Catering - Meadowfield,Supplies and Services,324117,Provisions,11-Oct-16,5362373689,BRAKE BROS LTD,5811,Catering costs - provisions,93.2,0,93.2
Regeneration and Local Services,Economic Development and Housing,30737,Durham Works Flexible Fund,Supplies and Services,312011,Newspapers Books and Periodicals,11-Oct-16,5362373777,Amazon EU,5969,Books-school library,10.65,0,10.65
Regeneration and Local Services,Direct Services,21235,Catering - Wharton Park,Supplies and Services,324117,Provisions,11-Oct-16,5362373795,JR HOLLAND FOODSERVICE,5422,Catering costs - provisions,18.01,0,18.01
Regeneration and Local Services,Direct Services,21235,Catering - Wharton Park,Supplies and Services,324117,Provisions,11-Oct-16,5362373799,BRAKE BROS LTD,5811,Catering costs - provisions,151.56,25.26,126.3
Regeneration and Local Services,Direct Services,21235,Catering - Wharton Park,Supplies and Services,324117,Provisions,11-Oct-16,5362373799 - 1,BRAKE BROS LTD,5811,Catering costs - provisions,56.52,,56.52
Regeneration and Local Services,Direct Services,21235,Catering - Wharton Park,Supplies and Services,324117,Provisions,11-Oct-16,5362373807,BRAKE BROS LTD,5811,Catering costs - provisions,-24.61,-4.1,-20.51
Regeneration and Local Services,Economic Development and Housing,30737,Durham Works Flexible Fund,Supplies and Services,328041,Clothing Uniforms and Laundry,11-Oct-16,5362373847,INDUSTRIAL WORKWEAR LI,5137,Clothing uniforms and laundry,23.94,0,23.94
Transformation and Partnerships,Partnerships & Community Engagement Div.,60472,Syrian Vulnerable Persons Scheme,Supplies and Services,308011,Furniture,11-Oct-16,5362373851,WILKO.COM,5722,Furniture repair and replacement,460,76.67,383.33
Transformation and Partnerships,Partnerships & Community Engagement Div.,60472,Syrian Vulnerable Persons Scheme,Supplies and Services,308011,Furniture,11-Oct-16,5362373855,ASDA 4387,5411,Furniture repair and replacement,674,112.33,561.67
Transformation and Partnerships,Partnerships & Community Engagement Div.,60472,Syrian Vulnerable Persons Scheme,Supplies and Services,308011,Furniture,11-Oct-16,5362373857,ASDA 4387,5411,Furniture repair and replacement,268,44.67,223.33
Transformation and Partnerships,Partnerships & Community Engagement Div.,60472,Syrian Vulnerable Persons Scheme,Supplies and Services,308011,Furniture,11-Oct-16,5362373863,ASDA 4387,5411,Furniture repair and replacement,228,38,190
Children and Young Peoples Services,Childrens Services,88003,Peterlee 0 - 5,Supplies and Services,312011,Newspapers Books and Periodicals,11-Oct-16,5362373897,Amazon EU,5969,Books-school library,8.98,0,8.98
Children and Young Peoples Services,Childrens Services,85957,Secure Management,Supplies and Services,328041,Clothing Uniforms and Laundry,11-Oct-16,5366417727,gethelabel.com,5651,Clothing uniforms and laundry,33.94,0,33.94
Children and Young Peoples Services,Childrens Services,85351,Framwellgate Moor CU,Supplies and Services,324117,Provisions,11-Oct-16,5366417855,ASDA HOME SHOPPING,5411,Catering costs - provisions,117.09,0,117.09
Children and Young Peoples Services,Childrens Services,85351,Framwellgate Moor CU,Supplies and Services,324117,Provisions,11-Oct-16,5366417859,ASDA HOME SHOPPING,5411,Catering costs - provisions,-0.15,0,-0.15
Regeneration and Local Services,Culture & Sport,11086,Positive Futures,Supplies and Services,324117,Provisions,11-Oct-16,5366418183,ASDA STORES,5411,Catering costs - provisions,32.48,0,32.48
Children and Young Peoples Services,Childrens Services,88083,Ferryhill 0 - 5,Supplies and Services,324117,Provisions,11-Oct-16,5366418201,ASDA HOME SHOPPING,5411,Catering costs - provisions,30.4,0,30.4
Transformation and Partnerships,Partnerships & Community Engagement Div.,60472,Syrian Vulnerable Persons Scheme,Supplies and Services,308011,Furniture,11-Oct-16,5366418241,ASDA STORES LTD 4313,5411,Furniture repair and replacement,55.05,0,55.05
Children and Young Peoples Services,Education,71903,EYDCP-Sustainability EDS,Supplies and Services,304649,Equipment and Materials,12-Oct-16,5362372869,Amazon UK Marketplace,5942,Toys,0.75,0,0.75
Children and Young Peoples Services,Education,71801,Selby Cottage Childcare Centre,Supplies and Services,324117,Provisions,12-Oct-16,5366417629,ASDA HOME SHOPPING,5411,Catering costs - provisions,80.2,0,80.2
Children and Young Peoples Services,Education,71903,EYDCP-Sustainability EDS,Supplies and Services,304649,Equipment and Materials,12-Oct-16,5366417665,Amazon UK Marketplace,5942,Toys,6.3,0,6.3
Children and Young Peoples Services,Education,71903,EYDCP-Sustainability EDS,Supplies and Services,304649,Equipment and Materials,12-Oct-16,5366417671,Amazon UK Marketplace,5942,Toys,6.98,0,6.98
Children and Young Peoples Services,Education,71903,EYDCP-Sustainability EDS,Supplies and Services,304649,Equipment and Materials,12-Oct-16,5366417673,Amazon UK Marketplace,5942,Toys,6.2,0,6.2
Children and Young Peoples Services,Education,71903,EYDCP-Sustainability EDS,Supplies and Services,304649,Equipment and Materials,12-Oct-16,5366417675,Amazon UK Marketplace,5942,Toys,2.07,0,2.07
Children and Young Peoples Services,Education,71903,EYDCP-Sustainability EDS,Supplies and Services,304649,Equipment and Materials,12-Oct-16,5366417679,Amazon UK Marketplace,5942,Toys,3.38,0,3.38
Children and Young Peoples Services,Education,71903,EYDCP-Sustainability EDS,Supplies and Services,304649,Equipment and Materials,12-Oct-16,5366417681,Amazon UK Marketplace,5942,Toys,4.06,0,4.06
Children and Young Peoples Services,Education,71903,EYDCP-Sustainability EDS,Supplies and Services,304649,Equipment and Materials,12-Oct-16,5366417683,Amazon UK Marketplace,5942,Toys,11.03,0,11.03
Children and Young Peoples Services,Childrens Services,85957,Secure Management,Supplies and Services,328041,Clothing Uniforms and Laundry,12-Oct-16,5366417711,Amazon UK Marketplace,5942,Clothing uniforms and laundry,31.99,0,31.99
Children and Young Peoples Services,Childrens Services,85957,Secure Management,Supplies and Services,332047,Printing Stationery and Gen Off Exps,12-Oct-16,5366417715,Amazon UK Marketplace,5942,Stationery,4.26,0,4.26
Children and Young Peoples Services,Childrens Services,85957,Secure Management,Supplies and Services,304245,Equipment and Materials,12-Oct-16,5366417717,Amazon EU,5969,Materials,4.99,0,4.99
Children and Young Peoples Services,Childrens Services,85965,Barnard,Supplies and Services,384999,Miscellaneous Expenses,12-Oct-16,5366417721,Amazon EU,5969,Other expenses,6.85,0,6.85
Children and Young Peoples Services,Childrens Services,85957,Secure Management,Supplies and Services,384999,Miscellaneous Expenses,12-Oct-16,5366417723,Amazon EU,5969,Other expenses,15.04,0,15.04
Children and Young Peoples Services,Childrens Services,85957,Secure Management,Supplies and Services,324117,Provisions,12-Oct-16,5366417729,TESCO STORES 6329,5411,Catering costs - provisions,42.69,0,42.69
Resources,Financial Services,65180,Collections,Income,720130,Fees and Charges,12-Oct-16,5366417749,COUNTY COURT,9222,Fees-legal,44,0,44
Children and Young Peoples Services,Education,78411,16-19 Education & Training,Supplies and Services,340001,Postages,12-Oct-16,5366417777,ROYAL MAIL ONLINE SHOP,9402,Postages,280,0,280
Regeneration and Local Services,Economic Development and Housing,30737,Durham Works Flexible Fund,Supplies and Services,304259,Equipment and Materials,12-Oct-16,5366417781,GRO HM PASSPORT OFFICE,9399,Equipment-purchase and rental,23.4,0,23.4
Regeneration and Local Services,Direct Services,21242,Catering - County Hall,Supplies and Services,324117,Provisions,12-Oct-16,5366417785,JR HOLLAND FOODSERVICE,5422,Catering costs - provisions,94.93,0,94.93
Regeneration and Local Services,Direct Services,21242,Catering - County Hall,Supplies and Services,324117,Provisions,12-Oct-16,5366417795,JR HOLLAND FOODSERVICE,5422,Catering costs - provisions,31.35,0,31.35
Regeneration and Local Services,Direct Services,21242,Catering - County Hall,Supplies and Services,324117,Provisions,12-Oct-16,5366417797,BRAKE BROS LTD,5811,Catering costs - provisions,14.58,2.43,12.15
Regeneration and Local Services,Direct Services,21242,Catering - County Hall,Supplies and Services,324117,Provisions,12-Oct-16,5366417797 - 1,BRAKE BROS LTD,5811,Catering costs - provisions,320.98,,320.98
Children and Young Peoples Services,Education,70169,Durham SSP,Supplies and Services,384199,Miscellaneous Expenses,12-Oct-16,5366417809,Trainline.com Ltd,4112,Other hired and contracted services,12.49,0,12.49
Children and Young Peoples Services,Childrens Services,88037,One Point YEI,Supplies and Services,384999,Miscellaneous Expenses,12-Oct-16,5366417811,LONDON BOR`OF HILL,9399,Other expenses,11,0,11
Children and Young Peoples Services,Childrens Services,88037,One Point YEI,Supplies and Services,384999,Miscellaneous Expenses,12-Oct-16,5366417815,KENT COUNTY COUNCIL,9399,Other expenses,11,0,11
Children and Young Peoples Services,Childrens Services,88037,One Point YEI,Supplies and Services,384999,Miscellaneous Expenses,12-Oct-16,5366417817,DURHAM COUNTY COUNCIL,9399,Other expenses,12,0,12
Children and Young Peoples Services,Childrens Services,88083,Ferryhill 0 - 5,Supplies and Services,328041,Clothing Uniforms and Laundry,12-Oct-16,5366417863,ARGOS LTD,5310,Clothing uniforms and laundry,45.94,0,45.94
Children and Young Peoples Services,Education,71732,Dean Bank Childcare,Supplies and Services,324117,Provisions,12-Oct-16,5366417883,SAINSBURYS SACAT (2303,5411,Catering costs - provisions,16.8,0,16.8
Children and Young Peoples Services,Education,71732,Dean Bank Childcare,Supplies and Services,304403,Equipment and Materials,12-Oct-16,5366417887,AMAZON UK RETAIL AMAZO,5999,Other consumables,4.99,0,4.99
Children and Young Peoples Services,Childrens Services,85341,High Etherley Satelite Home,Supplies and Services,332047,Printing Stationery and Gen Off Exps,12-Oct-16,5366417889,SAINSBURYS SACAT 2199,5411,Stationery,5.5,0,5.5
Children and Young Peoples Services,Childrens Services,85341,High Etherley Satelite Home,Supplies and Services,324117,Provisions,12-Oct-16,5366417893,TESCO STORES 6329,5411,Catering costs - provisions,14.02,0,14.02
Regeneration and Local Services,Economic Development and Housing,30554,International Relations,Transport,235057,Public Transport,12-Oct-16,5366417897,PRINCE BISHOP SHOPPING,7523,Staff travelling,2.1,0,2.1
Regeneration and Local Services,Economic Development and Housing,30737,Durham Works Flexible Fund,Supplies and Services,384999,Miscellaneous Expenses,12-Oct-16,5366417913,GRO HM PASSPORT OFFICE,9399,Other expenses,23.4,0,23.4
Regeneration and Local Services,Economic Development and Housing,30737,Durham Works Flexible Fund,Supplies and Services,344033,Telephones,12-Oct-16,5366417917,CO-OP GROUP 010387,5411,Telephones general-all costs,10,0,10
Children and Young Peoples Services,Childrens Services,88094,Newton Aycliffe 5 - 19,Supplies and Services,304403,Equipment and Materials,12-Oct-16,5366417921,VUE CINEMAS WWW,7832,Other consumables,70.93,0,70.93
Regeneration and Local Services,Culture & Sport,11060,Hardwick Park Catering,Supplies and Services,324117,Provisions,12-Oct-16,5366417941,JR HOLLAND FOODSERVICE,5422,Catering costs - provisions,29.76,0,29.76
Regeneration and Local Services,Culture & Sport,11060,Hardwick Park Catering,Supplies and Services,324117,Provisions,12-Oct-16,5366417945,JR HOLLAND FOODSERVICE,5422,Catering costs - provisions,15.4,0,15.4
Regeneration and Local Services,Culture & Sport,11060,Hardwick Park Catering,Supplies and Services,324117,Provisions,12-Oct-16,5366417947,BRAKE BROS LTD,5811,Catering costs - provisions,12.6,2.1,10.5
Regeneration and Local Services,Culture & Sport,11060,Hardwick Park Catering,Supplies and Services,324117,Provisions,12-Oct-16,5366417947 - 1,BRAKE BROS LTD,5811,Catering costs - provisions,101.9,,101.9
Regeneration and Local Services,Culture & Sport,11060,Hardwick Park Catering,Supplies and Services,324117,Provisions,12-Oct-16,5366417953,BRAKE BROS LTD,5811,Catering costs - provisions,66.97,0,66.97
Resources,I.C.T. Services,65335,Operations - System & Repairs Trading,Supplies and Services,304303,Equipment and Materials,12-Oct-16,5366417967,Amazon UK Marketplace,5942,Network for resale,11.99,0,11.99
Resources,I.C.T. Services,65335,Operations - System & Repairs Trading,Supplies and Services,304639,Equipment and Materials,12-Oct-16,5366417971,THE REPLACE BASE LTD,5999,Technicians-supplies,278.57,46.43,232.14
Regeneration and Local Services,Economic Development and Housing,30762,Organisational Training & Development,Employees,40149,Recruitment Instruction and Training,12-Oct-16,5366417973,CITB,8220,Training-all costs,30,5,25
Regeneration and Local Services,Economic Development and Housing,30762,Organisational Training & Development,Employees,40149,Recruitment Instruction and Training,12-Oct-16,5366417975,CITB,8220,Training-all costs,30,5,25
Regeneration and Local Services,Economic Development and Housing,30762,Organisational Training & Development,Employees,40149,Recruitment Instruction and Training,12-Oct-16,5366417977,CITB,8220,Training-all costs,30,5,25
Regeneration and Local Services,Economic Development and Housing,30762,Organisational Training & Development,Employees,40149,Recruitment Instruction and Training,12-Oct-16,5366417979,CITB,8220,Training-all costs,30,5,25
Regeneration and Local Services,Direct Services,21234,Catering - Locomotion,Supplies and Services,324117,Provisions,12-Oct-16,5366417997,BRAKE BROS LTD,5811,Catering costs - provisions,251.69,0,251.69
Regeneration and Local Services,Direct Services,21234,Catering - Locomotion,Supplies and Services,324117,Provisions,12-Oct-16,5366418001,BRAKE BROS LTD,5811,Catering costs - provisions,19.68,3.28,16.4
Regeneration and Local Services,Culture & Sport,54819,Gala Theatre - Theatre,Supplies and Services,304403,Equipment and Materials,12-Oct-16,5366418003,FIRSTPERSONVIEW.CO.UK,5999,Other consumables,212.09,35.35,176.74
Regeneration and Local Services,Direct Services,10525,Catering - Green Lane,Supplies and Services,324117,Provisions,12-Oct-16,5366418013,JR HOLLAND FOODSERVICE,5422,Catering costs - provisions,37.97,0,37.97
Children and Young Peoples Services,Childrens Services,71746,Newton Aycliffe Childrens Centre,Supplies and Services,340001,Postages,12-Oct-16,5366418027,POST OFFICE SHOP,9402,Postages,-37.5,0,-37.5
Children and Young Peoples Services,Childrens Services,88063,Bishop Auckland 0 - 5,Supplies and Services,324117,Provisions,12-Oct-16,5366418037,WM MORRISON 040,5411,Catering costs - provisions,12.89,0,12.89
Regeneration and Local Services,Culture & Sport,54235,Bp Auckland Town Hall Cafe,Supplies and Services,324117,Provisions,12-Oct-16,5366418133,JR HOLLAND FOODSERVICE,5422,Catering costs - provisions,33.66,0,33.66
Regeneration and Local Services,Direct Services,21324,Catering - Meadowfield,Supplies and Services,324117,Provisions,12-Oct-16,5366418143,JR HOLLAND FOODSERVICE,5422,Catering costs - provisions,52.74,0,52.74
Regeneration and Local Services,Direct Services,21324,Catering - Meadowfield,Supplies and Services,324117,Provisions,12-Oct-16,5366418145,JR HOLLAND FOODSERVICE,5422,Catering costs - provisions,13.45,0,13.45
Regeneration and Local Services,Direct Services,21324,Catering - Meadowfield,Supplies and Services,324117,Provisions,12-Oct-16,5366418149,BRAKE BROS LTD,5811,Catering costs - provisions,46.08,7.68,38.4
Regeneration and Local Services,Direct Services,21324,Catering - Meadowfield,Supplies and Services,324117,Provisions,12-Oct-16,5366418149 - 1,BRAKE BROS LTD,5811,Catering costs - provisions,87.51,,87.51
Regeneration and Local Services,Culture & Sport,11086,Positive Futures,Supplies and Services,324117,Provisions,12-Oct-16,5366418187,W M MORRISONS,5411,Catering costs - provisions,13.45,0,13.45
Children and Young Peoples Services,Childrens Services,74000,TTF-Attachment and Results,Supplies and Services,304403,Equipment and Materials,12-Oct-16,5366418209,TESCO DIRECT,5999,Other consumables,143,0,143
Regeneration and Local Services,Spatial Policy Planning Assets & Environment,31217,North Pennines - Cold Blooded & Spineless,Supplies and Services,384999,Miscellaneous Expenses,12-Oct-16,5366418213,THE FRAME HOUSE LTD,5971,Other expenses,50,0,50
Regeneration and Local Services,Culture & Sport,10605,Woodhouse Close Leisure Complex,Supplies and Services,324117,Provisions,12-Oct-16,5366418229,JR HOLLAND FOODSERVICE,5422,Catering costs - provisions,25.58,0,25.58
Transformation and Partnerships,Partnerships & Community Engagement Div.,60472,Syrian Vulnerable Persons Scheme,Supplies and Services,308011,Furniture,12-Oct-16,5366418245,Amazon UK Marketplace,5942,Furniture repair and replacement,28.64,0,28.64
Transformation and Partnerships,Partnerships & Community Engagement Div.,60472,Syrian Vulnerable Persons Scheme,Supplies and Services,308011,Furniture,12-Oct-16,5366418247,VERTICAL BLINDS DIRECT,5719,Furniture repair and replacement,195.76,32.63,163.13
Transformation and Partnerships,Partnerships & Community Engagement Div.,60472,Syrian Vulnerable Persons Scheme,Supplies and Services,308011,Furniture,12-Oct-16,5366418251,ASDA 4387,5411,Furniture repair and replacement,318,53,265
Transformation and Partnerships,Partnerships & Community Engagement Div.,60472,Syrian Vulnerable Persons Scheme,Supplies and Services,308011,Furniture,12-Oct-16,5366418253,ARGOS RETAIL GROUP,5310,Furniture repair and replacement,186.26,0,186.26
Regeneration and Local Services,Spatial Policy Planning Assets & Environment,31200,North Pennines Core,Supplies and Services,324117,Provisions,12-Oct-16,5366418271,STANHOPE PAPER SHOP,5399,Catering costs - provisions,9.4,0,9.4
Children and Young Peoples Services,Education,54640,Durham Learning Resources,Supplies and Services,312011,Newspapers Books and Periodicals,13-Oct-16,5370826525,Amazon EU,5969,Books-school library,27.32,0,27.32
Dedicated Schools Grant,Dedicated Schools Grant,79052,Part Sighted-Belmont Comp,Supplies and Services,304259,Equipment and Materials,13-Oct-16,5370826541,Kindle Unlimited,5735,Equipment-purchase and rental,7.99,0,7.99
Children and Young Peoples Services,Education,71903,EYDCP-Sustainability EDS,Supplies and Services,304649,Equipment and Materials,13-Oct-16,5370826547,Amazon UK Marketplace,5942,Toys,3.49,0,3.49
Children and Young Peoples Services,Childrens Services,85952,Secure Education,Supplies and Services,384999,Miscellaneous Expenses,13-Oct-16,5370826559,WWW.THETORTOISESHOP.CO,5995,Other expenses,57.94,0,57.94
Children and Young Peoples Services,Childrens Services,85957,Secure Management,Supplies and Services,324117,Provisions,13-Oct-16,5370826563,TESCO STORES 6329,5411,Catering costs - provisions,117.86,0,117.86
Children and Young Peoples Services,Childrens Services,85342,9 Cedar Drive Aycliffe,Supplies and Services,328041,Clothing Uniforms and Laundry,13-Oct-16,5370826569,WWW.SWI.CO.UK,5655,Clothing uniforms and laundry,73.3,0,73.3
Resources,Financial Services,65180,Collections,Income,720130,Fees and Charges,13-Oct-16,5370826577,HMCOURT-SERVICES.G,9222,Fees-legal,110,0,110
Resources,Financial Services,65180,Collections,Income,720130,Fees and Charges,13-Oct-16,5370826581,WWW.MONEYCLAIM.GOV,9399,Fees-legal,60,0,60
Resources,Financial Services,65180,Collections,Income,720130,Fees and Charges,13-Oct-16,5370826583,WWW.MONEYCLAIM.GOV,9399,Fees-legal,624.48,0,624.48
Resources,Financial Services,65180,Collections,Income,720130,Fees and Charges,13-Oct-16,5370826585,WWW.MONEYCLAIM.GOV,9399,Fees-legal,70,0,70
Regeneration and Local Services,Economic Development and Housing,30674,Business Services General,Supplies and Services,348037,Subsistence,13-Oct-16,5370826593,MARTON WAY HOTEL,5812,Subsistence,3.97,0,3.97
Regeneration and Local Services,Direct Services,10367,C&G - South Grounds Maintenance,Supplies and Services,304259,Equipment and Materials,13-Oct-16,5370826601,MKM PETERLEE,5211,Equipment-purchase and rental,4.98,0.83,4.15
Regeneration and Local Services,Direct Services,10367,C&G - South Grounds Maintenance,Supplies and Services,304259,Equipment and Materials,13-Oct-16,5370826603,MKM PETERLEE,5211,Equipment-purchase and rental,25.69,4.28,21.41
Regeneration and Local Services,Direct Services,21242,Catering - County Hall,Supplies and Services,324117,Provisions,13-Oct-16,5370826631,JR HOLLAND FOODSERVICE,5422,Catering costs - provisions,90.78,0,90.78
Regeneration and Local Services,Direct Services,21242,Catering - County Hall,Supplies and Services,324117,Provisions,13-Oct-16,5370826637,JR HOLLAND FOODSERVICE,5422,Catering costs - provisions,42.26,0,42.26
Regeneration and Local Services,Direct Services,21242,Catering - County Hall,Supplies and Services,324117,Provisions,13-Oct-16,5370826639,JR HOLLAND FOODSERVICE,5422,Catering costs - provisions,13.16,0,13.16
Regeneration and Local Services,Direct Services,21242,Catering - County Hall,Supplies and Services,324117,Provisions,13-Oct-16,5370826641,BRAKE BROS LTD,5811,Catering costs - provisions,129.94,0,129.94
Regeneration and Local Services,Culture & Sport,54812,Gala Theatre - Catering etc,Supplies and Services,324117,Provisions,13-Oct-16,5370826649,JR HOLLAND FOODSERVICE,5422,Catering costs - provisions,36.98,0,36.98
Children and Young Peoples Services,Childrens Services,88083,Ferryhill 0 - 5,Supplies and Services,328041,Clothing Uniforms and Laundry,13-Oct-16,5370826663,ARGOS RETAIL GROUP,5310,Clothing uniforms and laundry,24.99,0,24.99
Children and Young Peoples Services,Education,71732,Dean Bank Childcare,Supplies and Services,312011,Newspapers Books and Periodicals,13-Oct-16,5370826685,Amazon UK Marketplace,5942,Books-school library,6.68,0,6.68
Children and Young Peoples Services,Education,71732,Dean Bank Childcare,Supplies and Services,312011,Newspapers Books and Periodicals,13-Oct-16,5370826687,Amazon EU,5969,Books-school library,3.99,0,3.99
Children and Young Peoples Services,Education,71732,Dean Bank Childcare,Supplies and Services,324117,Provisions,13-Oct-16,5370826691,SAINSBURYS SACAT 0776,5411,Catering costs - provisions,6,0,6
Children and Young Peoples Services,Education,71732,Dean Bank Childcare,Supplies and Services,304259,Equipment and Materials,13-Oct-16,5370826693,WILKO DURHAM 426,5722,Equipment-purchase and rental,16.7,0,16.7
Children and Young Peoples Services,Childrens Services,85341,High Etherley Satelite Home,Supplies and Services,328041,Clothing Uniforms and Laundry,13-Oct-16,5370826697,WWW.ROCKRUN.COM,5998,Clothing uniforms and laundry,28.5,0,28.5
Regeneration and Local Services,Economic Development and Housing,30737,Durham Works Flexible Fund,Supplies and Services,324117,Provisions,13-Oct-16,5370826707,NEWS ON THE STREET,5411,Catering costs - provisions,25.5,0,25.5
Regeneration and Local Services,Economic Development and Housing,30501,Physical Development Management & Admin,Supplies and Services,384999,Miscellaneous Expenses,13-Oct-16,5370826717,EFORCE,7922,Other expenses,180,30,150
Regeneration and Local Services,Direct Services,11170,Nei.Prot - Community Safety Ops,Supplies and Services,304403,Equipment and Materials,13-Oct-16,5370826719,AMAZON UK RETAIL AMAZO,5999,Other consumables,52.15,0,52.15
Regeneration and Local Services,Direct Services,10301,C&G - North Grounds Maintenance,Supplies and Services,312011,Newspapers Books and Periodicals,13-Oct-16,5370826747,GRALANDS WOODWORK SUPP,5251,Books-school library,19.22,0,19.22
Regeneration and Local Services,Direct Services,10301,C&G - North Grounds Maintenance,Supplies and Services,304259,Equipment and Materials,13-Oct-16,5370826749,HARELAW SAWMILL,5211,Equipment-purchase and rental,50.4,0,50.4
Regeneration and Local Services,Direct Services,10367,C&G - South Grounds Maintenance,Supplies and Services,304259,Equipment and Materials,13-Oct-16,5370826757,SCREWFIX,5211,Equipment-purchase and rental,23.78,3.96,19.82
Regeneration and Local Services,Culture & Sport,11060,Hardwick Park Catering,Supplies and Services,324117,Provisions,13-Oct-16,5370826767,JR HOLLAND FOODSERVICE,5422,Catering costs - provisions,16.19,0,16.19
Resources,I.C.T. Services,65335,Operations - System & Repairs Trading,Supplies and Services,304639,Equipment and Materials,13-Oct-16,5370826773,Amazon UK Marketplace,5942,Technicians-supplies,2.99,0,2.99
Resources,I.C.T. Services,70204,Operations - System & Repairs Team,Supplies and Services,304639,Equipment and Materials,13-Oct-16,5370826777,Amazon UK Marketplace,5942,Technicians-supplies,16.08,0,16.08
Regeneration and Local Services,Direct Services,10525,Catering - Green Lane,Supplies and Services,324117,Provisions,13-Oct-16,5370826801,JR HOLLAND FOODSERVICE,5422,Catering costs - provisions,-2.46,0,-2.46
Regeneration and Local Services,Direct Services,10367,C&G - South Grounds Maintenance,Supplies and Services,304259,Equipment and Materials,13-Oct-16,5370826827,B & Q 1120,5211,Equipment-purchase and rental,6,1,5
Regeneration and Local Services,Direct Services,10913,Bldg Serv - Construction General,Supplies and Services,304335,Equipment and Materials,13-Oct-16,5370826865,Amazon UK Marketplace,5942,ICT supplies etc,9.95,0,9.95
Resources,I.C.T. Services,69010,Administration,Supplies and Services,304259,Equipment and Materials,13-Oct-16,5370826869,HARTLEPOOL BC CNP,9399,Equipment-purchase and rental,14.25,0,14.25
Resources,Internal Audit and Insurance,65104,Internal Audit,Employees,40149,Recruitment Instruction and Training,13-Oct-16,5370826871,WWW.AAT-ORG.UK,8931,Training-all costs,90,0,90
Resources,I.C.T. Services,69010,Administration,Transport,235057,Public Transport,13-Oct-16,5370826875,OYSTER RENEW WEB,4112,Staff travelling,50,0,50
Regeneration and Local Services,Economic Development and Housing,30678,Business Development - Night Time Economy Fund,Supplies and Services,304403,Equipment and Materials,13-Oct-16,5370826879,PARTYPUFFIN.CO.UK,5947,Other consumables,67.55,0,67.55
Resources,I.C.T. Services,69010,Administration,Supplies and Services,304259,Equipment and Materials,13-Oct-16,5370826881,BPOOL COUNCIL,9399,Equipment-purchase and rental,10,0,10
Resources,I.C.T. Services,69010,Administration,Supplies and Services,328041,Clothing Uniforms and Laundry,13-Oct-16,5370826883,ESCAPADERS LTD,5631,Clothing uniforms and laundry,46.97,0,46.97
Resources,I.C.T. Services,69010,Administration,Supplies and Services,304259,Equipment and Materials,13-Oct-16,5370826885,DURHAM COUNTY COUNCIL,9399,Equipment-purchase and rental,24,0,24
Resources,I.C.T. Services,69010,Administration,Supplies and Services,352001,Conference Expenses,13-Oct-16,5370826887,IMPERIAL LONDON HOTELS,7011,Conferencesseminars fees etc,119,0,119
Regeneration and Local Services,Economic Development and Housing,30678,Business Development - Night Time Economy Fund,Supplies and Services,304403,Equipment and Materials,13-Oct-16,5370826889,SAM MARTIN,5999,Other consumables,60.99,0,60.99
Regeneration and Local Services,Culture & Sport,54399,Local Delivery-Libraries,Supplies and Services,312011,Newspapers Books and Periodicals,13-Oct-16,5370826899,Amazon EU,5969,Books-school library,6.06,0,6.06
Regeneration and Local Services,Direct Services,10301,C&G - North Grounds Maintenance,Supplies and Services,312011,Newspapers Books and Periodicals,13-Oct-16,5370826931,GRALANDS WOODWORK SUPP,5251,Books-school library,7.5,0,7.5
Children and Young Peoples Services,Childrens Services,74000,TTF-Attachment and Results,Supplies and Services,328041,Clothing Uniforms and Laundry,13-Oct-16,5370826973,ARGOS RETAIL GROUP,5310,Clothing uniforms and laundry,139.97,0,139.97
Regeneration and Local Services,Culture & Sport,10605,Woodhouse Close Leisure Complex,Supplies and Services,324117,Provisions,13-Oct-16,5370826983,BRAKE BROS LTD,5811,Catering costs - provisions,69.72,11.62,58.1
Regeneration and Local Services,Culture & Sport,10605,Woodhouse Close Leisure Complex,Supplies and Services,324117,Provisions,13-Oct-16,5370826983 - 1,BRAKE BROS LTD,5811,Catering costs - provisions,100.27,,100.27
Adult and Health Services,Planning & Service Strategy,52969,Service Support Team 1,Supplies and Services,338064,Services,13-Oct-16,5370826985,DISCLOSURE SCOT,9399,Disclosure & Barring (DBS) Fees,25,0,25
Transformation and Partnerships,Partnerships & Community Engagement Div.,60472,Syrian Vulnerable Persons Scheme,Supplies and Services,308011,Furniture,13-Oct-16,5370826993,TERRYS TEXTILES LT,5949,Furniture repair and replacement,205.84,34.31,171.53
Regeneration and Local Services,Economic Development and Housing,30749,Employability - Youth Contract,Employees,40149,Recruitment Instruction and Training,13-Oct-16,5375987927,WWW.CAMBRIDGEASSES,8220,Training-all costs,43,0,43
Dedicated Schools Grant,Dedicated Schools Grant,79044,Home Tuition - Mid,Supplies and Services,384999,Miscellaneous Expenses,14-Oct-16,5370826723,"Amazon Svcs Europe,SAR",5942,Other expenses,36.92,0,36.92
Regeneration and Local Services,Economic Development and Housing,31576,B& B - Temp Accom,Supplies and Services,364320,Grants to Voluntary Organisations,14-Oct-16,5370826799,DAYS INN,7011,Accommodation assistance,55,0,55
Children and Young Peoples Services,Childrens Services,88023,Chester Le Street 0 - 5,Supplies and Services,312011,Newspapers Books and Periodicals,14-Oct-16,5370826845,Amazon UK Marketplace,5942,Books-school library,15.86,0,15.86
Children and Young Peoples Services,Education,54640,Durham Learning Resources,Supplies and Services,312011,Newspapers Books and Periodicals,14-Oct-16,5375987205,Amazon EU,5969,Books-school library,13.66,0,13.66
Adult and Health Services,Head of Adults,52720,Mental Health S28A and Central,Income,720130,Fees and Charges,14-Oct-16,5375987209,COUNTY COURT,9222,Fees-legal,110,0,110
Children and Young Peoples Services,Childrens Services,85957,Secure Management,Supplies and Services,324117,Provisions,14-Oct-16,5375987241,TESCO STORES 6329,5411,Catering costs - provisions,94.04,0,94.04
Regeneration and Local Services,Economic Development and Housing,30699,Business Growth and Innovation General,Supplies and Services,342033,Computers and Communications,14-Oct-16,5375987265,WATCHFULPAYPAL,7379,Computer hardware,16.37,0,16.37
Regeneration and Local Services,Direct Services,10367,C&G - South Grounds Maintenance,Supplies and Services,304259,Equipment and Materials,14-Oct-16,5375987291,SCREWFIX,5211,Equipment-purchase and rental,43.55,7.26,36.29
Regeneration and Local Services,Direct Services,10367,C&G - South Grounds Maintenance,Supplies and Services,304259,Equipment and Materials,14-Oct-16,5375987295,SCREWFIX,5211,Equipment-purchase and rental,8.99,1.5,7.49
Regeneration and Local Services,Economic Development and Housing,30737,Durham Works Flexible Fund,Transport,235057,Public Transport,14-Oct-16,5375987305,GO NORTH EAST - V/T,4131,Staff travelling,20.15,0,20.15
Regeneration and Local Services,Economic Development and Housing,30737,Durham Works Flexible Fund,Supplies and Services,324117,Provisions,14-Oct-16,5375987307,ASDA STORES LTD,5411,Catering costs - provisions,67.05,0,67.05
Regeneration and Local Services,Direct Services,21242,Catering - County Hall,Supplies and Services,324117,Provisions,14-Oct-16,5375987311,JR HOLLAND FOODSERVICE,5422,Catering costs - provisions,55.76,0,55.76
Regeneration and Local Services,Direct Services,21242,Catering - County Hall,Supplies and Services,324117,Provisions,14-Oct-16,5375987315,JR HOLLAND FOODSERVICE,5422,Catering costs - provisions,13.16,0,13.16
Children and Young Peoples Services,Childrens Services,88037,One Point YEI,Supplies and Services,384999,Miscellaneous Expenses,14-Oct-16,5375987327,DURHAM COUNTY COUNCIL,9399,Other expenses,12,0,12
Children and Young Peoples Services,Childrens Services,88037,One Point YEI,Supplies and Services,384999,Miscellaneous Expenses,14-Oct-16,5375987331,DURHAM COUNTY COUNCIL,9399,Other expenses,12,0,12
Children and Young Peoples Services,Childrens Services,88037,One Point YEI,Supplies and Services,384999,Miscellaneous Expenses,14-Oct-16,5375987335,NEWCASTLE CC INET,9399,Other expenses,12.24,0,12.24
Regeneration and Local Services,Strategy Programmes and Performance,30053,Building Capacity Exchange,Supplies and Services,384926,Miscellaneous Expenses,14-Oct-16,5375987349,THORNTONS,5441,International visits,25.05,0,25.05
Regeneration and Local Services,Direct Services,10551,Fleet - Chilton Fleet,Transport,215013,Running Costs of Vehicles,14-Oct-16,5375987375,DVLA VEHICLE TAX,9399,Vehicle Excise Duty (VED),232.5,0,232.5
Regeneration and Local Services,Direct Services,10551,Fleet - Chilton Fleet,Transport,215013,Running Costs of Vehicles,14-Oct-16,5375987377,DVLA VEHICLE TAX,9399,Vehicle Excise Duty (VED),232.5,0,232.5
Regeneration and Local Services,Economic Development and Housing,30749,Employability - Youth Contract,Supplies and Services,324117,Provisions,14-Oct-16,5375987389,CO-OP GROUP 010467,5411,Catering costs - provisions,17.7,0,17.7
Regeneration and Local Services,Economic Development and Housing,30554,International Relations,Transport,235057,Public Transport,14-Oct-16,5375987403,NCP LIMITED,7523,Staff travelling,5.95,0.99,4.96
Regeneration and Local Services,Culture & Sport,11060,Hardwick Park Catering,Supplies and Services,324117,Provisions,14-Oct-16,5375987451,BRAKE BROS LTD,5811,Catering costs - provisions,119.22,19.87,99.35
Regeneration and Local Services,Culture & Sport,11060,Hardwick Park Catering,Supplies and Services,324117,Provisions,14-Oct-16,5375987451 - 1,BRAKE BROS LTD,5811,Catering costs - provisions,191.04,,191.04
Resources,I.C.T. Services,65335,Operations - System & Repairs Trading,Supplies and Services,304639,Equipment and Materials,14-Oct-16,5375987475,Amazon UK Marketplace,5942,Technicians-supplies,7.23,0,7.23
Resources,I.C.T. Services,70205,ICT School Services - Health and Safety Services,Supplies and Services,304639,Equipment and Materials,14-Oct-16,5375987477,Amazon UK Marketplace,5942,Technicians-supplies,17.84,0,17.84
Regeneration and Local Services,Economic Development and Housing,30762,Organisational Training & Development,Employees,40149,Recruitment Instruction and Training,14-Oct-16,5375987479,CITB,8220,Training-all costs,30,5,25
Regeneration and Local Services,Economic Development and Housing,30762,Organisational Training & Development,Employees,40149,Recruitment Instruction and Training,14-Oct-16,5375987483,CITB,8220,Training-all costs,30,5,25
Regeneration and Local Services,Economic Development and Housing,30762,Organisational Training & Development,Employees,40149,Recruitment Instruction and Training,14-Oct-16,5375987485,CITB,8220,Training-all costs,30,5,25
Regeneration and Local Services,Culture & Sport,11204,Events,Supplies and Services,324117,Provisions,14-Oct-16,5375987495,ASDA SUPERSTORE 4987,5411,Catering costs - provisions,18.06,0,18.06
Regeneration and Local Services,Culture & Sport,11204,Events,Supplies and Services,348037,Subsistence,14-Oct-16,5375987499,GREGGS,5812,Subsistence,16.45,0,16.45
Regeneration and Local Services,Culture & Sport,11204,Events,Supplies and Services,324117,Provisions,14-Oct-16,5375987501,GREGGS,5812,Catering costs - provisions,6.1,0,6.1
Regeneration and Local Services,Direct Services,10525,Catering - Green Lane,Supplies and Services,324117,Provisions,14-Oct-16,5375987519,JR HOLLAND FOODSERVICE,5422,Catering costs - provisions,64.57,0,64.57
Regeneration and Local Services,Direct Services,10525,Catering - Green Lane,Supplies and Services,324117,Provisions,14-Oct-16,5375987525,BRAKE BROS LTD,5811,Catering costs - provisions,100.75,0,100.75
Children and Young Peoples Services,Childrens Services,85332,Middlestone Moor CU,Transport,235057,Public Transport,14-Oct-16,5375987573,BISHOP AUCKLAND STN TO,4112,Staff travelling,48.4,0,48.4
Children and Young Peoples Services,Childrens Services,85334,West Rainton Satelite Home,Supplies and Services,384237,Miscellaneous Expenses,14-Oct-16,5375987599,WWW.ADVENTUREVALLEY.CO,7999,Recreational exps outings parties,77.75,0,77.75
Resources,I.C.T. Services,69010,Administration,Supplies and Services,312011,Newspapers Books and Periodicals,14-Oct-16,5375987637,Amazon UK Marketplace,5942,Books-school library,28.67,0,28.67
Resources,I.C.T. Services,69010,Administration,Supplies and Services,384999,Miscellaneous Expenses,14-Oct-16,5375987639,WWW.MEGAFANCYDRESS.CO.,5945,Other expenses,50.97,0,50.97
Resources,I.C.T. Services,69010,Administration,Supplies and Services,304259,Equipment and Materials,14-Oct-16,5375987643,DARLINGTON BC INTERNET,9399,Equipment-purchase and rental,12,0,12
Resources,I.C.T. Services,69010,Administration,Supplies and Services,304259,Equipment and Materials,14-Oct-16,5375987645,DURHAM COUNTY COUNCIL,9399,Equipment-purchase and rental,108,0,108
Regeneration and Local Services,Culture & Sport,54399,Local Delivery-Libraries,Supplies and Services,304999,Equipment and Materials,14-Oct-16,5375987657,Amazon Prime,5968,Misc equipment tools and materials,7.99,0,7.99
Regeneration and Local Services,Direct Services,10301,C&G - North Grounds Maintenance,Supplies and Services,324117,Provisions,14-Oct-16,5375987695,J VAN VLIET GATESHEAD,5399,Catering costs - provisions,228,38,190
Regeneration and Local Services,Culture & Sport,54235,Bp Auckland Town Hall Cafe,Supplies and Services,324117,Provisions,14-Oct-16,5375987705,JR HOLLAND FOODSERVICE,5422,Catering costs - provisions,9.01,0,9.01
Regeneration and Local Services,Transport and Contracted Services,31701,Care Connect All Localities,Supplies and Services,344033,Telephones,14-Oct-16,5375987709,BT BILL PAYMENT 2,4812,Telephones general-all costs,88.47,14.75,73.72
Regeneration and Local Services,Transport and Contracted Services,31701,Care Connect All Localities,Supplies and Services,344033,Telephones,14-Oct-16,5375987713,BT BILL PAYMENT 2,4812,Telephones general-all costs,88.47,14.75,73.72
Regeneration and Local Services,Transport and Contracted Services,31701,Care Connect All Localities,Supplies and Services,344033,Telephones,14-Oct-16,5375987715,BT BILL PAYMENT 2,4812,Telephones general-all costs,88.47,14.75,73.72
Regeneration and Local Services,Transport and Contracted Services,31701,Care Connect All Localities,Supplies and Services,344033,Telephones,14-Oct-16,5375987719,BT BILL PAYMENT 2,4812,Telephones general-all costs,15.3,2.55,12.75
Regeneration and Local Services,Transport and Contracted Services,31701,Care Connect All Localities,Supplies and Services,344033,Telephones,14-Oct-16,5375987721,BT BILL PAYMENT 2,4812,Telephones general-all costs,84.72,14.12,70.6
Regeneration and Local Services,Direct Services,21324,Catering - Meadowfield,Supplies and Services,324117,Provisions,14-Oct-16,5375987731,JR HOLLAND FOODSERVICE,5422,Catering costs - provisions,46.68,0,46.68
Regeneration and Local Services,Direct Services,21324,Catering - Meadowfield,Supplies and Services,324117,Provisions,14-Oct-16,5375987737,JR HOLLAND FOODSERVICE,5422,Catering costs - provisions,9.87,0,9.87
Regeneration and Local Services,Direct Services,21235,Catering - Wharton Park,Supplies and Services,324117,Provisions,14-Oct-16,5375987817,JR HOLLAND FOODSERVICE,5422,Catering costs - provisions,32.52,0,32.52
Regeneration and Local Services,Culture & Sport,10605,Woodhouse Close Leisure Complex,Supplies and Services,324117,Provisions,14-Oct-16,5375987839,BRAKE BROS LTD,5811,Catering costs - provisions,113.41,0,113.41
Regeneration and Local Services,Culture & Sport,11225,Locality 2 Team Management,Supplies and Services,324117,Provisions,14-Oct-16,5375987867,ASDA SUPERSTORE 4987,5411,Catering costs - provisions,45,0,45
Transformation and Partnerships,Partnerships & Community Engagement Div.,60472,Syrian Vulnerable Persons Scheme,Supplies and Services,308011,Furniture,14-Oct-16,5375987891,TERRYS TEXTILES LT,5949,Furniture repair and replacement,159.96,26.66,133.3
Regeneration and Local Services,Spatial Policy Planning Assets & Environment,31200,North Pennines Core,Supplies and Services,324117,Provisions,14-Oct-16,5375987917,SCOTMID CO-OP STANHOPE,5411,Catering costs - provisions,2.49,0,2.49
Children and Young Peoples Services,Childrens Services,85957,Secure Management,Supplies and Services,324117,Provisions,15-Oct-16,5375987243,TESCO STORES 6329,5411,Catering costs - provisions,73.6,0,73.6
Children and Young Peoples Services,Childrens Services,85957,Secure Management,Supplies and Services,328041,Clothing Uniforms and Laundry,15-Oct-16,5375987433,HOUSE OF FRASER,5311,Clothing uniforms and laundry,-85,0,-85
Children and Young Peoples Services,Childrens Services,85957,Secure Management,Supplies and Services,328041,Clothing Uniforms and Laundry,15-Oct-16,5375987435,HOUSE OF FRASER,5311,Clothing uniforms and laundry,-6,0,-6
Regeneration and Local Services,Direct Services,10525,Catering - Green Lane,Supplies and Services,324117,Provisions,15-Oct-16,5375987529,BRAKE BROS LTD,5811,Catering costs - provisions,-4.37,0,-4.37
Resources,Resources Management,69000,Resources Management,Supplies and Services,324117,Provisions,15-Oct-16,5375987603,SAINSBURYS (2303),5411,Catering costs - provisions,18,0,18
Resources,I.C.T. Services,69010,Administration,Supplies and Services,328041,Clothing Uniforms and Laundry,15-Oct-16,5375987647,ESCAPADERS LTD,5631,Clothing uniforms and laundry,-46.97,0,-46.97
Regeneration and Local Services,Direct Services,21235,Catering - Wharton Park,Supplies and Services,324117,Provisions,15-Oct-16,5375987821,BRAKE BROS LTD,5811,Catering costs - provisions,25.68,4.28,21.4
Regeneration and Local Services,Direct Services,21235,Catering - Wharton Park,Supplies and Services,324117,Provisions,15-Oct-16,5375987821 - 1,BRAKE BROS LTD,5811,Catering costs - provisions,52.29,,52.29
Transformation and Partnerships,Partnerships & Community Engagement Div.,60472,Syrian Vulnerable Persons Scheme,Supplies and Services,308011,Furniture,15-Oct-16,5375987895,WILKO DURHAM 426,5722,Furniture repair and replacement,45.6,0,45.6
Transformation and Partnerships,Partnerships & Community Engagement Div.,60472,Syrian Vulnerable Persons Scheme,Supplies and Services,308011,Furniture,15-Oct-16,5375987897,ASDA STORES LTD 4313,5411,Furniture repair and replacement,90.4,0,90.4
Regeneration and Local Services,Economic Development and Housing,31576,B& B - Temp Accom,Supplies and Services,364320,Grants to Voluntary Organisations,16-Oct-16,5375987505,AYCLIFFE BIZ,7011,Accommodation assistance,245,0,245
Regeneration and Local Services,Economic Development and Housing,31576,B& B - Temp Accom,Supplies and Services,364320,Grants to Voluntary Organisations,16-Oct-16,5375987509,AYCLIFFE BIZ,7011,Accommodation assistance,175,0,175
Regeneration and Local Services,Economic Development and Housing,30699,Business Growth and Innovation General,Supplies and Services,342033,Computers and Communications,17-Oct-16,5375987267,WATCHFULPAYPAL,7379,Computer hardware,0.45,0,0.45
Children and Young Peoples Services,Education,71801,Selby Cottage Childcare Centre,Supplies and Services,324117,Provisions,17-Oct-16,5383018391,TESCO STORES 2278,5411,Catering costs - provisions,13.2,0,13.2
Children and Young Peoples Services,Education,71801,Selby Cottage Childcare Centre,Supplies and Services,324117,Provisions,17-Oct-16,5383018393,TESCO STORES 2278,5411,Catering costs - provisions,6.9,0,6.9
Children and Young Peoples Services,Childrens Services,88096,Newton Aycliffe Teenage Parent Programme,Supplies and Services,324117,Provisions,17-Oct-16,5383018397,ASDA HOME SHOPPING,5411,Catering costs - provisions,34.41,0,34.41
Children and Young Peoples Services,Childrens Services,71449,Ferryhill One Point Hub,Supplies and Services,328041,Clothing Uniforms and Laundry,17-Oct-16,5383018411,ARGOS LTD,5310,Clothing uniforms and laundry,31.98,0,31.98
Children and Young Peoples Services,Childrens Services,85957,Secure Management,Supplies and Services,332048,Printing Stationery and Gen Off Exps,17-Oct-16,5383018437,Amazon UK Marketplace,5942,Administrative stationery etc,10,0,10
Children and Young Peoples Services,Childrens Services,85965,Barnard,Supplies and Services,304649,Equipment and Materials,17-Oct-16,5383018441,Amazon UK Marketplace,5942,Toys,51.86,0,51.86
Regeneration and Local Services,Economic Development and Housing,30699,Business Growth and Innovation General,Supplies and Services,304999,Equipment and Materials,17-Oct-16,5383018461,PatentInspirationEU,5817,Misc equipment tools and materials,89.22,0,89.22
Resources,Financial Services,65180,Collections,Income,720130,Fees and Charges,17-Oct-16,5383018467,HMCOURT-SERVICES.G,9222,Fees-legal,110,0,110
Regeneration and Local Services,Direct Services,10367,C&G - South Grounds Maintenance,Supplies and Services,304259,Equipment and Materials,17-Oct-16,5383018487,MKM PETERLEE,5211,Equipment-purchase and rental,23.4,3.9,19.5
Children and Young Peoples Services,Childrens Services,71440,Barnard Castle One Point Hub,Supplies and Services,312011,Newspapers Books and Periodicals,17-Oct-16,5383018495,HOME BARGAINS,5251,Books-school library,39.58,0,39.58
Children and Young Peoples Services,Childrens Services,71440,Barnard Castle One Point Hub,Supplies and Services,328041,Clothing Uniforms and Laundry,17-Oct-16,5383018499,B&M RETAIL LTD,5310,Clothing uniforms and laundry,5.48,0,5.48
Regeneration and Local Services,Direct Services,21242,Catering - County Hall,Supplies and Services,324117,Provisions,17-Oct-16,5383018501,BRAMBLES FOODS LTD,5499,Catering costs - provisions,623.17,0,623.17
Regeneration and Local Services,Direct Services,21242,Catering - County Hall,Supplies and Services,324117,Provisions,17-Oct-16,5383018507,JR HOLLAND FOODSERVICE,5422,Catering costs - provisions,45.54,0,45.54
Regeneration and Local Services,Direct Services,21242,Catering - County Hall,Supplies and Services,324117,Provisions,17-Oct-16,5383018509,JR HOLLAND FOODSERVICE,5422,Catering costs - provisions,40.5,0,40.5
Regeneration and Local Services,Direct Services,21242,Catering - County Hall,Supplies and Services,324117,Provisions,17-Oct-16,5383018513,JR HOLLAND FOODSERVICE,5422,Catering costs - provisions,13.52,0,13.52
Regeneration and Local Services,Direct Services,21242,Catering - County Hall,Supplies and Services,324117,Provisions,17-Oct-16,5383018515,BRAKE BROS LTD,5811,Catering costs - provisions,327.96,54.66,273.3
Regeneration and Local Services,Direct Services,21242,Catering - County Hall,Supplies and Services,324117,Provisions,17-Oct-16,5383018515 - 1,BRAKE BROS LTD,5811,Catering costs - provisions,322.7,,322.7
Regeneration and Local Services,Direct Services,21242,Catering - County Hall,Supplies and Services,324117,Provisions,17-Oct-16,5383018523,BRAKE BROS LTD,5811,Catering costs - provisions,188.06,0,188.06
Regeneration and Local Services,Direct Services,21242,Catering - County Hall,Supplies and Services,324117,Provisions,17-Oct-16,5383018529,BRAKE BROS LTD,5811,Catering costs - provisions,121.57,0,121.57
Children and Young Peoples Services,Childrens Services,88037,One Point YEI,Supplies and Services,384999,Miscellaneous Expenses,17-Oct-16,5383018545,DARLINGTON BC INTERNET,9399,Other expenses,12,0,12
Children and Young Peoples Services,Childrens Services,88037,One Point YEI,Supplies and Services,384999,Miscellaneous Expenses,17-Oct-16,5383018547,GRO HM PASSPORT OFFICE,9399,Other expenses,9.25,0,9.25
Regeneration and Local Services,Economic Development and Housing,30749,Employability - Youth Contract,Transport,235005,Public Transport,17-Oct-16,5383018587,ARRIVA PASSENGER S,7538,Contract tickets,59,0,59
Regeneration and Local Services,Economic Development and Housing,30749,Employability - Youth Contract,Supplies and Services,304259,Equipment and Materials,17-Oct-16,5383018591,SCREWFIX,5211,Equipment-purchase and rental,-59.99,0,-59.99
Children and Young Peoples Services,Education,71732,Dean Bank Childcare,Supplies and Services,324117,Provisions,17-Oct-16,5383018607,ASDA HOME SHOPPING,5411,Catering costs - provisions,59.43,0,59.43
Children and Young Peoples Services,Education,71732,Dean Bank Childcare,Supplies and Services,324117,Provisions,17-Oct-16,5383018611,ASDA HOME SHOPPING,5411,Catering costs - provisions,-0.4,0,-0.4
Regeneration and Local Services,Economic Development and Housing,30553,Europe Direct Scheme,Transport,235057,Public Transport,17-Oct-16,5383018627,METRO DE MADRID,4111,Staff travelling,4.43,0,4.43
Regeneration and Local Services,Culture & Sport,11060,Hardwick Park Catering,Supplies and Services,324117,Provisions,17-Oct-16,5383018681,JR HOLLAND FOODSERVICE,5422,Catering costs - provisions,8.44,0,8.44
Regeneration and Local Services,Direct Services,21234,Catering - Locomotion,Supplies and Services,324117,Provisions,17-Oct-16,5383018733,BRAMBLES FOODS LTD,5499,Catering costs - provisions,218.27,0,218.27
Regeneration and Local Services,Direct Services,10525,Catering - Green Lane,Supplies and Services,324117,Provisions,17-Oct-16,5383018757,BRAMBLES FOODS LTD,5499,Catering costs - provisions,80.24,0,80.24
Regeneration and Local Services,Direct Services,10525,Catering - Green Lane,Supplies and Services,324117,Provisions,17-Oct-16,5383018759,JR HOLLAND FOODSERVICE,5422,Catering costs - provisions,-2.68,0,-2.68
Children and Young Peoples Services,Education,71903,EYDCP-Sustainability EDS,Supplies and Services,304649,Equipment and Materials,17-Oct-16,5383018769,Amazon UK Marketplace,5942,Toys,3.99,0,3.99
Children and Young Peoples Services,Education,71903,EYDCP-Sustainability EDS,Supplies and Services,304649,Equipment and Materials,17-Oct-16,5383018771,Amazon UK Marketplace,5942,Toys,10.99,0,10.99
Children and Young Peoples Services,Childrens Services,88063,Bishop Auckland 0 - 5,Supplies and Services,324117,Provisions,17-Oct-16,5383018783,WM MORRISON 040,5411,Catering costs - provisions,44.83,0,44.83
Children and Young Peoples Services,Childrens Services,88063,Bishop Auckland 0 - 5,Supplies and Services,384999,Miscellaneous Expenses,17-Oct-16,5383018787,ASDA STORES,5411,Other expenses,16.05,0,16.05
Regeneration and Local Services,Culture & Sport,54235,Bp Auckland Town Hall Cafe,Supplies and Services,324117,Provisions,17-Oct-16,5383018981,JR HOLLAND FOODSERVICE,5422,Catering costs - provisions,10.55,0,10.55
Regeneration and Local Services,Direct Services,21324,Catering - Meadowfield,Supplies and Services,324117,Provisions,17-Oct-16,5383018991,BRAMBLES FOODS LTD,5499,Catering costs - provisions,241.2,0,241.2
Children and Young Peoples Services,Childrens Services,85333,Coxhoe Satelite Home,Supplies and Services,324117,Provisions,17-Oct-16,5383019011,ALDI,5411,Catering costs - provisions,103.8,17.3,86.5
Children and Young Peoples Services,Childrens Services,85333,Coxhoe Satelite Home,Supplies and Services,324117,Provisions,17-Oct-16,5383019011 - 1,ALDI,5411,Catering costs - provisions,7.8,,7.8
Children and Young Peoples Services,Childrens Services,85333,Coxhoe Satelite Home,Supplies and Services,328041,Clothing Uniforms and Laundry,17-Oct-16,5383019015,B & M RETAIL,5310,Clothing uniforms and laundry,12.4,0,12.4
Children and Young Peoples Services,Childrens Services,85333,Coxhoe Satelite Home,Supplies and Services,328041,Clothing Uniforms and Laundry,17-Oct-16,5383019019,B & M RETAIL,5310,Clothing uniforms and laundry,14.98,0,14.98
Regeneration and Local Services,Culture & Sport,11086,Positive Futures,Supplies and Services,324117,Provisions,17-Oct-16,5383019103,W M MORRISONS,5411,Catering costs - provisions,16.64,0,16.64
Children and Young Peoples Services,Childrens Services,88073,Barnard Castle 0 - 5,Supplies and Services,384871,Miscellaneous Expenses,17-Oct-16,5383019117,Amazon UK Marketplace,5942,Training-other activities,35.97,0,35.97
Regeneration and Local Services,Economic Development and Housing,30737,Durham Works Flexible Fund,Supplies and Services,324117,Provisions,17-Oct-16,5383019179,CO-OP GROUP 310015,5411,Catering costs - provisions,92,0,92
Regeneration and Local Services,Direct Services,21235,Catering - Wharton Park,Supplies and Services,324117,Provisions,17-Oct-16,5383019199,JR HOLLAND FOODSERVICE,5422,Catering costs - provisions,-4.36,0,-4.36
Regeneration and Local Services,Culture & Sport,10605,Woodhouse Close Leisure Complex,Supplies and Services,324117,Provisions,17-Oct-16,5383019227,JR HOLLAND FOODSERVICE,5422,Catering costs - provisions,41.92,0,41.92
Transformation and Partnerships,Partnerships & Community Engagement Div.,60472,Syrian Vulnerable Persons Scheme,Supplies and Services,308011,Furniture,17-Oct-16,5383019257,Amazon UK Marketplace,5942,Furniture repair and replacement,25.99,0,25.99
Regeneration and Local Services,Spatial Policy Planning Assets & Environment,31200,North Pennines Core,Supplies and Services,340001,Postages,17-Oct-16,5383019267,THE POST OFFICE,9402,Postages,3.66,0,3.66
Regeneration and Local Services,Economic Development and Housing,30699,Business Growth and Innovation General,Supplies and Services,304999,Equipment and Materials,18-Oct-16,5383018463,PatentInspirationEU,5817,Misc equipment tools and materials,2.45,0,2.45
Regeneration and Local Services,Economic Development and Housing,30553,Europe Direct Scheme,Transport,235057,Public Transport,18-Oct-16,5383018629,METRO DE MADRID,4111,Staff travelling,0.12,0,0.12
Children and Young Peoples Services,Education,71903,EYDCP-Sustainability EDS,Supplies and Services,304649,Equipment and Materials,18-Oct-16,5383018775,Amazon UK Marketplace,5942,Toys,5.67,0,5.67
Children and Young Peoples Services,Childrens Services,88033,Durham 0 - 5,Supplies and Services,384237,Miscellaneous Expenses,18-Oct-16,5386336755,PLEASURE BEACH,7999,Recreational exps outings parties,66,0,66
Children and Young Peoples Services,Education,70140,School Admissions and Transport,Supplies and Services,340001,Postages,18-Oct-16,5386336767,ROYAL MAIL ONLINE SHOP,9402,Postages,348,0,348
Regeneration and Local Services,Direct Services,11171,Nei.Prot - Allotments,Supplies and Services,332047,Printing Stationery and Gen Off Exps,18-Oct-16,5386336773,WWW.STENCILMARKING.COM,5943,Stationery,26.62,0,26.62
Children and Young Peoples Services,Childrens Services,85965,Barnard,Supplies and Services,304649,Equipment and Materials,18-Oct-16,5386336807,Amazon UK Marketplace,5942,Toys,48.9,0,48.9
Children and Young Peoples Services,Childrens Services,85957,Secure Management,Supplies and Services,384999,Miscellaneous Expenses,18-Oct-16,5386336811,Amazon UK Marketplace,5942,Other expenses,13.96,0,13.96
Children and Young Peoples Services,Childrens Services,85957,Secure Management,Supplies and Services,328041,Clothing Uniforms and Laundry,18-Oct-16,5386336817,NEXT DIRECTORY,5651,Clothing uniforms and laundry,43.99,0,43.99
Children and Young Peoples Services,Childrens Services,85957,Secure Management,Supplies and Services,328041,Clothing Uniforms and Laundry,18-Oct-16,5386336819,VERY.CO.UK,5964,Clothing uniforms and laundry,55,0,55
Children and Young Peoples Services,Childrens Services,85957,Secure Management,Supplies and Services,328041,Clothing Uniforms and Laundry,18-Oct-16,5386336825,VERY.CO.UK,5964,Clothing uniforms and laundry,50,0,50
Children and Young Peoples Services,Childrens Services,85957,Secure Management,Supplies and Services,328041,Clothing Uniforms and Laundry,18-Oct-16,5386336827,VERY.CO.UK,5964,Clothing uniforms and laundry,40,0,40
Children and Young Peoples Services,Childrens Services,85957,Secure Management,Supplies and Services,328041,Clothing Uniforms and Laundry,18-Oct-16,5386336831,VERY.CO.UK,5964,Clothing uniforms and laundry,38,0,38
Children and Young Peoples Services,Childrens Services,85957,Secure Management,Supplies and Services,328041,Clothing Uniforms and Laundry,18-Oct-16,5386336835,VERY.CO.UK,5964,Clothing uniforms and laundry,28,0,28
Children and Young Peoples Services,Childrens Services,85957,Secure Management,Supplies and Services,328041,Clothing Uniforms and Laundry,18-Oct-16,5386336839,VERY.CO.UK,5964,Clothing uniforms and laundry,25,0,25
Children and Young Peoples Services,Childrens Services,85957,Secure Management,Supplies and Services,328041,Clothing Uniforms and Laundry,18-Oct-16,5386336843,VERY.CO.UK,5964,Clothing uniforms and laundry,3.99,0,3.99
Children and Young Peoples Services,Childrens Services,85957,Secure Management,Supplies and Services,342033,Computers and Communications,18-Oct-16,5386336847,VERY.CO.UK,5964,Computer hardware,3.99,0,3.99
Regeneration and Local Services,Direct Services,21242,Catering - County Hall,Supplies and Services,324117,Provisions,18-Oct-16,5386336917,FREEMAN CATERING BUTCH,5422,Catering costs - provisions,98.54,0,98.54
Regeneration and Local Services,Direct Services,21242,Catering - County Hall,Supplies and Services,324117,Provisions,18-Oct-16,5386336923,BRAKE BROS LTD,5811,Catering costs - provisions,111.06,0,111.06
Regeneration and Local Services,Economic Development and Housing,30554,International Relations,Supplies and Services,384926,Miscellaneous Expenses,18-Oct-16,5386336931,IMPERIAL LONDON HOTELS,7011,International visits,716,0,716
Regeneration and Local Services,Culture & Sport,54812,Gala Theatre - Catering etc,Supplies and Services,324117,Provisions,18-Oct-16,5386336937,BRAKE BROS LTD,5811,Catering costs - provisions,97.74,16.29,81.45
Regeneration and Local Services,Culture & Sport,54812,Gala Theatre - Catering etc,Supplies and Services,324117,Provisions,18-Oct-16,5386336937 - 1,BRAKE BROS LTD,5811,Catering costs - provisions,132.56,,132.56
Regeneration and Local Services,Culture & Sport,54812,Gala Theatre - Catering etc,Supplies and Services,324117,Provisions,18-Oct-16,5386336947,BRAKE BROS LTD,5811,Catering costs - provisions,25.95,0,25.95
Children and Young Peoples Services,Childrens Services,88033,Durham 0 - 5,Supplies and Services,384237,Miscellaneous Expenses,18-Oct-16,5386336987,PLEASURE BEACH,7999,Recreational exps outings parties,500,0,500
Regeneration and Local Services,Direct Services,10367,C&G - South Grounds Maintenance,Supplies and Services,304259,Equipment and Materials,18-Oct-16,5386337067,SCREWFIX,5211,Equipment-purchase and rental,5.99,1,4.99
Children and Young Peoples Services,Childrens Services,88033,Durham 0 - 5,Supplies and Services,304999,Equipment and Materials,18-Oct-16,5386337073,BLACKPOOL TOWER CALL C,7991,Misc equipment tools and materials,183,0,183
Regeneration and Local Services,Direct Services,10301,C&G - North Grounds Maintenance,Supplies and Services,304403,Equipment and Materials,18-Oct-16,5386337087,BESCOL,5231,Other consumables,70.16,11.69,58.47
Regeneration and Local Services,Culture & Sport,11060,Hardwick Park Catering,Supplies and Services,324117,Provisions,18-Oct-16,5386337095,FREEMAN CATERING BUTCH,5422,Catering costs - provisions,30.35,0,30.35
Regeneration and Local Services,Culture & Sport,11060,Hardwick Park Catering,Supplies and Services,324117,Provisions,18-Oct-16,5386337099,FREEMAN CATERING BUTCH,5422,Catering costs - provisions,28.5,0,28.5
Regeneration and Local Services,Culture & Sport,11060,Hardwick Park Catering,Supplies and Services,324117,Provisions,18-Oct-16,5386337101,FREEMAN CATERING BUTCH,5422,Catering costs - provisions,11.71,0,11.71
Regeneration and Local Services,Culture & Sport,11060,Hardwick Park Catering,Supplies and Services,324117,Provisions,18-Oct-16,5386337105,BRAKE BROS LTD,5811,Catering costs - provisions,103.56,0,103.56
Regeneration and Local Services,Spatial Policy Planning Assets & Environment,31200,North Pennines Core,Transport,235057,Public Transport,18-Oct-16,5386337125,VIRGINTRAINSEC SERVCS,4112,Staff travelling,22,0,22
Regeneration and Local Services,Spatial Policy Planning Assets & Environment,31200,North Pennines Core,Transport,235057,Public Transport,18-Oct-16,5386337127,VIRGINTRAINSEC SERVCS,4112,Staff travelling,74.5,0,74.5
Regeneration and Local Services,Spatial Policy Planning Assets & Environment,31200,North Pennines Core,Transport,235057,Public Transport,18-Oct-16,5386337131,VIRGINTRAINSEC SERVCS,4112,Staff travelling,25.4,0,25.4
Regeneration and Local Services,Spatial Policy Planning Assets & Environment,31200,North Pennines Core,Transport,235057,Public Transport,18-Oct-16,5386337137,VIRGINTRAINSEC SERVCS,4112,Staff travelling,51,0,51
Regeneration and Local Services,Economic Development and Housing,30762,Organisational Training & Development,Employees,40149,Recruitment Instruction and Training,18-Oct-16,5386337149,CITB,8220,Training-all costs,30,5,25
Regeneration and Local Services,Direct Services,21234,Catering - Locomotion,Supplies and Services,324117,Provisions,18-Oct-16,5386337157,BRAKE BROS LTD,5811,Catering costs - provisions,362.4,60.4,302
Regeneration and Local Services,Direct Services,21234,Catering - Locomotion,Supplies and Services,324117,Provisions,18-Oct-16,5386337157 - 1,BRAKE BROS LTD,5811,Catering costs - provisions,46.42,,46.42
Regeneration and Local Services,Direct Services,10525,Catering - Green Lane,Supplies and Services,324117,Provisions,18-Oct-16,5386337193,FREEMAN CATERING BUTCH,5422,Catering costs - provisions,109.72,0,109.72
Regeneration and Local Services,Direct Services,10525,Catering - Green Lane,Supplies and Services,324117,Provisions,18-Oct-16,5386337197,FREEMAN CATERING BUTCH,5422,Catering costs - provisions,38.21,0,38.21
Regeneration and Local Services,Direct Services,10525,Catering - Green Lane,Supplies and Services,324117,Provisions,18-Oct-16,5386337205,BRAKE BROS LTD,5811,Catering costs - provisions,8.22,1.37,6.85
Regeneration and Local Services,Direct Services,10525,Catering - Green Lane,Supplies and Services,324117,Provisions,18-Oct-16,5386337205 - 1,BRAKE BROS LTD,5811,Catering costs - provisions,183.09,,183.09
Children and Young Peoples Services,Education,71903,EYDCP-Sustainability EDS,Supplies and Services,304649,Equipment and Materials,18-Oct-16,5386337235,Amazon UK Marketplace,5942,Toys,6.11,0,6.11
Children and Young Peoples Services,Education,71903,EYDCP-Sustainability EDS,Supplies and Services,304649,Equipment and Materials,18-Oct-16,5386337237,Amazon UK Marketplace,5942,Toys,1.98,0,1.98
Children and Young Peoples Services,Education,71903,EYDCP-Sustainability EDS,Supplies and Services,304649,Equipment and Materials,18-Oct-16,5386337243,Amazon UK Marketplace,5942,Toys,18.5,0,18.5
Children and Young Peoples Services,Education,71903,EYDCP-Sustainability EDS,Supplies and Services,304649,Equipment and Materials,18-Oct-16,5386337247,Amazon UK Marketplace,5942,Toys,2.5,0,2.5
Children and Young Peoples Services,Education,71903,EYDCP-Sustainability EDS,Supplies and Services,304649,Equipment and Materials,18-Oct-16,5386337251,Amazon UK Marketplace,5942,Toys,19.98,0,19.98
Children and Young Peoples Services,Childrens Services,85352,Tow Law CU,Supplies and Services,324117,Provisions,18-Oct-16,5386337259,TESCO STORES 2371,5411,Catering costs - provisions,223.83,0,223.83
Children and Young Peoples Services,Childrens Services,88063,Bishop Auckland 0 - 5,Supplies and Services,384999,Miscellaneous Expenses,18-Oct-16,5386337265,THE POST OFFICE,9402,Other expenses,250,0,250
Children and Young Peoples Services,Childrens Services,88063,Bishop Auckland 0 - 5,Supplies and Services,384999,Miscellaneous Expenses,18-Oct-16,5386337271,W BOYES & CO LTD BISHO,5310,Other expenses,13.85,0,13.85
Children and Young Peoples Services,Childrens Services,88063,Bishop Auckland 0 - 5,Supplies and Services,324117,Provisions,18-Oct-16,5386337277,TESCO STORES 6329,5411,Catering costs - provisions,28.72,0,28.72
Regeneration and Local Services,Direct Services,10367,C&G - South Grounds Maintenance,Supplies and Services,324117,Provisions,18-Oct-16,5386337283,J M RAINE,5399,Catering costs - provisions,92.34,15.39,76.95
Regeneration and Local Services,Direct Services,10367,C&G - South Grounds Maintenance,Supplies and Services,304221,Equipment and Materials,18-Oct-16,5386337333,R DEFTY,5200,Direct materials,9.9,1.65,8.25
Regeneration and Local Services,Direct Services,10900,Fleet - Meadowfield Fleet,Transport,215995,Running Costs of Vehicles,18-Oct-16,5386337339,DVSA MOT COMP 2,9399,Vehicle running expenses,410,68.33,341.67
Resources,I.C.T. Services,69010,Administration,Supplies and Services,312011,Newspapers Books and Periodicals,18-Oct-16,5386337353,Amazon UK Marketplace,5942,Books-school library,3.33,0,3.33
Resources,I.C.T. Services,69010,Administration,Supplies and Services,312011,Newspapers Books and Periodicals,18-Oct-16,5386337355,Amazon UK Marketplace,5942,Books-school library,39.95,0,39.95
Resources,I.C.T. Services,69010,Administration,Supplies and Services,352001,Conference Expenses,18-Oct-16,5386337359,"STATION HOTEL,",7011,Conferencesseminars fees etc,127,0,127
Resources,I.C.T. Services,69010,Administration,Supplies and Services,304259,Equipment and Materials,18-Oct-16,5386337363,DISCLOSURE SCOT,9399,Equipment-purchase and rental,25,0,25
Resources,I.C.T. Services,69010,Administration,Supplies and Services,304259,Equipment and Materials,18-Oct-16,5386337367,DURHAM COUNTY COUNCIL,9399,Equipment-purchase and rental,20,0,20
Regeneration and Local Services,Spatial Policy Planning Assets & Environment,31200,North Pennines Core,Transport,235057,Public Transport,18-Oct-16,5386337381,SCHWEIZ. BUNDESBAHN,4112,Staff travelling,82.04,0,82.04
Regeneration and Local Services,Transport and Contracted Services,31701,Care Connect All Localities,Supplies and Services,344033,Telephones,18-Oct-16,5386337427,BT BILL PAYMENT 2,4812,Telephones general-all costs,88.47,14.75,73.72
Regeneration and Local Services,Transport and Contracted Services,31701,Care Connect All Localities,Supplies and Services,344033,Telephones,18-Oct-16,5386337433,BT BILL PAYMENT 2,4812,Telephones general-all costs,96.67,16.11,80.56
Regeneration and Local Services,Transport and Contracted Services,31701,Care Connect All Localities,Supplies and Services,344033,Telephones,18-Oct-16,5386337439,BT BILL PAYMENT 2,4812,Telephones general-all costs,15.3,2.55,12.75
Regeneration and Local Services,Transport and Contracted Services,31701,Care Connect All Localities,Supplies and Services,344033,Telephones,18-Oct-16,5386337441,BT BILL PAYMENT 2,4812,Telephones general-all costs,16.53,2.76,13.77
Regeneration and Local Services,Transport and Contracted Services,31701,Care Connect All Localities,Supplies and Services,344033,Telephones,18-Oct-16,5386337447,BT BILL PAYMENT 2,4812,Telephones general-all costs,18.83,3.14,15.69
Regeneration and Local Services,Transport and Contracted Services,31701,Care Connect All Localities,Supplies and Services,344033,Telephones,18-Oct-16,5386337449,BT BILL PAYMENT 2,4812,Telephones general-all costs,102.96,17.16,85.8
Regeneration and Local Services,Transport and Contracted Services,31701,Care Connect All Localities,Supplies and Services,344033,Telephones,18-Oct-16,5386337455,BT BILL PAYMENT 2,4812,Telephones general-all costs,84.72,14.12,70.6
Regeneration and Local Services,Transport and Contracted Services,31701,Care Connect All Localities,Supplies and Services,344033,Telephones,18-Oct-16,5386337457,BT BILL PAYMENT 2,4812,Telephones general-all costs,21.03,3.51,17.52
Regeneration and Local Services,Transport and Contracted Services,31701,Care Connect All Localities,Supplies and Services,344033,Telephones,18-Oct-16,5386337459,BT BILL PAYMENT 2,4812,Telephones general-all costs,84.72,14.12,70.6
Regeneration and Local Services,Transport and Contracted Services,31701,Care Connect All Localities,Supplies and Services,344033,Telephones,18-Oct-16,5386337463,BT BILL PAYMENT 2,4812,Telephones general-all costs,74.22,12.37,61.85
Regeneration and Local Services,Direct Services,21324,Catering - Meadowfield,Supplies and Services,324117,Provisions,18-Oct-16,5386337465,FREEMAN CATERING BUTCH,5422,Catering costs - provisions,62.03,0,62.03
Regeneration and Local Services,Direct Services,21324,Catering - Meadowfield,Supplies and Services,324117,Provisions,18-Oct-16,5386337471,FREEMAN CATERING BUTCH,5422,Catering costs - provisions,55.86,0,55.86
Regeneration and Local Services,Direct Services,21324,Catering - Meadowfield,Supplies and Services,324117,Provisions,18-Oct-16,5386337477,FREEMAN CATERING BUTCH,5422,Catering costs - provisions,14.6,0,14.6
Regeneration and Local Services,Direct Services,21324,Catering - Meadowfield,Supplies and Services,324117,Provisions,18-Oct-16,5386337481,BRAKE BROS LTD,5811,Catering costs - provisions,89.43,0,89.43
Children and Young Peoples Services,Childrens Services,88033,Durham 0 - 5,Supplies and Services,324117,Provisions,18-Oct-16,5386337493,TESCO STORES 2371,5411,Catering costs - provisions,23.04,0,23.04
Regeneration and Local Services,Direct Services,10301,C&G - North Grounds Maintenance,Supplies and Services,312011,Newspapers Books and Periodicals,18-Oct-16,5386337499,TOOLSTATION LTD,5251,Books-school library,39.85,0,39.85
Regeneration and Local Services,Culture & Sport,11086,Positive Futures,Supplies and Services,324117,Provisions,18-Oct-16,5386337527,ASDA STORES,5411,Catering costs - provisions,17.48,0,17.48
Regeneration and Local Services,Economic Development and Housing,30737,Durham Works Flexible Fund,Supplies and Services,328041,Clothing Uniforms and Laundry,18-Oct-16,5386337569,INDUSTRIAL WORKWEAR LI,5137,Clothing uniforms and laundry,-73.51,0,-73.51
Regeneration and Local Services,Culture & Sport,26591,Hardwick Park,Supplies and Services,304245,Equipment and Materials,18-Oct-16,5386337635,RSPB SALES TRADING,5947,Materials,49.93,8.32,41.61
Regeneration and Local Services,Culture & Sport,10605,Woodhouse Close Leisure Complex,Supplies and Services,324117,Provisions,18-Oct-16,5386337639,FREEMAN CATERING BUTCH,5422,Catering costs - provisions,43.8,0,43.8
Children and Young Peoples Services,Education,74973,HI Resources Base - Fund,Supplies and Services,384871,Miscellaneous Expenses,18-Oct-16,5386337645,WWW.GALADURHAM.CO.UK,9399,Training-other activities,"1,312.00",218.67,1093.33
Children and Young Peoples Services,Childrens Services,85957,Secure Management,Supplies and Services,328041,Clothing Uniforms and Laundry,18-Oct-16,5390595637,gethelabel.com,5651,Clothing uniforms and laundry,63.94,0,63.94
Regeneration and Local Services,Economic Development and Housing,30699,Business Growth and Innovation General,Supplies and Services,336005,Advertising,18-Oct-16,5390595661,ADROLL,7311,Advertising other than for staff,20.41,0,20.41
Regeneration and Local Services,Direct Services,10915,Morrison Busty,Supplies and Services,384956,Miscellaneous Expenses,18-Oct-16,5390595699,TVLICENSING.CO.UK,7392,Licences,145.5,0,145.5
Regeneration and Local Services,Direct Services,11003,County Hall Durham,Supplies and Services,384956,Miscellaneous Expenses,18-Oct-16,5390595703,TVLICENSING.CO.UK,7392,Licences,145.5,0,145.5
Children and Young Peoples Services,Childrens Services,85957,Secure Management,Supplies and Services,328041,Clothing Uniforms and Laundry,18-Oct-16,5419683139,NEXT DIRECTORY,5651,Clothing uniforms and laundry,-43.99,0,-43.99
Children and Young Peoples Services,Education,71903,EYDCP-Sustainability EDS,Supplies and Services,304649,Equipment and Materials,19-Oct-16,5386337253,Amazon UK Marketplace,5942,Toys,7.54,0,7.54
Children and Young Peoples Services,Education,54640,Durham Learning Resources,Employees,40149,Recruitment Instruction and Training,19-Oct-16,5390595587,SCHOOL LIBRARY ASSOCIA,8299,Training-all costs,89,0,89
Children and Young Peoples Services,Childrens Services,88094,Newton Aycliffe 5 - 19,Supplies and Services,304403,Equipment and Materials,19-Oct-16,5390595591,Amazon UK Marketplace,5942,Other consumables,5.88,0,5.88
Regeneration and Local Services,Direct Services,10383,C&G - South Street Cleansing,Transport,215995,Running Costs of Vehicles,19-Oct-16,5390595623,SNOWBALLS (RAILWAY,5533,Vehicle running expenses,90.13,15.02,75.11
Children and Young Peoples Services,Childrens Services,85957,Secure Management,Supplies and Services,328041,Clothing Uniforms and Laundry,19-Oct-16,5390595633,NEW LOOK INTERNET,5621,Clothing uniforms and laundry,42.97,0,42.97
Children and Young Peoples Services,Childrens Services,85957,Secure Management,Supplies and Services,328041,Clothing Uniforms and Laundry,19-Oct-16,5390595641,gethelabel.com,5651,Clothing uniforms and laundry,22.43,0,22.43
Children and Young Peoples Services,Childrens Services,85957,Secure Management,Supplies and Services,324117,Provisions,19-Oct-16,5390595643,TESCO STORES 6329,5411,Catering costs - provisions,41.24,0,41.24
Children and Young Peoples Services,Childrens Services,85957,Secure Management,Supplies and Services,328041,Clothing Uniforms and Laundry,19-Oct-16,5390595645,VERY.CO.UK,5964,Clothing uniforms and laundry,11,0,11
Children and Young Peoples Services,Childrens Services,85957,Secure Management,Supplies and Services,328041,Clothing Uniforms and Laundry,19-Oct-16,5390595649,VERY.CO.UK,5964,Clothing uniforms and laundry,3.99,0,3.99
Resources,Financial Services,65180,Collections,Income,720130,Fees and Charges,19-Oct-16,5390595667,HMCOURT-SERVICES.G,9222,Fees-legal,110,0,110
Regeneration and Local Services,Economic Development and Housing,30737,Durham Works Flexible Fund,Supplies and Services,304259,Equipment and Materials,19-Oct-16,5390595707,GRO HM PASSPORT OFFICE,9399,Equipment-purchase and rental,9.25,0,9.25
Regeneration and Local Services,Economic Development and Housing,30737,Durham Works Flexible Fund,Supplies and Services,328041,Clothing Uniforms and Laundry,19-Oct-16,5390595709,ARGOS LTD,5310,Clothing uniforms and laundry,24.99,0,24.99
Regeneration and Local Services,Direct Services,21242,Catering - County Hall,Supplies and Services,324117,Provisions,19-Oct-16,5390595713,JR HOLLAND FOODSERVICE,5422,Catering costs - provisions,90.6,0,90.6
Regeneration and Local Services,Direct Services,21242,Catering - County Hall,Supplies and Services,324117,Provisions,19-Oct-16,5390595721,JR HOLLAND FOODSERVICE,5422,Catering costs - provisions,47.43,0,47.43
Regeneration and Local Services,Direct Services,21242,Catering - County Hall,Supplies and Services,324117,Provisions,19-Oct-16,5390595727,JR HOLLAND FOODSERVICE,5422,Catering costs - provisions,31.35,0,31.35
Regeneration and Local Services,Direct Services,21242,Catering - County Hall,Supplies and Services,324117,Provisions,19-Oct-16,5390595729,JR HOLLAND FOODSERVICE,5422,Catering costs - provisions,6.58,0,6.58
Regeneration and Local Services,Direct Services,21242,Catering - County Hall,Supplies and Services,324117,Provisions,19-Oct-16,5390595733,BRAKE BROS LTD,5811,Catering costs - provisions,315.68,0,315.68
Children and Young Peoples Services,Education,70169,Durham SSP,Supplies and Services,304403,Equipment and Materials,19-Oct-16,5390595739,Amazon UK Marketplace,5942,Other consumables,21.98,0,21.98
Regeneration and Local Services,Culture & Sport,54812,Gala Theatre - Catering etc,Supplies and Services,324117,Provisions,19-Oct-16,5390595743,JR HOLLAND FOODSERVICE,5422,Catering costs - provisions,54.09,0,54.09
Children and Young Peoples Services,Education,71732,Dean Bank Childcare,Supplies and Services,328041,Clothing Uniforms and Laundry,19-Oct-16,5390595787,B & M RETAIL,5310,Clothing uniforms and laundry,40.05,0,40.05
Children and Young Peoples Services,Education,71732,Dean Bank Childcare,Supplies and Services,328041,Clothing Uniforms and Laundry,19-Oct-16,5390595791,B & M RETAIL,5310,Clothing uniforms and laundry,55.37,0,55.37
Regeneration and Local Services,Economic Development and Housing,30737,Durham Works Flexible Fund,Transport,230031,Contract Hire,19-Oct-16,5390595827,GO NORTH EAST - V/T,4131,Pupils-transport to play fields etc,18.4,0,18.4
Children and Young Peoples Services,Childrens Services,88037,One Point YEI,Supplies and Services,304403,Equipment and Materials,19-Oct-16,5390595831,GRO HM PASSPORT OFFICE,9399,Other consumables,9.25,0,9.25
Regeneration and Local Services,Culture & Sport,11060,Hardwick Park Catering,Supplies and Services,324117,Provisions,19-Oct-16,5390595851,JR HOLLAND FOODSERVICE,5422,Catering costs - provisions,60.08,0,60.08
Regeneration and Local Services,Culture & Sport,11060,Hardwick Park Catering,Supplies and Services,324117,Provisions,19-Oct-16,5390595855,JR HOLLAND FOODSERVICE,5422,Catering costs - provisions,54.25,0,54.25
Regeneration and Local Services,Culture & Sport,11060,Hardwick Park Catering,Supplies and Services,324117,Provisions,19-Oct-16,5390595859,JR HOLLAND FOODSERVICE,5422,Catering costs - provisions,26.61,0,26.61
Regeneration and Local Services,Culture & Sport,11060,Hardwick Park Catering,Supplies and Services,324117,Provisions,19-Oct-16,5390595865,JR HOLLAND FOODSERVICE,5422,Catering costs - provisions,11.03,0,11.03
Regeneration and Local Services,Culture & Sport,11060,Hardwick Park Catering,Supplies and Services,324117,Provisions,19-Oct-16,5390595869,BRAKE BROS LTD,5811,Catering costs - provisions,84.54,14.09,70.45
Regeneration and Local Services,Culture & Sport,11060,Hardwick Park Catering,Supplies and Services,324117,Provisions,19-Oct-16,5390595869 - 1,BRAKE BROS LTD,5811,Catering costs - provisions,160.59,,160.59
Regeneration and Local Services,Direct Services,21234,Catering - Locomotion,Supplies and Services,324117,Provisions,19-Oct-16,5390595885,BRAKE BROS LTD,5811,Catering costs - provisions,142.76,0,142.76
Regeneration and Local Services,Direct Services,10525,Catering - Green Lane,Supplies and Services,324117,Provisions,19-Oct-16,5390595907,JR HOLLAND FOODSERVICE,5422,Catering costs - provisions,27.93,0,27.93
Children and Young Peoples Services,Education,71903,EYDCP-Sustainability EDS,Supplies and Services,304649,Equipment and Materials,19-Oct-16,5390595919,Amazon UK Marketplace,5942,Toys,15.46,0,15.46
Children and Young Peoples Services,Education,71903,EYDCP-Sustainability EDS,Supplies and Services,304649,Equipment and Materials,19-Oct-16,5390595925,Amazon UK Marketplace,5942,Toys,1.66,0,1.66
Children and Young Peoples Services,Education,71903,EYDCP-Sustainability EDS,Supplies and Services,304649,Equipment and Materials,19-Oct-16,5390595927,Amazon UK Marketplace,5942,Toys,26.94,0,26.94
Children and Young Peoples Services,Education,71903,EYDCP-Sustainability EDS,Supplies and Services,304649,Equipment and Materials,19-Oct-16,5390595931,Amazon UK Marketplace,5942,Toys,53.26,0,53.26
Children and Young Peoples Services,Childrens Services,85352,Tow Law CU,Supplies and Services,324117,Provisions,19-Oct-16,5390595935,SAINSBURYS SACAT 2199,5411,Catering costs - provisions,110,0,110
Children and Young Peoples Services,Childrens Services,71616,Seaham Childrens Centre,Supplies and Services,308011,Furniture,19-Oct-16,5390596035,"HOMEFAIR BLINDS,",5714,Furniture repair and replacement,2,0,2
Resources,I.C.T. Services,69010,Administration,Supplies and Services,304259,Equipment and Materials,19-Oct-16,5390596039,DARLINGTON BC INTERNET,9399,Equipment-purchase and rental,12,0,12
Resources,I.C.T. Services,69010,Administration,Supplies and Services,304259,Equipment and Materials,19-Oct-16,5390596043,DISCLOSURE SCOT,9399,Equipment-purchase and rental,25,0,25
Resources,I.C.T. Services,69010,Administration,Supplies and Services,304259,Equipment and Materials,19-Oct-16,5390596047,DISCLOSURE SCOT,9399,Equipment-purchase and rental,25,0,25
Resources,I.C.T. Services,69010,Administration,Supplies and Services,340001,Postages,19-Oct-16,5390596049,ROYAL MAIL ONLINE SHOP,9402,Postages,405.5,0,405.5
Resources,I.C.T. Services,69010,Administration,Supplies and Services,340001,Postages,19-Oct-16,5390596053,ROYAL MAIL ONLINE SHOP,9402,Postages,320,0,320
Resources,I.C.T. Services,69010,Administration,Supplies and Services,340001,Postages,19-Oct-16,5390596057,ROYAL MAIL ONLINE SHOP,9402,Postages,256,0,256
Resources,I.C.T. Services,69010,Administration,Supplies and Services,312011,Newspapers Books and Periodicals,19-Oct-16,5390596059,Amazon EU,5969,Books-school library,74.26,0,74.26
Resources,I.C.T. Services,69010,Administration,Supplies and Services,304259,Equipment and Materials,19-Oct-16,5390596061,DURHAM COUNTY COUNCIL,9399,Equipment-purchase and rental,12,0,12
Regeneration and Local Services,Culture & Sport,54399,Local Delivery-Libraries,Supplies and Services,312011,Newspapers Books and Periodicals,19-Oct-16,5390596073,Amazon UK Marketplace,5942,Books-school library,6.37,0,6.37
Resources,Financial Services,65180,Collections,Employees,40149,Recruitment Instruction and Training,19-Oct-16,5390596111,CHARTERED INST OF LEGA,8699,Training-all costs,120,0,120
Resources,Financial Services,65180,Collections,Employees,40149,Recruitment Instruction and Training,19-Oct-16,5390596113,ILEX.ORG.UK,8699,Training-all costs,147,0,147
Children and Young Peoples Services,Childrens Services,85801,CDYOS - Support,Supplies and Services,312011,Newspapers Books and Periodicals,19-Oct-16,5390596121,Amazon UK Marketplace,5942,Books-school library,32.8,0,32.8
Regeneration and Local Services,Culture & Sport,54235,Bp Auckland Town Hall Cafe,Supplies and Services,324117,Provisions,19-Oct-16,5390596123,JR HOLLAND FOODSERVICE,5422,Catering costs - provisions,25.67,0,25.67
Regeneration and Local Services,Culture & Sport,54235,Bp Auckland Town Hall Cafe,Supplies and Services,324117,Provisions,19-Oct-16,5390596127,JR HOLLAND FOODSERVICE,5422,Catering costs - provisions,10.81,0,10.81
Regeneration and Local Services,Direct Services,21324,Catering - Meadowfield,Supplies and Services,324117,Provisions,19-Oct-16,5390596131,JR HOLLAND FOODSERVICE,5422,Catering costs - provisions,52.21,0,52.21
Regeneration and Local Services,Direct Services,21324,Catering - Meadowfield,Supplies and Services,324117,Provisions,19-Oct-16,5390596137,JR HOLLAND FOODSERVICE,5422,Catering costs - provisions,13.45,0,13.45
Regeneration and Local Services,Direct Services,21324,Catering - Meadowfield,Supplies and Services,324117,Provisions,19-Oct-16,5390596141,BRAKE BROS LTD,5811,Catering costs - provisions,62.94,10.49,52.45
Regeneration and Local Services,Direct Services,21324,Catering - Meadowfield,Supplies and Services,324117,Provisions,19-Oct-16,5390596141 - 1,BRAKE BROS LTD,5811,Catering costs - provisions,95.47,,95.47
Children and Young Peoples Services,Childrens Services,88073,Barnard Castle 0 - 5,Supplies and Services,384871,Miscellaneous Expenses,19-Oct-16,5390596159,HOME BARGAINS,5251,Training-other activities,5.52,0,5.52
Children and Young Peoples Services,Childrens Services,88063,Bishop Auckland 0 - 5,Supplies and Services,324117,Provisions,19-Oct-16,5390596161,LIDL UK,5411,Catering costs - provisions,1.48,0,1.48
Children and Young Peoples Services,Childrens Services,88083,Ferryhill 0 - 5,Supplies and Services,324117,Provisions,19-Oct-16,5390596165,ASDA HOME SHOPPING,5411,Catering costs - provisions,32.32,0,32.32
Children and Young Peoples Services,Childrens Services,88083,Ferryhill 0 - 5,Supplies and Services,324117,Provisions,19-Oct-16,5390596167,ASDA HOME SHOPPING,5411,Catering costs - provisions,-0.95,0,-0.95
Children and Young Peoples Services,Childrens Services,74000,TTF-Attachment and Results,Supplies and Services,324117,Provisions,19-Oct-16,5390596199,ASDA 4387,5411,Catering costs - provisions,72.91,0,72.91
Regeneration and Local Services,Spatial Policy Planning Assets & Environment,31217,North Pennines - Cold Blooded & Spineless,Supplies and Services,324117,Provisions,19-Oct-16,5390596217,TESCO STORES 4358,5411,Catering costs - provisions,24.41,0,24.41
Regeneration and Local Services,Culture & Sport,10605,Woodhouse Close Leisure Complex,Supplies and Services,324117,Provisions,19-Oct-16,5390596219,JR HOLLAND FOODSERVICE,5422,Catering costs - provisions,39.03,0,39.03
Regeneration and Local Services,Culture & Sport,10605,Woodhouse Close Leisure Complex,Supplies and Services,324117,Provisions,19-Oct-16,5390596225,JR HOLLAND FOODSERVICE,5422,Catering costs - provisions,-1.62,0,-1.62
Resources,Financial Services,65166,Finance - Post Entry Training,Employees,40149,Recruitment Instruction and Training,19-Oct-16,5390596227,WWW.CIPS.ORG,8699,Training-all costs,132.6,0,132.6
Regeneration and Local Services,Spatial Policy Planning Assets & Environment,31200,North Pennines Core,Supplies and Services,304259,Equipment and Materials,19-Oct-16,5390596237,NORTH YORKSHIRE COUNTY,9399,Equipment-purchase and rental,15,0,15
Regeneration and Local Services,Economic Development and Housing,30554,International Relations,Transport,235057,Public Transport,19-Oct-16,5390596239,Trainline.com Ltd,4112,Staff travelling,456,0,456
Regeneration and Local Services,Economic Development and Housing,30554,International Relations,Transport,235057,Public Transport,19-Oct-16,5390596241,VIRGINTRAINSEC SERVCS,4112,Staff travelling,260.75,0,260.75
Children and Young Peoples Services,Childrens Services,88014,Seaham 5 - 19,Supplies and Services,384999,Miscellaneous Expenses,19-Oct-16,5390596249,WWW.NITROTEK.CO.UK,5945,Other expenses,879.92,146.65,733.27
Children and Young Peoples Services,Childrens Services,88014,Seaham 5 - 19,Supplies and Services,384999,Miscellaneous Expenses,19-Oct-16,5390596253,WWW.NITROTEK.CO.UK,5945,Other expenses,-109.98,0,-109.98
Children and Young Peoples Services,Childrens Services,85957,Secure Management,Supplies and Services,328041,Clothing Uniforms and Laundry,19-Oct-16,5395190739,RIVER ISLAND 400,5691,Clothing uniforms and laundry,43.95,0,43.95
Regeneration and Local Services,Spatial Policy Planning Assets & Environment,31200,North Pennines Core,Supplies and Services,352001,Conference Expenses,19-Oct-16,5395191067,NASH AIRPORT HOTEL,7011,Conferencesseminars fees etc,107.42,0,107.42
Regeneration and Local Services,Direct Services,10301,C&G - North Grounds Maintenance,Supplies and Services,304221,Equipment and Materials,19-Oct-16,5395191169,JG PAXTON & SONS LTD,8911,Direct materials,31.03,5.17,25.86
Children and Young Peoples Services,Childrens Services,88014,Seaham 5 - 19,Supplies and Services,328041,Clothing Uniforms and Laundry,19-Oct-16,5400530587,ELC-INTERNET,5311,Clothing uniforms and laundry,18.95,3.16,15.79
Children and Young Peoples Services,Childrens Services,88037,One Point YEI,Supplies and Services,304403,Equipment and Materials,19-Oct-16,5462497831,GRO HM PASSPORT OFFICE,9399,Other consumables,-9.25,0,-9.25
Regeneration and Local Services,Economic Development and Housing,30699,Business Growth and Innovation General,Supplies and Services,336005,Advertising,20-Oct-16,5390595665,ADROLL,7311,Advertising other than for staff,0.56,0,0.56
Children and Young Peoples Services,Education,71801,Selby Cottage Childcare Centre,Supplies and Services,324117,Provisions,20-Oct-16,5395190703,TESCO STORES 2278,5411,Catering costs - provisions,1.2,0,1.2
Children and Young Peoples Services,Childrens Services,88094,Newton Aycliffe 5 - 19,Supplies and Services,304403,Equipment and Materials,20-Oct-16,5395190715,Amazon UK Marketplace,5942,Other consumables,8.98,0,8.98
Children and Young Peoples Services,Childrens Services,88094,Newton Aycliffe 5 - 19,Supplies and Services,304403,Equipment and Materials,20-Oct-16,5395190719,Amazon UK Marketplace,5942,Other consumables,9.24,0,9.24
Children and Young Peoples Services,Childrens Services,88094,Newton Aycliffe 5 - 19,Supplies and Services,304403,Equipment and Materials,20-Oct-16,5395190721,Amazon UK Marketplace,5942,Other consumables,19.98,0,19.98
Children and Young Peoples Services,Childrens Services,88094,Newton Aycliffe 5 - 19,Supplies and Services,304403,Equipment and Materials,20-Oct-16,5395190723,Amazon EU,5969,Other consumables,73.95,0,73.95
Children and Young Peoples Services,Childrens Services,85957,Secure Management,Supplies and Services,324117,Provisions,20-Oct-16,5395190737,TESCO STORES 6329,5411,Catering costs - provisions,115.88,0,115.88
Children and Young Peoples Services,Childrens Services,85957,Secure Management,Supplies and Services,328041,Clothing Uniforms and Laundry,20-Oct-16,5395190741,VERY.CO.UK,5964,Clothing uniforms and laundry,25.99,0,25.99
Regeneration and Local Services,Economic Development and Housing,30699,Business Growth and Innovation General,Supplies and Services,312011,Newspapers Books and Periodicals,20-Oct-16,5395190757,FASTHOSTS INTERNET,4816,Books-school library,12.59,2.1,10.49
Children and Young Peoples Services,Education,71903,EYDCP-Sustainability EDS,Supplies and Services,384999,Miscellaneous Expenses,20-Oct-16,5395190763,Amazon UK Marketplace,5942,Other expenses,34.75,0,34.75
Regeneration and Local Services,Economic Development and Housing,30737,Durham Works Flexible Fund,Transport,235057,Public Transport,20-Oct-16,5395190793,GO NORTH EAST - V/T,4131,Staff travelling,20.15,0,20.15
Regeneration and Local Services,Economic Development and Housing,30737,Durham Works Flexible Fund,Transport,235005,Public Transport,20-Oct-16,5395190797,ARRIVA PASSENGER S,7538,Contract tickets,7,0,7
Regeneration and Local Services,Direct Services,21242,Catering - County Hall,Supplies and Services,324117,Provisions,20-Oct-16,5395190803,JR HOLLAND FOODSERVICE,5422,Catering costs - provisions,144.96,0,144.96
Regeneration and Local Services,Direct Services,21242,Catering - County Hall,Supplies and Services,324117,Provisions,20-Oct-16,5395190807,JR HOLLAND FOODSERVICE,5422,Catering costs - provisions,32.97,0,32.97
Regeneration and Local Services,Direct Services,21242,Catering - County Hall,Supplies and Services,324117,Provisions,20-Oct-16,5395190809,JR HOLLAND FOODSERVICE,5422,Catering costs - provisions,13.16,0,13.16
Regeneration and Local Services,Direct Services,21242,Catering - County Hall,Supplies and Services,324117,Provisions,20-Oct-16,5395190811,BRAKE BROS LTD,5811,Catering costs - provisions,14.85,0,14.85
Regeneration and Local Services,Direct Services,21242,Catering - County Hall,Supplies and Services,324117,Provisions,20-Oct-16,5395190813,BRAKE BROS LTD,5811,Catering costs - provisions,-2,0,-2
Regeneration and Local Services,Direct Services,21242,Catering - County Hall,Supplies and Services,324117,Provisions,20-Oct-16,5395190817,BRAKE BROS LTD,5811,Catering costs - provisions,-5.02,0,-5.02
Regeneration and Local Services,Direct Services,10367,C&G - South Grounds Maintenance,Supplies and Services,304259,Equipment and Materials,20-Oct-16,5395190819,AYCLIFFE DECORATIV,5211,Equipment-purchase and rental,99,16.5,82.5
Regeneration and Local Services,Culture & Sport,54812,Gala Theatre - Catering etc,Supplies and Services,324117,Provisions,20-Oct-16,5395190823,JR HOLLAND FOODSERVICE,5422,Catering costs - provisions,39.63,0,39.63
Regeneration and Local Services,Culture & Sport,11232,Locality 3 Team Management,Supplies and Services,328041,Clothing Uniforms and Laundry,20-Oct-16,5395190845,ARGOS RETAIL GROUP,5310,Clothing uniforms and laundry,129.99,21.67,108.32
Children and Young Peoples Services,Childrens Services,85332,Middlestone Moor CU,Supplies and Services,324117,Provisions,20-Oct-16,5395190877,TESCO STORES 2371,5411,Catering costs - provisions,156.69,0,156.69
Children and Young Peoples Services,Childrens Services,88023,Chester Le Street 0 - 5,Supplies and Services,312011,Newspapers Books and Periodicals,20-Oct-16,5395190901,Amazon UK Marketplace,5942,Books-school library,3.14,0,3.14
Regeneration and Local Services,Culture & Sport,11060,Hardwick Park Catering,Supplies and Services,324117,Provisions,20-Oct-16,5395190917,JR HOLLAND FOODSERVICE,5422,Catering costs - provisions,11.18,0,11.18
Regeneration and Local Services,Spatial Policy Planning Assets & Environment,31200,North Pennines Core,Transport,235057,Public Transport,20-Oct-16,5395190921,TRAINLINE,4112,Staff travelling,-106.05,0,-106.05
Resources,I.C.T. Services,65335,Operations - System & Repairs Trading,Supplies and Services,304639,Equipment and Materials,20-Oct-16,5395190927,WWW.ALIEXPRESS.COM,5964,Technicians-supplies,27.09,0,27.09
Resources,I.C.T. Services,65335,Operations - System & Repairs Trading,Supplies and Services,304639,Equipment and Materials,20-Oct-16,5395190931,THE REPLACE BASE LTD,5999,Technicians-supplies,197.75,32.96,164.79
Regeneration and Local Services,Direct Services,21234,Catering - Locomotion,Supplies and Services,324117,Provisions,20-Oct-16,5395190935,BRAKE BROS LTD,5811,Catering costs - provisions,101.96,0,101.96
Children and Young Peoples Services,Education,74973,HI Resources Base - Fund,Supplies and Services,384871,Miscellaneous Expenses,20-Oct-16,5395190943,ADVENTURE VALLEY,7999,Training-other activities,52,8.67,43.33
Children and Young Peoples Services,Childrens Services,74000,TTF-Attachment and Results,Supplies and Services,384700,Miscellaneous Expenses,20-Oct-16,5395190957,ASDA 4387,5411,Miscellaneous grants,128.95,0,128.95
Children and Young Peoples Services,Childrens Services,88063,Bishop Auckland 0 - 5,Supplies and Services,384871,Miscellaneous Expenses,20-Oct-16,5395190961,WM MORRISON 040,5411,Training-other activities,10.75,0,10.75
Children and Young Peoples Services,Childrens Services,88053,Stanley 0 - 5,Employees,40149,Recruitment Instruction and Training,20-Oct-16,5395191001,THE ROYAL COLLEGE,8398,Training-all costs,20,0,20
Children and Young Peoples Services,Childrens Services,88043,Consett 0 - 5,Supplies and Services,304403,Equipment and Materials,20-Oct-16,5395191011,TESCO - Mothercare,5999,Other consumables,16,0,16
Children and Young Peoples Services,Childrens Services,88043,Consett 0 - 5,Supplies and Services,304403,Equipment and Materials,20-Oct-16,5395191013,TESCO - Safetots Limit,5999,Other consumables,62.88,0,62.88
Children and Young Peoples Services,Childrens Services,74000,TTF-Attachment and Results,Supplies and Services,308011,Furniture,20-Oct-16,5395191019,FRANKS THE FLOORING ST,5713,Furniture repair and replacement,120,0,120
Resources,I.C.T. Services,69010,Administration,Third Party Payments,430100,Rendered by Private Contractors,20-Oct-16,5395191023,HOOTSUITE MEDIA INC.,7399,Payments to sub-contractors,5.87,0,5.87
Resources,I.C.T. Services,69010,Administration,Supplies and Services,304259,Equipment and Materials,20-Oct-16,5395191027,DISCLOSURE SCOT,9399,Equipment-purchase and rental,25,0,25
Resources,I.C.T. Services,69010,Administration,Supplies and Services,312011,Newspapers Books and Periodicals,20-Oct-16,5395191031,Amazon UK Marketplace,5942,Books-school library,35.97,0,35.97
Resources,I.C.T. Services,69010,Administration,Supplies and Services,312011,Newspapers Books and Periodicals,20-Oct-16,5395191035,Amazon UK Marketplace,5942,Books-school library,13.44,0,13.44
Resources,I.C.T. Services,69010,Administration,Supplies and Services,312011,Newspapers Books and Periodicals,20-Oct-16,5395191037,Amazon EU,5969,Books-school library,54.99,0,54.99
Resources,I.C.T. Services,69010,Administration,Supplies and Services,352001,Conference Expenses,20-Oct-16,5395191041,"STATION HOTEL,",7011,Conferencesseminars fees etc,-127,0,-127
Resources,I.C.T. Services,69010,Administration,Supplies and Services,304259,Equipment and Materials,20-Oct-16,5395191045,DURHAM COUNTY COUNCIL,9399,Equipment-purchase and rental,-20,0,-20
Children and Young Peoples Services,Childrens Services,88003,Peterlee 0 - 5,Supplies and Services,304259,Equipment and Materials,20-Oct-16,5395191123,HARTLEPOOL BC CNP,9399,Equipment-purchase and rental,14.25,0,14.25
Children and Young Peoples Services,Childrens Services,85333,Coxhoe Satelite Home,Supplies and Services,324117,Provisions,20-Oct-16,5395191153,ASDA STORES LTD,5411,Catering costs - provisions,6,0,6
Regeneration and Local Services,Direct Services,10301,C&G - North Grounds Maintenance,Supplies and Services,304999,Equipment and Materials,20-Oct-16,5395191161,GUSTHARTS CHAINSAW CTR,7699,Misc equipment tools and materials,472.8,0,472.8
Regeneration and Local Services,Direct Services,10301,C&G - North Grounds Maintenance,Supplies and Services,304999,Equipment and Materials,20-Oct-16,5395191167,GUSTHARTS CHAINSAW CTR,7699,Misc equipment tools and materials,330.24,0,330.24
Children and Young Peoples Services,Childrens Services,85331,New Lea Childrens Home,Supplies and Services,304259,Equipment and Materials,20-Oct-16,5395191231,OFSTED INTERNET,9399,Equipment-purchase and rental,722,0,722
Adult and Health Services,Planning & Service Strategy,54630,Comm Marketing and Information,Supplies and Services,304999,Equipment and Materials,20-Oct-16,5395191255,GOOGLE ADWS8172786379,5968,Misc equipment tools and materials,163.2,0,163.2
Regeneration and Local Services,Culture & Sport,26591,Hardwick Park,Premises,145023,Cleaning and Domestic Supplies,20-Oct-16,5395191267,Amazon UK Marketplace,5942,Cleaning and domestic materials,2.75,0,2.75
Regeneration and Local Services,Culture & Sport,26591,Hardwick Park,Supplies and Services,304245,Equipment and Materials,20-Oct-16,5395191273,PAYPAL COMMERCIALW,1520,Materials,44.16,0,44.16
Regeneration and Local Services,Culture & Sport,10605,Woodhouse Close Leisure Complex,Supplies and Services,324117,Provisions,20-Oct-16,5395191277,BRAKE BROS LTD,5811,Catering costs - provisions,116.64,19.44,97.2
Regeneration and Local Services,Culture & Sport,10605,Woodhouse Close Leisure Complex,Supplies and Services,324117,Provisions,20-Oct-16,5395191277 - 1,BRAKE BROS LTD,5811,Catering costs - provisions,151.37,,151.37
Regeneration and Local Services,Culture & Sport,11225,Locality 2 Team Management,Supplies and Services,312011,Newspapers Books and Periodicals,20-Oct-16,5395191289,CHARLES DICKENS (SPENN,5251,Books-school library,94.97,0,94.97
Regeneration and Local Services,Economic Development and Housing,30553,Europe Direct Scheme,Transport,235057,Public Transport,20-Oct-16,5395191317,VIRGINTRAINSEC 6535,4112,Staff travelling,851.8,0,851.8
Regeneration and Local Services,Culture & Sport,54815,Gala Theatre Stage School,Supplies and Services,304259,Equipment and Materials,20-Oct-16,5400529939,WWW.JOSEF-WEINBERGER.C,5733,Equipment-purchase and rental,500,0,500
Regeneration and Local Services,Spatial Policy Planning Assets & Environment,31200,North Pennines Core,Transport,235057,Public Transport,20-Oct-16,5400530171,SENTIER ORIENT TRAVYS,4112,Staff travelling,46.06,0,46.06
Children and Young Peoples Services,Childrens Services,88033,Durham 0 - 5,Supplies and Services,304403,Equipment and Materials,20-Oct-16,5400530543,AMAZON UK RETAIL AMAZO,5999,Other consumables,10.98,0,10.98
Resources,I.C.T. Services,69010,Administration,Third Party Payments,430100,Rendered by Private Contractors,21-Oct-16,5395191049,HOOTSUITE MEDIA INC.,7399,Payments to sub-contractors,0.16,0,0.16
Regeneration and Local Services,Spatial Policy Planning Assets & Environment,31200,North Pennines Core,Supplies and Services,352001,Conference Expenses,21-Oct-16,5395191071,NASH AIRPORT HOTEL,7011,Conferencesseminars fees etc,2.95,0,2.95
Children and Young Peoples Services,Education,71801,Selby Cottage Childcare Centre,Supplies and Services,324117,Provisions,21-Oct-16,5400529541,TESCO STORES 2278,5411,Catering costs - provisions,34.22,0,34.22
Children and Young Peoples Services,Childrens Services,88094,Newton Aycliffe 5 - 19,Supplies and Services,304403,Equipment and Materials,21-Oct-16,5400529547,Amazon UK Marketplace,5942,Other consumables,23.98,0,23.98
Children and Young Peoples Services,Childrens Services,88094,Newton Aycliffe 5 - 19,Supplies and Services,304403,Equipment and Materials,21-Oct-16,5400529551,Amazon UK Marketplace,5942,Other consumables,5.99,0,5.99
Children and Young Peoples Services,Childrens Services,85957,Secure Management,Supplies and Services,324117,Provisions,21-Oct-16,5400529583,TESCO STORES 6329,5411,Catering costs - provisions,138.22,0,138.22
Children and Young Peoples Services,Education,71903,EYDCP-Sustainability EDS,Supplies and Services,384999,Miscellaneous Expenses,21-Oct-16,5400529655,Amazon UK Marketplace,5942,Other expenses,2.5,0,2.5
Children and Young Peoples Services,Education,71903,EYDCP-Sustainability EDS,Supplies and Services,384999,Miscellaneous Expenses,21-Oct-16,5400529659,Amazon UK Marketplace,5942,Other expenses,41.95,0,41.95
Regeneration and Local Services,Direct Services,10367,C&G - South Grounds Maintenance,Supplies and Services,324117,Provisions,21-Oct-16,5400529673,J M RAINE,5399,Catering costs - provisions,222,37,185
Regeneration and Local Services,Economic Development and Housing,30737,Durham Works Flexible Fund,Transport,235057,Public Transport,21-Oct-16,5400529709,GO NORTH EAST - V/T,4131,Staff travelling,13.2,0,13.2
Regeneration and Local Services,Economic Development and Housing,30737,Durham Works Flexible Fund,Supplies and Services,324117,Provisions,21-Oct-16,5400529711,ASDA STORES LTD,5411,Catering costs - provisions,38.05,0,38.05
Regeneration and Local Services,Direct Services,21242,Catering - County Hall,Supplies and Services,324117,Provisions,21-Oct-16,5400529713,JR HOLLAND FOODSERVICE,5422,Catering costs - provisions,76.24,0,76.24
Regeneration and Local Services,Direct Services,21242,Catering - County Hall,Supplies and Services,324117,Provisions,21-Oct-16,5400529715,JR HOLLAND FOODSERVICE,5422,Catering costs - provisions,29.42,0,29.42
Regeneration and Local Services,Direct Services,21242,Catering - County Hall,Supplies and Services,324117,Provisions,21-Oct-16,5400529719,JR HOLLAND FOODSERVICE,5422,Catering costs - provisions,13.16,0,13.16
Regeneration and Local Services,Direct Services,21242,Catering - County Hall,Supplies and Services,324117,Provisions,21-Oct-16,5400529723,JR HOLLAND FOODSERVICE,5422,Catering costs - provisions,8.88,0,8.88
Regeneration and Local Services,Direct Services,21242,Catering - County Hall,Supplies and Services,324117,Provisions,21-Oct-16,5400529727,BRAKE BROS LTD,5811,Catering costs - provisions,185.34,30.89,154.45
Regeneration and Local Services,Direct Services,21242,Catering - County Hall,Supplies and Services,324117,Provisions,21-Oct-16,5400529727 - 1,BRAKE BROS LTD,5811,Catering costs - provisions,225.78,,225.78
Regeneration and Local Services,Direct Services,21242,Catering - County Hall,Supplies and Services,324117,Provisions,21-Oct-16,5400529733,BRAKE BROS LTD,5811,Catering costs - provisions,107.23,0,107.23
Children and Young Peoples Services,Education,70169,Durham SSP,Supplies and Services,384199,Miscellaneous Expenses,21-Oct-16,5400529745,PRO-DIRECT SPORT,5941,Other hired and contracted services,73.5,12.25,61.25
Children and Young Peoples Services,Education,70169,Durham SSP,Supplies and Services,384199,Miscellaneous Expenses,21-Oct-16,5400529745 - 1,PRO-DIRECT SPORT,5941,Other hired and contracted services,89.95,,89.95
Children and Young Peoples Services,Childrens Services,88073,Barnard Castle 0 - 5,Supplies and Services,324117,Provisions,21-Oct-16,5400529747,ALDI,5411,Catering costs - provisions,3.99,0,3.99
Regeneration and Local Services,Direct Services,10367,C&G - South Grounds Maintenance,Supplies and Services,304259,Equipment and Materials,21-Oct-16,5400529753,BUILDBASE DURHAM,5211,Equipment-purchase and rental,16.8,2.8,14
Children and Young Peoples Services,Childrens Services,85351,Framwellgate Moor CU,Supplies and Services,312011,Newspapers Books and Periodicals,21-Oct-16,5400529795,Amazon UK Marketplace,5942,Books-school library,20.45,0,20.45
Children and Young Peoples Services,Childrens Services,85351,Framwellgate Moor CU,Transport,235057,Public Transport,21-Oct-16,5400529799,Trainline.com Ltd,4112,Staff travelling,40.29,0,40.29
Children and Young Peoples Services,Childrens Services,88083,Ferryhill 0 - 5,Supplies and Services,324117,Provisions,21-Oct-16,5400529811,ASDA SUPERSTORE 4987,5411,Catering costs - provisions,37.27,0,37.27
Regeneration and Local Services,Culture & Sport,11219,Office Services,Supplies and Services,336005,Advertising,21-Oct-16,5400529815,FACEBK CB7ZGAJSF2,7311,Advertising other than for staff,401.04,0,401.04
Regeneration and Local Services,Culture & Sport,11232,Locality 3 Team Management,Supplies and Services,328041,Clothing Uniforms and Laundry,21-Oct-16,5400529841,ARGOS RETAIL GROUP,5310,Clothing uniforms and laundry,59.97,0,59.97
Dedicated Schools Grant,Dedicated Schools Grant,70256,LEA Init-School Forum,Supplies and Services,384999,Miscellaneous Expenses,21-Oct-16,5400529853,Amazon UK Marketplace,5942,Other expenses,32.69,0,32.69
Children and Young Peoples Services,Childrens Services,85957,Secure Management,Supplies and Services,312009,Newspapers Books and Periodicals,21-Oct-16,5400529899,MULTI-HEALTH SYSTEMS,5964,Newspapers books and periodicals,291.25,0,291.25
Regeneration and Local Services,Culture & Sport,11060,Hardwick Park Catering,Supplies and Services,324117,Provisions,21-Oct-16,5400529903,JR HOLLAND FOODSERVICE,5422,Catering costs - provisions,19.1,0,19.1
Regeneration and Local Services,Culture & Sport,11060,Hardwick Park Catering,Supplies and Services,324117,Provisions,21-Oct-16,5400529909,BRAKE BROS LTD,5811,Catering costs - provisions,199.62,33.27,166.35
Regeneration and Local Services,Culture & Sport,11060,Hardwick Park Catering,Supplies and Services,324117,Provisions,21-Oct-16,5400529909 - 1,BRAKE BROS LTD,5811,Catering costs - provisions,234.32,,234.32
Regeneration and Local Services,Culture & Sport,11060,Hardwick Park Catering,Supplies and Services,324117,Provisions,21-Oct-16,5400529919,BRAKE BROS LTD,5811,Catering costs - provisions,151.2,25.2,126
Regeneration and Local Services,Culture & Sport,11060,Hardwick Park Catering,Supplies and Services,324117,Provisions,21-Oct-16,5400529919 - 1,BRAKE BROS LTD,5811,Catering costs - provisions,123.98,,123.98
Regeneration and Local Services,Economic Development and Housing,30762,Organisational Training & Development,Employees,40149,Recruitment Instruction and Training,21-Oct-16,5400529949,CITB,8220,Training-all costs,30,5,25
Regeneration and Local Services,Economic Development and Housing,30762,Organisational Training & Development,Employees,40149,Recruitment Instruction and Training,21-Oct-16,5400529953,CITB,8220,Training-all costs,30,5,25
Regeneration and Local Services,Direct Services,10525,Catering - Green Lane,Supplies and Services,324117,Provisions,21-Oct-16,5400529997,JR HOLLAND FOODSERVICE,5422,Catering costs - provisions,55.72,0,55.72
Children and Young Peoples Services,Childrens Services,88037,One Point YEI,Supplies and Services,384999,Miscellaneous Expenses,21-Oct-16,5400530045,STOCKTON BOROUGH COUNC,9399,Other expenses,13,0,13
Resources,I.C.T. Services,69010,Administration,Supplies and Services,304259,Equipment and Materials,21-Oct-16,5400530143,NORTH TYNESIDE,9399,Equipment-purchase and rental,21,0,21
Resources,I.C.T. Services,69010,Administration,Supplies and Services,304259,Equipment and Materials,21-Oct-16,5400530149,DISCLOSURE SCOT,9399,Equipment-purchase and rental,25,0,25
Regeneration and Local Services,Direct Services,21324,Catering - Meadowfield,Supplies and Services,324117,Provisions,21-Oct-16,5400530301,JR HOLLAND FOODSERVICE,5422,Catering costs - provisions,38.04,0,38.04
Regeneration and Local Services,Direct Services,21324,Catering - Meadowfield,Supplies and Services,324117,Provisions,21-Oct-16,5400530305,JR HOLLAND FOODSERVICE,5422,Catering costs - provisions,10.8,0,10.8
Regeneration and Local Services,Direct Services,21324,Catering - Meadowfield,Supplies and Services,324117,Provisions,21-Oct-16,5400530307,JR HOLLAND FOODSERVICE,5422,Catering costs - provisions,9.87,0,9.87
Children and Young Peoples Services,Childrens Services,88083,Ferryhill 0 - 5,Supplies and Services,324117,Provisions,21-Oct-16,5400530359,CO-OP GROUP 010518,5411,Catering costs - provisions,13.12,0,13.12
Regeneration and Local Services,Economic Development and Housing,30737,Durham Works Flexible Fund,Supplies and Services,312011,Newspapers Books and Periodicals,21-Oct-16,5400530423,Amazon UK Marketplace,5942,Books-school library,99.99,0,99.99
Adult and Health Services,Planning & Service Strategy,54630,Comm Marketing and Information,Supplies and Services,336005,Advertising,21-Oct-16,5400530461,FACEBK U63PJAATS2,7311,Advertising other than for staff,20.08,0,20.08
Regeneration and Local Services,Culture & Sport,10605,Woodhouse Close Leisure Complex,Supplies and Services,324117,Provisions,21-Oct-16,5400530513,BRAKE BROS LTD,5811,Catering costs - provisions,93.59,0,93.59
Adult and Health Services,Head of Adults,52750,Learning Disability Management,Supplies and Services,352001,Conference Expenses,21-Oct-16,5400530527,SCARMAN,7011,Conferencesseminars fees etc,77.5,12.92,64.58
Regeneration and Local Services,Economic Development and Housing,30737,Durham Works Flexible Fund,Supplies and Services,304259,Equipment and Materials,21-Oct-16,5400530545,CLACKMANNANSHIRE COUNC,9399,Equipment-purchase and rental,15.65,0,15.65
Transformation and Partnerships,Partnerships & Community Engagement Div.,60472,Syrian Vulnerable Persons Scheme,Supplies and Services,308011,Furniture,21-Oct-16,5400530551,ASDA SUPERSTORE 4987,5411,Furniture repair and replacement,6.5,0,6.5
Regeneration and Local Services,Spatial Policy Planning Assets & Environment,31200,North Pennines Core,Supplies and Services,324117,Provisions,21-Oct-16,5400530559,SAINSBURYS 2199,5411,Catering costs - provisions,27,0,27
Children and Young Peoples Services,Childrens Services,85331,New Lea Childrens Home,Supplies and Services,324117,Provisions,21-Oct-16,5414972243,ASDA HOME SHOPPING,5411,Catering costs - provisions,124.98,0,124.98
Children and Young Peoples Services,Childrens Services,85331,New Lea Childrens Home,Supplies and Services,324117,Provisions,21-Oct-16,5414972245,ASDA HOME SHOPPING,5411,Catering costs - provisions,-0.8,0,-0.8
Children and Young Peoples Services,Childrens Services,85957,Secure Management,Supplies and Services,324117,Provisions,22-Oct-16,5400529587,TESCO STORES 6329,5411,Catering costs - provisions,92.26,0,92.26
Children and Young Peoples Services,Childrens Services,85342,9 Cedar Drive Aycliffe,Supplies and Services,328041,Clothing Uniforms and Laundry,22-Oct-16,5400529615,THE RANGE,5311,Clothing uniforms and laundry,16.38,0,16.38
Children and Young Peoples Services,Childrens Services,85342,9 Cedar Drive Aycliffe,Supplies and Services,308011,Furniture,22-Oct-16,5400529623,IKEA,5719,Furniture repair and replacement,86.2,0,86.2
